Workbook

Sheet BasicCalcs
B2: Canoe Basic Metrics
B3: Length Overall (LOA) | C3: =Canoe!M2 -> 3.93 | D3: m
B4: Beam Overall (BOA) | C4: =Canoe!M3 -> 0.65 | D4: m
B5: Length Water Line (LWL) | C5: =Canoe!M4 -> 3.6 | D5: m
B6: Beam Water Line (BWL) | C6: =Canoe!M5 -> 0.55 | D6: m | E6: Actually the bottom width
B7: Depth Water Line (DWL) | C7: =Canoe!M6 -> 0.075 | D7: m
B8: Rocker | C8: =Canoe!M7 -> 0.025 | D8: m
B9: Amidships Deadrise | C9: =Canoe!M8 -> 0 | D9: Degrees
B10: Amidships Freeboard | C10: =Canoe!M9 -> 0.25 | D10: m
B11: Forward Freeboard | C11: =Canoe!M10 -> 0.26 | D11: m
B12: Rear Freeboard | C12: =Canoe!M11 -> 0.26 | D12: m
B14: Basic Calculations
B15: Mid-Section Area | C15: =C6*C7 -> 0.04125 | D15: m^2
B16: Plan Water Line Area | C16: =C6*C5*2/3 -> 1.32 | D16: m^2
B17: Displacement Volume | C17: =C5*C6*(C7-C8/3)*2/3 -> 0.088 | D17: m^3
B18: Displacement Weight | C18: =C17*1025 -> 90.2 | D18: kg
B19: Prismatic Coefficient (cp) | C19: =C17/(C5*C6*C7) -> 0.5925925926
B20: Displacement Length Ratio (DLR) | C20: =C18/(C3/3.048)^3 -> 42.07981041
B21: Hull Speed | C21: =1.34*(C5*3.28)^0.5 -> 4.604611254 | D21: kt
B22: Design G Force | C22: 3.5 | D22: g | E22: Light duty
B23: Design Pressure | C23: =C22*C18*9.81/1000/C16 -> 2.346225 | D23: KN
B25: Bottom Plank Design
B26: Design Pressure (P) | C26: =C23 -> 2.346225 | D26: kPa
B27: Span (L) | C27: =C6*1000 -> 550 | D27: mm | E27: BWL
B28: Allowable Stress (S) | C28: 14000 | D28: kPa | E28: F14 Plywood
B29: Plank Thickness (t) | C29: =(C26*C27*C27/C28/2)^0.5 -> 5.034640938 | D29: mm | E29: t^2=P*L^2/2/S, ~fixed sides
B30: Design Plank Thickness (t) | C30: 6 | D30: mm
B31: Modulus of Elasticity (E) | C31: =10500000*80% -> 8400000 | D31: kPa | E31: Factored 80% for wet condition
B32: Moment of Inertia (I) | C32: =1000*C30^3/12 -> 18000 | D32: mm^4
B33: Deflection (d) | C33: =C26*C27^4/384/C31/C32*1000 -> 3.697748763 | D33: mm | E33: d=P*L^4/384EI (2% max)
B34: Deflection Ratio | C34: =C27/C33 -> 148.7391478
B35: Maximum Concentrated Load | C35: =C28*C30*C30/1000000 -> 0.504 | D35: kN | E35: =S*t*t
B36: Note: Hull bottom centre needs reinforcement
B38: Hull Centre Reinforcement
B39: T-Section Modulus
B40: Maximum Rib Spacing (Flange Width) | C40: =36*C42+C44 -> 256 | D40: mm | E40: Fw<36t+w
B41: Design Rib Spacing | C41: 150 | D41: mm
B42: Plank Thickness (Flange Thickness) | C42: =C30 -> 6 | D42: mm
B43: Rib Thickness (Web Height) | C43: 6 | D43: mm
B44: Rib Width (Web Thickness) | C44: 40 | D44: mm
B45: A | C45: =C40*C42+C43*C44 -> 1776 | D45: mm^2
B46: cy | C46: =(C40*C42*C42/2+C43*C44*(C42+C43/2))/(C40*C42+C43*C44) -> 3.810810811 | D46: mm | E46: From top of T
B47: cx | C47: =(C40*C42*0/2+C43*C44*0/2)/(C40*C42+C43*C44) -> 0 | D47: mm | E47: From centre line of T
B48: Ixx | C48: =C41*C42^3/12+C41*C42*(C46-C42/2)^2+C44*C43^3/12+C44*C43*(C46-C42-C43/2)^2 -> 10474.31702 | D48: mm^4
B49: Iyy | C49: =C40*C40*C40*C42/12+C44*C44*C44*C43/12 -> 8420608 | D49: mm^4
B50: Design Point Load | C50: 1 | D50: kN | E50: ~100kg
B51: Span | C51: =C27 -> 550 | D51: mm
B52: Allowable Stress | C52: =C28 -> 14000 | D52: kPa | E52: F14 Plywood
B53: Bending Moment | C53: =C50*C51/8 -> 68.75 | D53: Nm
B54: Section Modulus | C54: =C48/C46 -> 2748.579643 | D54: mm^3
B55: Working Stress (per rib) | C55: =C53/C54*1000000 -> 25012.919 | D55: kN
B56: Distribute Load (over two ribs) | C56: =C55/2 -> 12506.4595 | D56: kN
B57: Safety Factor | C57: =C52/C56 -> 1.119421528
B58: Note: May be easier to either double plank thickness or reinforce with one layers of 4 oz/sq_yd fibre-glass on both sides
B60: Side Plank Design
B61: Design Pressure (P) | C61: =C23 -> 2.346225 | D61: kPa
B62: Span (L) | C62: =(C10+C7)*1000 -> 325 | D62: mm
B63: Allowable Stress (S) | C63: =C28 -> 14000 | D63: kPa | E63: F14 Plywood
B64: Plank Thickness (t) | C64: =(C61*C62*C62/C63/2)^0.5 -> 2.9750151 | D64: mm | E64: t^2=P*L^2/2/S, ~fixed sides
B65: Design Plank Thickness (t) | C65: =C43 -> 6 | D65: mm | E65: Okay
B67: Hull Section Modulus | E67: Triangular Load & Free Ends
B68: Design Pressure | C68: =C23 -> 2.346225 | D68: kPa
B69: Width | C69: =C6*1000 -> 550 | D69: mm | E69: BWL
B70: Length | C70: =C5*1000 -> 3600 | D70: mm | E70: LWL
B71: Allowable Stress | C71: =C28 -> 14000 | D71: kPa | E71: F14 Plywood
B72: Required Section Modulus | C72: =C68*C69*C70^2/12/C71 -> 99546.975 | D72: mm^3 | E72: SM=PsL^2/12/S
B74: Channel Model
B75: Chine Width (web) | C75: =C27 -> 550 | D75: mm | E75: BWL
B76: Side Height (flange) | C76: =(C10+C7)*1000 -> 325 | D76: mm
B77: Deck Width (lip) | C77: 50 | D77: mm
B78: Thickness (t) | C78: =C30 -> 6 | D78: mm
B79: cy (from bottom) | C79: =C76*(C76+2*C77)/(C75+2*C76+2*C77) -> 106.25 | D79: mm
B80: I | C80: =1/12*C75*C78^3+2/3*C78*C76^3+1/6*C77*C78^3+2*C77*C78*C76^2-(C75*C78+2*C76*C78+2*C77*C78)*C76^2*(C76+2*C77)^2/(C75+2*C76+2*C77)^2 -> 112644512.5 | D80: mm^4
B81: Rg | C81: =(C80/(C75+2*C76+2*C77)/C78)^0.5 -> 120.1732257 | D81: mm | E81: Radius of gyration
B82: Slenderness Ratio | C82: =C70/C81 -> 29.95675601
B83: Z | C83: =MIN(C80/C79,C80/(C76-C79)) -> 514946.3429 | D83: mm^3
B84: Safety Factor | C84: =C83/C72 -> 5.17289795 | E84: Assumes no significant keel or stringers
B86: Plywood Fibre Glass Joins
B87: Spw | C87: =C28 -> 14000 | D87: Pa
B88: b | C88: 1 | D88: m
B89: h | C89: =C30 -> 6 | D89: mm
B90: M | C90: =C87*C88*C89^2/6 -> 84000 | D90: Nm | E90: M=Spw*b*h^2/6
B91: Sfg | C91: 120000000 | D91: Pa
B92: t | C92: =1000*((C90*6*C89/C91/C88+C89*C89*C89)^(1/3)-C89)/2 -> 0.1166621299 | D92: mm | E92: t~((6*M*h/Sfg/b+h^3)^(1/3)-h)/2
B93: F/G Weight | C93: =C92*16 -> 1.866594079 | D93: oz/sq_yd | E93: Each side of plywood
B94: F/G Overlap (each side of join) | C94: =C89*3 -> 18 | D94: mm | E94: =3*h [JS = 15%*(1+L/h)]

Sheet Canoe
A1: Canoe | I1: Canoe Basic Metrics
A2: Find Offet Table at row | B2: 19 | I2: Length Overall (LOA) | M2: =(W22-C22)/1000 -> 3.93 | N2: m
A3: Stations | B3: 5 | I3: Beam Overall (BOA) | M3: =N23/500 -> 0.65 | N3: m
A4: Chines | B4: 5 | I4: Length Water Line (LWL) | M4: =(R24-H24)/1000 -> 3.6 | N4: m
A5: Forward-Aft Slice | B5: 100 | C5: mm | I5: Beam Water Line (BWL) | M5: =N24/500 -> 0.55 | N5: m | O5: Actually the bottom width
A6: First slice | B6: 100 | C6: mm | I6: Depth Water Line (DWL) | M6: =-O25/1000 -> 0.075 | N6: m
A7: Last slice | B7: 3900 | C7: mm | I7: Rocker | M7: =(J24-O25)/1000 -> 0.025 | N7: m
A8: Water Line Slice | B8: 25 | C8: mm | I8: Amidships Deadrise | M8: =DEGREES(ATAN2(N24-N25,O24-O25)) -> 0 | N8: Degrees
A9: Draft | B9: -75 | C9: mm | I9: Amidships Freeboard | M9: =O21/1000 -> 0.25 | N9: m
A10: Displacement | B10: 71.81902527 | C10: dm3 | I10: Forward Freeboard | M10: =E22/1000 -> 0.26 | N10: m
A11: Find Unfold Offsets at row | B11: 29 | I11: Rear Freeboard | M11: =Y22/1000 -> 0.26 | N11: m
A13: Export Plan Slice at | B13: 0 | C13: mm
A14: Export Cross Section at | B14: 1800 | C14: mm
A19: Table Row | B19: Station | C19: 1 | H19: 2 | M19: 3 | R19: 4 | W19: 5 | AB19: 6 | AG19: 7
B20: Chine | C20: X | D20: Y | E20: Z | F20: Break | G20: Colour | H20: X | I20: Y | J20: Z | K20: Break | L20: Colour | M20: X | N20: Y | O20: Z | P20: Break | Q20: Colour | R20: X | S20: Y | T20: Z | U20: Break | V20: Colour | W20: X | X20: Y | Y20: Z | Z20: Break | AA20: Colour | AB20: X | AC20: Y | AD20: Z | AE20: Break | AF20: Colour | AG20: X | AH20: Y | AI20: Z | AJ20: Break | AK20: Colour
A21: Coaming | B21: 5 | C21: 35 | D21: 0 | E21: 260 | F21: TRUE | G21: 1 | H21: 200 | I21: 0 | J21: 250 | K21: TRUE | L21: 1 | M21: 2000 | N21: 275 | O21: 250 | P21: FALSE | Q21: 1 | R21: 3800 | S21: 0 | T21: 250 | U21: TRUE | V21: 1 | W21: 3965 | X21: 0 | Y21: 260 | Z21: TRUE | AA21: 0
A22: Deck | B22: 4 | C22: 35 | D22: 0 | E22: 260 | F22: TRUE | G22: 2 | H22: 200 | I22: 0 | J22: 250 | K22: TRUE | L22: 2 | M22: 2000 | N22: 275 | O22: 200 | P22: FALSE | Q22: 2 | R22: 3800 | S22: 0 | T22: 250 | U22: TRUE | V22: 2 | W22: 3965 | X22: 0 | Y22: 260 | Z22: TRUE | AA22: 0
A23: Sheer | B23: 3 | C23: 35 | D23: 0 | E23: 260 | F23: TRUE | G23: 3 | H23: 200 | I23: 52 | J23: 250 | K23: FALSE | L23: 3 | M23: 2000 | N23: 325 | O23: 200 | P23: FALSE | Q23: 3 | R23: 3800 | S23: 52 | T23: 250 | U23: FALSE | V23: 3 | W23: 3965 | X23: 0 | Y23: 260 | Z23: TRUE | AA23: 0
A24: Chine | B24: 2 | C24: 35 | D24: 0 | E24: 260 | F24: TRUE | G24: 4 | H24: 200 | I24: 0 | J24: -50 | K24: TRUE | L24: 4 | M24: 2000 | N24: 275 | O24: -75 | P24: FALSE | Q24: 4 | R24: 3800 | S24: 0 | T24: -50 | U24: TRUE | V24: 4 | W24: 3965 | X24: 0 | Y24: 260 | Z24: TRUE | AA24: 0
A25: Centreline | B25: 1 | C25: 35 | D25: 0 | E25: 260 | F25: TRUE | G25: 5 | H25: 200 | I25: 0 | J25: -50 | K25: TRUE | L25: 5 | M25: 2000 | N25: 0 | O25: -75 | P25: FALSE | Q25: 5 | R25: 3800 | S25: 0 | T25: -50 | U25: TRUE | V25: 5 | W25: 3965 | X25: 0 | Y25: 260 | Z25: TRUE | AA25: 0
A29: Offset Row | B29: Sole | G29: Side | L29: Deck | Q29: Coaming
B30: X Lower | C30: Y Lower | D30: X Upper | E30: Y Upper | G30: X Lower | H30: Y Lower | I30: X Upper | J30: Y Upper | L30: X Lower | M30: Y Lower | N30: X Upper | O30: Y Upper | Q30: X Lower | R30: Y Lower | S30: X Upper | T30: Y Upper | V30: X Lower | W30: Y Lower | X30: X Upper | Y30: Y Upper
G31: 0 | H31: 0 | I31: 0 | J31: 0 | L31: 0 | M31: 0 | N31: 0 | O31: 0
G32: 68.4202092 | H32: -120.2383692 | I32: 68.43430116 | J32: -0.3124317849 | L32: 65.11448767 | M32: -21.05836377 | N32: 65.11925626 | O32: -0.03590363115
B33: 351.1765938 | C33: 2.814284187e-14 | D33: 351.1765938 | E33: 2.814284187e-14 | G33: 173.6820695 | H33: -305.2204756 | I33: 173.2904607 | J33: -0.7474117024 | L33: 165.2744445 | M33: -52.09038671 | N33: 165.3027278 | O33: -0.09039440268 | Q33: 165.0816287 | R33: -8.54727304 | S33: 165.0816287 | T33: -8.54727304
B34: 451.2130538 | C34: 3.615963549e-14 | D34: 451.2130538 | E34: 29.70679012 | G34: 278.0051288 | H34: -302.6737093 | I34: 277.6508462 | J34: -1.125491201 | L34: 265.4153052 | M34: -81.46794639 | N34: 265.4324321 | O34: -29.85125869 | Q34: 269.4008186 | R34: -13.94850761 | S34: 269.4008186 | T34: -8.54727304
B35: 551.2454666 | C35: 5.342958587e-14 | D35: 551.2454666 | E35: 57.71604938 | G35: 381.8569721 | H35: -300.2660424 | I35: 381.540211 | J35: -1.449531083 | L35: 365.5387135 | M35: -109.1881238 | N35: 365.5472912 | O35: -57.91312053 | Q35: 373.2493554 | R35: -19.0411002 | S35: 373.2493554 | T35: -8.54727304
B36: 651.2740703 | C36: 8.7575864e-14 | D36: 651.2740703 | E36: 84.02777778 | G36: 485.2633797 | H36: -297.9981185 | I36: 484.9837123 | J36: -1.722455572 | L36: 465.6462237 | M36: -135.2480329 | N36: 465.6484381 | O36: -84.27509367 | Q36: 476.6529678 | R36: -23.82505082 | S36: 476.6529678 | T36: -8.54727304
B37: 751.2991026 | C37: 7.315151033e-14 | D37: 751.2991026 | E37: 108.6419753 | G37: 588.2504645 | H37: -295.8706377 | I37: 588.0068994 | J37: -1.947246647 | L37: 565.7392497 | M37: -159.6450358 | N37: 565.7369188 | O37: -108.9364627 | Q37: 579.6377177 | R37: -28.30035946 | S37: 579.6377177 | T37: -8.54727304
B38: 851.3208017 | C38: 7.684239862e-14 | D38: 851.3208017 | E38: 131.558642 | G38: 690.844658 | H38: -293.8843497 | I38: 690.6357015 | J38: -2.126937622 | L38: 665.8190866 | M38: -182.3767218 | N38: 665.8137073 | O38: -131.8966703 | Q38: 682.2299865 | R38: -32.46702613 | S38: 682.2299865 | T38: -8.54727304
B39: 951.3394054 | C39: 9.875847761e-14 | D39: 951.3394054 | E39: 152.7777778 | G39: 793.0726941 | H39: -292.0400461 | I39: 792.896414 | J39: -2.264606003 | L39: 765.8869296 | M39: -203.4408877 | N39: 765.8797178 | O39: -153.1553065 | Q39: 784.4564592 | R39: -36.32505082 | S39: 784.4564592 | T39: -8.54727304
B40: 1051.355152 | C40: 1.288766579e-13 | D40: 1051.355152 | E40: 172.2993827 | G40: 894.961592 | H40: -290.3385523 | I40: 894.8156841 | J40: -2.363365662 | L40: 865.9438917 | M40: -222.8355181 | N40: 865.9358176 | O40: -172.7120978 | Q40: 886.3441084 | R40: -39.87443353 | S40: 886.3441084 | T40: -8.54727304
B41: 1151.368279 | C41: 1.58995602e-13 | D41: 1151.368279 | E41: 190.1234568 | G41: 996.5386385 | H41: -288.7807191 | I41: 996.4204938 | J41: -2.42635836 | L41: 965.9910194 | M41: -240.5587675 | N41: 965.9828371 | O41: -190.5668983 | Q41: 987.9201765 | R41: -43.11517427 | S41: 987.9201765 | T41: -8.54727304
B42: 1251.379025 | C42: 1.543970479e-13 | D42: 1251.379025 | E42: 206.25 | G42: 1097.831369 | H42: -287.3674129 | I42: 1097.738144 | J42: -2.456744695 | L42: 1066.029307 | M42: -256.6089422 | N42: 1066.021581 | O42: -206.7196808 | Q42: 1089.212157 | R42: -46.04727304 | S42: 1089.212157 | T42: -8.54727304
B43: 1351.387628 | C43: 1.595436002e-13 | D43: 1351.387628 | E43: 220.6790123 | G43: 1198.867548 | H43: -286.0995064 | I43: 1198.796234 | J43: -2.45769453 | L43: 1166.059709 | M43: -270.9844842 | N43: 1166.052835 | O43: -221.1705283 | Q43: 1190.247777 | R43: -48.67072983 | S43: 1190.247777 | T43: -8.54727304
B44: 1451.394325 | C44: 1.861282171e-13 | D44: 1451.394325 | E44: 233.4104938 | G44: 1299.675148 | H44: -284.9778685 | I44: 1299.622644 | J44: -2.432376982 | L44: 1266.083152 | M44: -283.6839543 | N44: 1266.07738 | O44: -233.9196262 | Q44: 1291.054972 | R44: -50.98554464 | S44: 1291.054972 | T44: -8.54727304
B45: 1551.399356 | C45: 2.171412453e-13 | D45: 1551.399356 | E45: 244.4444444 | G45: 1400.282327 | H45: -284.0033542 | I45: 1400.245514 | J45: -2.383950055 | L45: 1366.100543 | M45: -294.7060172 | N45: 1366.095992 | O45: -244.9672541 | Q45: 1391.661871 | R45: -52.99171748 | S45: 1391.661871 | T45: -8.54727304
B46: 1651.402958 | C46: 2.152433345e-13 | D46: 1651.402958 | E46: 253.7808642 | G46: 1500.71741 | H46: -283.1767938 | I46: 1500.693223 | J46: -2.31555001 | L46: 1466.11278 | M46: -304.0494265 | N46: 1466.109455 | O46: -254.3137769 | Q46: 1492.096769 | R46: -54.68924835 | S46: 1492.096769 | T46: -8.54727304
B47: 1751.405369 | C47: 2.053105029e-13 | D47: 1751.405369 | E47: 261.4197531 | G47: 1601.008863 | H47: -282.4989827 | I47: 1600.994363 | J47: -2.230280574 | L47: 1566.120757 | M47: -311.7130096 | N47: 1566.118567 | O47: -261.9596368 | Q47: 1592.388108 | R47: -56.07813724 | S47: 1592.388108 | T47: -8.54727304
B48: 1851.406828 | C48: 2.124683169e-13 | D48: 1851.406828 | E48: 267.3611111 | G48: 1701.185269 | H48: -281.970671 | I48: 1701.177721 | J48: -2.131202076 | L48: 1666.125372 | M48: -317.695654 | N48: 1666.124143 | O48: -267.9053433 | Q48: 1692.564451 | R48: -57.15838415 | S48: 1692.564451 | T48: -8.54727304
B49: 1951.407572 | C49: 2.349396706e-13 | D49: 1951.407572 | E49: 271.6049383 | G49: 1801.275308 | H49: -281.5925529 | I49: 1801.272253 | J49: -2.021320624 | L49: 1766.127531 | M49: -321.9962931 | N49: 1766.127023 | O49: -272.1514636 | Q49: 1792.654461 | R49: -57.92998909 | S49: 1792.654461 | T49: -8.54727304
B50: 2051.40784 | C50: 2.583754094e-13 | D50: 2051.40784 | E50: 274.1512346 | G50: 1901.307731 | H50: -281.3652569 | I50: 1901.307056 | J50: -1.903577433 | L50: 1866.12815 | M50: -324.6138926 | N50: 1866.128072 | O50: -274.6986117 | Q50: 1892.686873 | R50: -58.39295205 | S50: 1892.686873 | T50: -8.54727304
B51: 2151.40787 | C51: 2.511625107e-13 | D51: 2151.40787 | E51: 275 | G51: 2001.311333 | H51: -281.2893356 | I51: 2001.311349 | J51: -1.780838387 | L51: 1966.128161 | M51: -325.547437 | N51: 1966.128191 | O51: -275.547437 | Q51: 1992.690475 | R51: -58.54727304 | S51: 1992.690475 | T51: -8.54727304
B52: 2251.4079 | C52: 2.583754094e-13 | D52: 2251.4079 | E52: 274.1512346 | G52: 2101.314936 | H52: -281.3652569 | I52: 2101.315641 | J52: -1.903577434 | L52: 2066.128172 | M52: -324.6138926 | N52: 2066.12831 | O52: -274.6986117 | Q52: 2092.694077 | R52: -58.39295205 | S52: 2092.694077 | T52: -8.54727304
B53: 2351.408168 | C53: 2.4235044e-13 | D53: 2351.408168 | E53: 271.6049383 | G53: 2201.347359 | H53: -281.5925487 | I53: 2201.350444 | J53: -2.021316358 | L53: 2166.128791 | M53: -321.9962972 | N53: 2166.12936 | O53: -272.1514677 | Q53: 2192.72649 | R53: -57.92998909 | S53: 2192.72649 | T53: -8.54727304
B54: 2451.408912 | C54: 2.877090442e-13 | D54: 2451.408912 | E54: 267.3611111 | G54: 2301.437398 | H54: -281.9706581 | I54: 2301.444976 | J54: -2.131189118 | L54: 2266.130951 | M54: -317.6956707 | N54: 2266.13224 | O54: -267.90536 | Q54: 2292.8165 | R54: -57.15838415 | S54: 2292.8165 | T54: -8.54727304
B55: 2551.41037 | C55: 2.469690969e-13 | D55: 2551.41037 | E55: 261.4197531 | G55: 2401.613804 | H55: -282.4989567 | I55: 2401.628334 | J55: -2.230254552 | L55: 2366.135568 | M55: -311.7130512 | N55: 2366.137817 | O55: -261.9596785 | Q55: 2392.992843 | R55: -56.07813724 | S55: 2392.992843 | T55: -8.54727304
B56: 2651.412782 | C56: 2.685868256e-13 | D56: 2651.412782 | E56: 253.7808642 | G56: 2501.905257 | H56: -283.1767506 | I56: 2501.929475 | J56: -2.315506792 | L56: 2466.143548 | M56: -304.0495085 | N56: 2466.146932 | O56: -254.3138589 | Q56: 2493.284182 | R56: -54.68924835 | S56: 2493.284182 | T56: -8.54727304
B57: 2751.416384 | C57: 2.919020453e-13 | D57: 2751.416384 | E57: 244.4444444 | G57: 2602.34034 | H57: -284.00329 | I57: 2602.377183 | J57: -2.383885916 | L57: 2566.15579 | M57: -294.7061571 | N57: 2566.160401 | O57: -244.967394 | Q57: 2593.71908 | R57: -52.99171748 | S57: 2593.71908 | T57: -8.54727304
B58: 2851.421414 | C58: 3.028376198e-13 | D58: 2851.421414 | E58: 233.4104938 | G58: 2702.94752 | H58: -284.9777803 | I58: 2703.000053 | J58: -2.432288746 | L58: 2666.17319 | M58: -283.6841702 | N58: 2666.179021 | O58: -233.9198422 | Q58: 2694.325979 | R58: -50.98554464 | S58: 2694.325979 | T58: -8.54727304
B59: 2951.428112 | C59: 3.321003801e-13 | D59: 2951.428112 | E59: 220.6790123 | G59: 2803.75512 | H59: -286.0993915 | I59: 2803.826464 | J59: -2.457579676 | L59: 2766.196644 | M59: -270.9847935 | N59: 2766.203578 | O59: -221.1708376 | Q59: 2795.133174 | R59: -48.67072983 | S59: 2795.133174 | T59: -8.54727304
B60: 3051.436715 | C60: 3.34914961e-13 | D60: 3051.436715 | E60: 206.25 | G60: 2904.791299 | H60: -287.3672696 | I60: 2904.884554 | J60: -2.456601439 | L60: 2866.227062 | M60: -256.6093595 | N60: 2866.234848 | O60: -206.720098 | Q60: 2896.168793 | R60: -46.04727304 | S60: 2896.168793 | T60: -8.54727304
B61: 3151.447461 | C61: 3.43429227e-13 | D61: 3151.447461 | E61: 190.1234568 | G61: 3006.08403 | H61: -288.7805464 | I61: 3006.202203 | J61: -2.426185702 | L61: 2966.265368 | M61: -240.5593023 | N61: 2966.273611 | O61: -190.5674332 | Q61: 2997.460774 | R61: -43.11517427 | S61: 2997.460774 | T61: -8.54727304
B62: 3251.460588 | C62: 3.545554282e-13 | D62: 3251.460588 | E62: 172.2993827 | G62: 3107.661077 | H62: -290.3383501 | I62: 3107.807013 | J62: -2.363163407 | L62: 3066.312517 | M62: -222.8361731 | N62: 3066.320652 | O62: -172.7127528 | Q62: 3099.036842 | R62: -39.87443353 | S62: 3099.036842 | T62: -8.54727304
B63: 3351.476334 | C63: 3.823239681e-13 | D63: 3351.476334 | E63: 152.7777778 | G63: 3209.549975 | H63: -292.0398148 | I63: 3209.726283 | J63: -2.264374749 | L63: 3166.369501 | M63: -203.4416557 | N63: 3166.376773 | O63: -153.1560744 | Q63: 3200.924492 | R63: -36.32505082 | S63: 3200.924492 | T63: -8.54727304
B64: 3451.494938 | C64: 3.923740667e-13 | D64: 3451.494938 | E64: 131.558642 | G64: 3311.778012 | H64: -293.8840908 | I64: 3311.986996 | J64: -2.126678718 | L64: 3266.437364 | M64: -182.3775834 | N64: 3266.442804 | O64: -131.8975319 | Q64: 3303.150964 | R64: -32.46702613 | S64: 3303.150964 | T64: -8.54727304
B65: 3551.516637 | C65: 4.045349129e-13 | D65: 3551.516637 | E65: 108.6419753 | G65: 3414.372206 | H65: -295.8703532 | I65: 3414.615798 | J65: -1.946962135 | L65: 3366.517214 | M65: -159.6459568 | N65: 3366.519606 | O65: -108.9373837 | Q65: 3405.743233 | R65: -28.30035946 | S65: 3405.743233 | T65: -8.54727304
B66: 3651.54167 | C66: 4.197695618e-13 | D66: 3651.54167 | E66: 84.02777778 | G66: 3517.359291 | H66: -297.997811 | I66: 3517.638985 | J66: -1.722148093 | L66: 3466.610242 | M66: -135.2489616 | N66: 3466.608089 | O66: -84.27602235 | Q66: 3508.727983 | R66: -23.82505082 | S66: 3508.727983 | T66: -8.54727304
B67: 3751.570273 | C67: 4.548133621e-13 | D67: 3751.570273 | E67: 57.71604938 | G67: 3620.765699 | H67: -300.2657151 | I67: 3621.082486 | J67: -1.449203774 | L67: 3566.717736 | M67: -109.1889883 | N67: 3566.709218 | O67: -57.91398498 | Q67: 3612.131595 | R67: -19.0411002 | S67: 3612.131595 | T67: -8.54727304
B68: 3851.602686 | C68: 4.658768058e-13 | D68: 3851.602686 | E68: 29.70679012 | G68: 3724.617543 | H68: -302.6733657 | I68: 3724.971851 | J68: -1.125147571 | L68: 3666.8411 | M68: -81.46865213 | N68: 3666.824033 | O68: -29.85196441 | Q68: 3715.980132 | R68: -13.94850761 | S68: 3715.980132 | T68: -8.54727304
B69: 3951.639146 | C69: 4.726079785e-13 | D69: 3951.639146 | E69: 4.729986954e-13 | G69: 3828.940603 | H69: -305.2201194 | I69: 3829.332236 | J69: -0.747055495 | L69: 3766.981879 | M69: -52.09081432 | N69: 3766.953655 | O69: -0.0908219748 | Q69: 3820.299322 | R69: -8.54727304 | S69: 3820.299322 | T69: -8.54727304
G70: 3934.200475 | H70: -120.2368819 | I70: 3934.188391 | J70: -0.3109443063 | L70: 3867.141778 | M70: -21.05860358 | N70: 3867.137126 | O70: -0.03614341553
G71: 4002.622697 | H71: 0.0003418427254 | I71: 4002.622697 | J71: 0.0003418427254 | L71: 3932.256383 | M71: -0.0006023520073 | N71: 3932.256383 | O71: -0.0006023520073

Sheet Drawing

Sheet Unfold Offset Table
D1: Xofs | E1: 249 | I1: Xofs | J1: 399 | N1: Xofs | O1: 434 | S1: Xofs | T1: 407 | X1: Xofs | Y1: 0
A2: Offset | B2: 400 | C2: 1000 | D2: Yofs | E2: 0 | I2: Yofs | J2: 608 | N2: Yofs | O2: 0 | S2: Yofs | T2: -1 | X2: Yofs | Y2: 0
A3: Number of Lines | B3: =COUNT(A7:A107) -> 57 | D3: Mirror | E3: 1 | I3: Mirror | J3: 1 | N3: Mirror | O3: -1 | S3: Mirror | T3: 1 | X3: Mirror | Y3: 1
A4: Number of Planks | B4: =Canoe!B4-1 -> 4 | D4: Rotation | E4: 0 | I4: Rotation | J4: 0 | N4: Rotation | O4: 0 | S4: Rotation | T4: 0 | X4: Rotation | Y4: 0
B5: =Canoe!B29 -> Sole | G5: =Canoe!G29 -> Side | L5: =Canoe!L29 -> Deck | Q5: =Canoe!Q29 -> Coaming | V5: =Canoe!V29 -> 0
B6: X Lower | C6: Y Lower | D6: X Upper | E6: Y Upper | G6: X Lower | H6: Y Lower | I6: X Upper | J6: Y Upper | L6: X Lower | M6: Y Lower | N6: X Upper | O6: Y Upper | Q6: X Lower | R6: Y Lower | S6: X Upper | T6: Y Upper | V6: X Lower | W6: Y Lower | X6: X Upper | Y6: Y Upper
A7: 1 | B7: =IF(Canoe!B31<>"",Canoe!B31*COS(RADIANS(E$4))-Canoe!C31*SIN(RADIANS(E$4))+E$1,"") ->  | C7: =IF(Canoe!C31<>"",(Canoe!B31*SIN(RADIANS(E$4))+Canoe!C31*COS(RADIANS(E$4))*E$3)+E$2,"") ->  | D7: =IF(Canoe!D31<>"",Canoe!D31*COS(RADIANS(E$4))-Canoe!E31*SIN(RADIANS(E$4))+E$1,"") ->  | E7: =IF(Canoe!E31<>"",(Canoe!D31*SIN(RADIANS(E$4))+Canoe!E31*COS(RADIANS(E$4))*E$3)+E$2,"") ->  | G7: =IF(Canoe!G31<>"",Canoe!G31*COS(RADIANS(J$4))-Canoe!H31*SIN(RADIANS(J$4))+J$1,"") -> 399 | H7: =IF(Canoe!H31<>"",(Canoe!G31*SIN(RADIANS(J$4))+Canoe!H31*COS(RADIANS(J$4))*J$3)+J$2,"") -> 608 | I7: =IF(Canoe!I31<>"",Canoe!I31*COS(RADIANS(J$4))-Canoe!J31*SIN(RADIANS(J$4))+J$1,"") -> 399 | J7: =IF(Canoe!J31<>"",(Canoe!I31*SIN(RADIANS(J$4))+Canoe!J31*COS(RADIANS(J$4))*J$3)+J$2,"") -> 608 | L7: =IF(Canoe!L31<>"",Canoe!L31*COS(RADIANS(O$4))-Canoe!M31*SIN(RADIANS(O$4))+O$1,"") -> 434 | M7: =IF(Canoe!M31<>"",(Canoe!L31*SIN(RADIANS(O$4))+Canoe!M31*COS(RADIANS(O$4))*O$3)+O$2,"") -> 0 | N7: =IF(Canoe!N31<>"",Canoe!N31*COS(RADIANS(O$4))-Canoe!O31*SIN(RADIANS(O$4))+O$1,"") -> 434 | O7: =IF(Canoe!O31<>"",(Canoe!N31*SIN(RADIANS(O$4))+Canoe!O31*COS(RADIANS(O$4))*O$3)+O$2,"") -> 0 | Q7: =IF(Canoe!Q31<>"",Canoe!Q31*COS(RADIANS(T$4))-Canoe!R31*SIN(RADIANS(T$4))+T$1,"") ->  | R7: =IF(Canoe!R31<>"",(Canoe!Q31*SIN(RADIANS(T$4))+Canoe!R31*COS(RADIANS(T$4))*T$3)+T$2,"") ->  | S7: =IF(Canoe!S31<>"",Canoe!S31*COS(RADIANS(T$4))-Canoe!T31*SIN(RADIANS(T$4))+T$1,"") ->  | T7: =IF(Canoe!T31<>"",(Canoe!S31*SIN(RADIANS(T$4))+Canoe!T31*COS(RADIANS(T$4))*T$3)+T$2,"") ->  | V7: =IF(Canoe!V31<>"",Canoe!V31*COS(RADIANS(Y$4))-Canoe!W31*SIN(RADIANS(Y$4))+Y$1,"") ->  | W7: =IF(Canoe!W31<>"",(Canoe!V31*SIN(RADIANS(Y$4))+Canoe!W31*COS(RADIANS(Y$4))*Y$3)+Y$2,"") ->  | X7: =IF(Canoe!X31<>"",Canoe!X31*COS(RADIANS(Y$4))-Canoe!Y31*SIN(RADIANS(Y$4))+Y$1,"") ->  | Y7: =IF(Canoe!Y31<>"",(Canoe!X31*SIN(RADIANS(Y$4))+Canoe!Y31*COS(RADIANS(Y$4))*Y$3)+Y$2,"") -> 
A8: 2 | B8: =IF(Canoe!B32<>"",Canoe!B32*COS(RADIANS(E$4))-Canoe!C32*SIN(RADIANS(E$4))+E$1,"") ->  | C8: =IF(Canoe!C32<>"",(Canoe!B32*SIN(RADIANS(E$4))+Canoe!C32*COS(RADIANS(E$4))*E$3)+E$2,"") ->  | D8: =IF(Canoe!D32<>"",Canoe!D32*COS(RADIANS(E$4))-Canoe!E32*SIN(RADIANS(E$4))+E$1,"") ->  | E8: =IF(Canoe!E32<>"",(Canoe!D32*SIN(RADIANS(E$4))+Canoe!E32*COS(RADIANS(E$4))*E$3)+E$2,"") ->  | G8: =IF(Canoe!G32<>"",Canoe!G32*COS(RADIANS(J$4))-Canoe!H32*SIN(RADIANS(J$4))+J$1,"") -> 467.4202092 | H8: =IF(Canoe!H32<>"",(Canoe!G32*SIN(RADIANS(J$4))+Canoe!H32*COS(RADIANS(J$4))*J$3)+J$2,"") -> 487.7616308 | I8: =IF(Canoe!I32<>"",Canoe!I32*COS(RADIANS(J$4))-Canoe!J32*SIN(RADIANS(J$4))+J$1,"") -> 467.4343012 | J8: =IF(Canoe!J32<>"",(Canoe!I32*SIN(RADIANS(J$4))+Canoe!J32*COS(RADIANS(J$4))*J$3)+J$2,"") -> 607.6875682 | L8: =IF(Canoe!L32<>"",Canoe!L32*COS(RADIANS(O$4))-Canoe!M32*SIN(RADIANS(O$4))+O$1,"") -> 499.1144877 | M8: =IF(Canoe!M32<>"",(Canoe!L32*SIN(RADIANS(O$4))+Canoe!M32*COS(RADIANS(O$4))*O$3)+O$2,"") -> 21.05836377 | N8: =IF(Canoe!N32<>"",Canoe!N32*COS(RADIANS(O$4))-Canoe!O32*SIN(RADIANS(O$4))+O$1,"") -> 499.1192563 | O8: =IF(Canoe!O32<>"",(Canoe!N32*SIN(RADIANS(O$4))+Canoe!O32*COS(RADIANS(O$4))*O$3)+O$2,"") -> 0.03590363115 | Q8: =IF(Canoe!Q32<>"",Canoe!Q32*COS(RADIANS(T$4))-Canoe!R32*SIN(RADIANS(T$4))+T$1,"") ->  | R8: =IF(Canoe!R32<>"",(Canoe!Q32*SIN(RADIANS(T$4))+Canoe!R32*COS(RADIANS(T$4))*T$3)+T$2,"") ->  | S8: =IF(Canoe!S32<>"",Canoe!S32*COS(RADIANS(T$4))-Canoe!T32*SIN(RADIANS(T$4))+T$1,"") ->  | T8: =IF(Canoe!T32<>"",(Canoe!S32*SIN(RADIANS(T$4))+Canoe!T32*COS(RADIANS(T$4))*T$3)+T$2,"") ->  | V8: =IF(Canoe!V32<>"",Canoe!V32*COS(RADIANS(Y$4))-Canoe!W32*SIN(RADIANS(Y$4))+Y$1,"") ->  | W8: =IF(Canoe!W32<>"",(Canoe!V32*SIN(RADIANS(Y$4))+Canoe!W32*COS(RADIANS(Y$4))*Y$3)+Y$2,"") ->  | X8: =IF(Canoe!X32<>"",Canoe!X32*COS(RADIANS(Y$4))-Canoe!Y32*SIN(RADIANS(Y$4))+Y$1,"") ->  | Y8: =IF(Canoe!Y32<>"",(Canoe!X32*SIN(RADIANS(Y$4))+Canoe!Y32*COS(RADIANS(Y$4))*Y$3)+Y$2,"") -> 
A9: 3 | B9: =IF(Canoe!B33<>"",Canoe!B33*COS(RADIANS(E$4))-Canoe!C33*SIN(RADIANS(E$4))+E$1,"") -> 600.1765938 | C9: =IF(Canoe!C33<>"",(Canoe!B33*SIN(RADIANS(E$4))+Canoe!C33*COS(RADIANS(E$4))*E$3)+E$2,"") -> 2.814284187e-14 | D9: =IF(Canoe!D33<>"",Canoe!D33*COS(RADIANS(E$4))-Canoe!E33*SIN(RADIANS(E$4))+E$1,"") -> 600.1765938 | E9: =IF(Canoe!E33<>"",(Canoe!D33*SIN(RADIANS(E$4))+Canoe!E33*COS(RADIANS(E$4))*E$3)+E$2,"") -> 2.814284187e-14 | G9: =IF(Canoe!G33<>"",Canoe!G33*COS(RADIANS(J$4))-Canoe!H33*SIN(RADIANS(J$4))+J$1,"") -> 572.6820695 | H9: =IF(Canoe!H33<>"",(Canoe!G33*SIN(RADIANS(J$4))+Canoe!H33*COS(RADIANS(J$4))*J$3)+J$2,"") -> 302.7795244 | I9: =IF(Canoe!I33<>"",Canoe!I33*COS(RADIANS(J$4))-Canoe!J33*SIN(RADIANS(J$4))+J$1,"") -> 572.2904607 | J9: =IF(Canoe!J33<>"",(Canoe!I33*SIN(RADIANS(J$4))+Canoe!J33*COS(RADIANS(J$4))*J$3)+J$2,"") -> 607.2525883 | L9: =IF(Canoe!L33<>"",Canoe!L33*COS(RADIANS(O$4))-Canoe!M33*SIN(RADIANS(O$4))+O$1,"") -> 599.2744445 | M9: =IF(Canoe!M33<>"",(Canoe!L33*SIN(RADIANS(O$4))+Canoe!M33*COS(RADIANS(O$4))*O$3)+O$2,"") -> 52.09038671 | N9: =IF(Canoe!N33<>"",Canoe!N33*COS(RADIANS(O$4))-Canoe!O33*SIN(RADIANS(O$4))+O$1,"") -> 599.3027278 | O9: =IF(Canoe!O33<>"",(Canoe!N33*SIN(RADIANS(O$4))+Canoe!O33*COS(RADIANS(O$4))*O$3)+O$2,"") -> 0.09039440268 | Q9: =IF(Canoe!Q33<>"",Canoe!Q33*COS(RADIANS(T$4))-Canoe!R33*SIN(RADIANS(T$4))+T$1,"") -> 572.0816287 | R9: =IF(Canoe!R33<>"",(Canoe!Q33*SIN(RADIANS(T$4))+Canoe!R33*COS(RADIANS(T$4))*T$3)+T$2,"") -> -9.54727304 | S9: =IF(Canoe!S33<>"",Canoe!S33*COS(RADIANS(T$4))-Canoe!T33*SIN(RADIANS(T$4))+T$1,"") -> 572.0816287 | T9: =IF(Canoe!T33<>"",(Canoe!S33*SIN(RADIANS(T$4))+Canoe!T33*COS(RADIANS(T$4))*T$3)+T$2,"") -> -9.54727304 | V9: =IF(Canoe!V33<>"",Canoe!V33*COS(RADIANS(Y$4))-Canoe!W33*SIN(RADIANS(Y$4))+Y$1,"") ->  | W9: =IF(Canoe!W33<>"",(Canoe!V33*SIN(RADIANS(Y$4))+Canoe!W33*COS(RADIANS(Y$4))*Y$3)+Y$2,"") ->  | X9: =IF(Canoe!X33<>"",Canoe!X33*COS(RADIANS(Y$4))-Canoe!Y33*SIN(RADIANS(Y$4))+Y$1,"") ->  | Y9: =IF(Canoe!Y33<>"",(Canoe!X33*SIN(RADIANS(Y$4))+Canoe!Y33*COS(RADIANS(Y$4))*Y$3)+Y$2,"") -> 
A10: 4 | B10: =IF(Canoe!B34<>"",Canoe!B34*COS(RADIANS(E$4))-Canoe!C34*SIN(RADIANS(E$4))+E$1,"") -> 700.2130538 | C10: =IF(Canoe!C34<>"",(Canoe!B34*SIN(RADIANS(E$4))+Canoe!C34*COS(RADIANS(E$4))*E$3)+E$2,"") -> 3.615963549e-14 | D10: =IF(Canoe!D34<>"",Canoe!D34*COS(RADIANS(E$4))-Canoe!E34*SIN(RADIANS(E$4))+E$1,"") -> 700.2130538 | E10: =IF(Canoe!E34<>"",(Canoe!D34*SIN(RADIANS(E$4))+Canoe!E34*COS(RADIANS(E$4))*E$3)+E$2,"") -> 29.70679012 | G10: =IF(Canoe!G34<>"",Canoe!G34*COS(RADIANS(J$4))-Canoe!H34*SIN(RADIANS(J$4))+J$1,"") -> 677.0051288 | H10: =IF(Canoe!H34<>"",(Canoe!G34*SIN(RADIANS(J$4))+Canoe!H34*COS(RADIANS(J$4))*J$3)+J$2,"") -> 305.3262907 | I10: =IF(Canoe!I34<>"",Canoe!I34*COS(RADIANS(J$4))-Canoe!J34*SIN(RADIANS(J$4))+J$1,"") -> 676.6508462 | J10: =IF(Canoe!J34<>"",(Canoe!I34*SIN(RADIANS(J$4))+Canoe!J34*COS(RADIANS(J$4))*J$3)+J$2,"") -> 606.8745088 | L10: =IF(Canoe!L34<>"",Canoe!L34*COS(RADIANS(O$4))-Canoe!M34*SIN(RADIANS(O$4))+O$1,"") -> 699.4153052 | M10: =IF(Canoe!M34<>"",(Canoe!L34*SIN(RADIANS(O$4))+Canoe!M34*COS(RADIANS(O$4))*O$3)+O$2,"") -> 81.46794639 | N10: =IF(Canoe!N34<>"",Canoe!N34*COS(RADIANS(O$4))-Canoe!O34*SIN(RADIANS(O$4))+O$1,"") -> 699.4324321 | O10: =IF(Canoe!O34<>"",(Canoe!N34*SIN(RADIANS(O$4))+Canoe!O34*COS(RADIANS(O$4))*O$3)+O$2,"") -> 29.85125869 | Q10: =IF(Canoe!Q34<>"",Canoe!Q34*COS(RADIANS(T$4))-Canoe!R34*SIN(RADIANS(T$4))+T$1,"") -> 676.4008186 | R10: =IF(Canoe!R34<>"",(Canoe!Q34*SIN(RADIANS(T$4))+Canoe!R34*COS(RADIANS(T$4))*T$3)+T$2,"") -> -14.94850761 | S10: =IF(Canoe!S34<>"",Canoe!S34*COS(RADIANS(T$4))-Canoe!T34*SIN(RADIANS(T$4))+T$1,"") -> 676.4008186 | T10: =IF(Canoe!T34<>"",(Canoe!S34*SIN(RADIANS(T$4))+Canoe!T34*COS(RADIANS(T$4))*T$3)+T$2,"") -> -9.54727304 | V10: =IF(Canoe!V34<>"",Canoe!V34*COS(RADIANS(Y$4))-Canoe!W34*SIN(RADIANS(Y$4))+Y$1,"") ->  | W10: =IF(Canoe!W34<>"",(Canoe!V34*SIN(RADIANS(Y$4))+Canoe!W34*COS(RADIANS(Y$4))*Y$3)+Y$2,"") ->  | X10: =IF(Canoe!X34<>"",Canoe!X34*COS(RADIANS(Y$4))-Canoe!Y34*SIN(RADIANS(Y$4))+Y$1,"") ->  | Y10: =IF(Canoe!Y34<>"",(Canoe!X34*SIN(RADIANS(Y$4))+Canoe!Y34*COS(RADIANS(Y$4))*Y$3)+Y$2,"") -> 
A11: 5 | B11: =IF(Canoe!B35<>"",Canoe!B35*COS(RADIANS(E$4))-Canoe!C35*SIN(RADIANS(E$4))+E$1,"") -> 800.2454666 | C11: =IF(Canoe!C35<>"",(Canoe!B35*SIN(RADIANS(E$4))+Canoe!C35*COS(RADIANS(E$4))*E$3)+E$2,"") -> 5.342958587e-14 | D11: =IF(Canoe!D35<>"",Canoe!D35*COS(RADIANS(E$4))-Canoe!E35*SIN(RADIANS(E$4))+E$1,"") -> 800.2454666 | E11: =IF(Canoe!E35<>"",(Canoe!D35*SIN(RADIANS(E$4))+Canoe!E35*COS(RADIANS(E$4))*E$3)+E$2,"") -> 57.71604938 | G11: =IF(Canoe!G35<>"",Canoe!G35*COS(RADIANS(J$4))-Canoe!H35*SIN(RADIANS(J$4))+J$1,"") -> 780.8569721 | H11: =IF(Canoe!H35<>"",(Canoe!G35*SIN(RADIANS(J$4))+Canoe!H35*COS(RADIANS(J$4))*J$3)+J$2,"") -> 307.7339576 | I11: =IF(Canoe!I35<>"",Canoe!I35*COS(RADIANS(J$4))-Canoe!J35*SIN(RADIANS(J$4))+J$1,"") -> 780.540211 | J11: =IF(Canoe!J35<>"",(Canoe!I35*SIN(RADIANS(J$4))+Canoe!J35*COS(RADIANS(J$4))*J$3)+J$2,"") -> 606.5504689 | L11: =IF(Canoe!L35<>"",Canoe!L35*COS(RADIANS(O$4))-Canoe!M35*SIN(RADIANS(O$4))+O$1,"") -> 799.5387135 | M11: =IF(Canoe!M35<>"",(Canoe!L35*SIN(RADIANS(O$4))+Canoe!M35*COS(RADIANS(O$4))*O$3)+O$2,"") -> 109.1881238 | N11: =IF(Canoe!N35<>"",Canoe!N35*COS(RADIANS(O$4))-Canoe!O35*SIN(RADIANS(O$4))+O$1,"") -> 799.5472912 | O11: =IF(Canoe!O35<>"",(Canoe!N35*SIN(RADIANS(O$4))+Canoe!O35*COS(RADIANS(O$4))*O$3)+O$2,"") -> 57.91312053 | Q11: =IF(Canoe!Q35<>"",Canoe!Q35*COS(RADIANS(T$4))-Canoe!R35*SIN(RADIANS(T$4))+T$1,"") -> 780.2493554 | R11: =IF(Canoe!R35<>"",(Canoe!Q35*SIN(RADIANS(T$4))+Canoe!R35*COS(RADIANS(T$4))*T$3)+T$2,"") -> -20.0411002 | S11: =IF(Canoe!S35<>"",Canoe!S35*COS(RADIANS(T$4))-Canoe!T35*SIN(RADIANS(T$4))+T$1,"") -> 780.2493554 | T11: =IF(Canoe!T35<>"",(Canoe!S35*SIN(RADIANS(T$4))+Canoe!T35*COS(RADIANS(T$4))*T$3)+T$2,"") -> -9.54727304 | V11: =IF(Canoe!V35<>"",Canoe!V35*COS(RADIANS(Y$4))-Canoe!W35*SIN(RADIANS(Y$4))+Y$1,"") ->  | W11: =IF(Canoe!W35<>"",(Canoe!V35*SIN(RADIANS(Y$4))+Canoe!W35*COS(RADIANS(Y$4))*Y$3)+Y$2,"") ->  | X11: =IF(Canoe!X35<>"",Canoe!X35*COS(RADIANS(Y$4))-Canoe!Y35*SIN(RADIANS(Y$4))+Y$1,"") ->  | Y11: =IF(Canoe!Y35<>"",(Canoe!X35*SIN(RADIANS(Y$4))+Canoe!Y35*COS(RADIANS(Y$4))*Y$3)+Y$2,"") -> 
A12: 6 | B12: =IF(Canoe!B36<>"",Canoe!B36*COS(RADIANS(E$4))-Canoe!C36*SIN(RADIANS(E$4))+E$1,"") -> 900.2740703 | C12: =IF(Canoe!C36<>"",(Canoe!B36*SIN(RADIANS(E$4))+Canoe!C36*COS(RADIANS(E$4))*E$3)+E$2,"") -> 8.7575864e-14 | D12: =IF(Canoe!D36<>"",Canoe!D36*COS(RADIANS(E$4))-Canoe!E36*SIN(RADIANS(E$4))+E$1,"") -> 900.2740703 | E12: =IF(Canoe!E36<>"",(Canoe!D36*SIN(RADIANS(E$4))+Canoe!E36*COS(RADIANS(E$4))*E$3)+E$2,"") -> 84.02777778 | G12: =IF(Canoe!G36<>"",Canoe!G36*COS(RADIANS(J$4))-Canoe!H36*SIN(RADIANS(J$4))+J$1,"") -> 884.2633797 | H12: =IF(Canoe!H36<>"",(Canoe!G36*SIN(RADIANS(J$4))+Canoe!H36*COS(RADIANS(J$4))*J$3)+J$2,"") -> 310.0018815 | I12: =IF(Canoe!I36<>"",Canoe!I36*COS(RADIANS(J$4))-Canoe!J36*SIN(RADIANS(J$4))+J$1,"") -> 883.9837123 | J12: =IF(Canoe!J36<>"",(Canoe!I36*SIN(RADIANS(J$4))+Canoe!J36*COS(RADIANS(J$4))*J$3)+J$2,"") -> 606.2775444 | L12: =IF(Canoe!L36<>"",Canoe!L36*COS(RADIANS(O$4))-Canoe!M36*SIN(RADIANS(O$4))+O$1,"") -> 899.6462237 | M12: =IF(Canoe!M36<>"",(Canoe!L36*SIN(RADIANS(O$4))+Canoe!M36*COS(RADIANS(O$4))*O$3)+O$2,"") -> 135.2480329 | N12: =IF(Canoe!N36<>"",Canoe!N36*COS(RADIANS(O$4))-Canoe!O36*SIN(RADIANS(O$4))+O$1,"") -> 899.6484381 | O12: =IF(Canoe!O36<>"",(Canoe!N36*SIN(RADIANS(O$4))+Canoe!O36*COS(RADIANS(O$4))*O$3)+O$2,"") -> 84.27509367 | Q12: =IF(Canoe!Q36<>"",Canoe!Q36*COS(RADIANS(T$4))-Canoe!R36*SIN(RADIANS(T$4))+T$1,"") -> 883.6529678 | R12: =IF(Canoe!R36<>"",(Canoe!Q36*SIN(RADIANS(T$4))+Canoe!R36*COS(RADIANS(T$4))*T$3)+T$2,"") -> -24.82505082 | S12: =IF(Canoe!S36<>"",Canoe!S36*COS(RADIANS(T$4))-Canoe!T36*SIN(RADIANS(T$4))+T$1,"") -> 883.6529678 | T12: =IF(Canoe!T36<>"",(Canoe!S36*SIN(RADIANS(T$4))+Canoe!T36*COS(RADIANS(T$4))*T$3)+T$2,"") -> -9.54727304 | V12: =IF(Canoe!V36<>"",Canoe!V36*COS(RADIANS(Y$4))-Canoe!W36*SIN(RADIANS(Y$4))+Y$1,"") ->  | W12: =IF(Canoe!W36<>"",(Canoe!V36*SIN(RADIANS(Y$4))+Canoe!W36*COS(RADIANS(Y$4))*Y$3)+Y$2,"") ->  | X12: =IF(Canoe!X36<>"",Canoe!X36*COS(RADIANS(Y$4))-Canoe!Y36*SIN(RADIANS(Y$4))+Y$1,"") ->  | Y12: =IF(Canoe!Y36<>"",(Canoe!X36*SIN(RADIANS(Y$4))+Canoe!Y36*COS(RADIANS(Y$4))*Y$3)+Y$2,"") -> 
A13: 7 | B13: =IF(Canoe!B37<>"",Canoe!B37*COS(RADIANS(E$4))-Canoe!C37*SIN(RADIANS(E$4))+E$1,"") -> 1000.299103 | C13: =IF(Canoe!C37<>"",(Canoe!B37*SIN(RADIANS(E$4))+Canoe!C37*COS(RADIANS(E$4))*E$3)+E$2,"") -> 7.315151033e-14 | D13: =IF(Canoe!D37<>"",Canoe!D37*COS(RADIANS(E$4))-Canoe!E37*SIN(RADIANS(E$4))+E$1,"") -> 1000.299103 | E13: =IF(Canoe!E37<>"",(Canoe!D37*SIN(RADIANS(E$4))+Canoe!E37*COS(RADIANS(E$4))*E$3)+E$2,"") -> 108.6419753 | G13: =IF(Canoe!G37<>"",Canoe!G37*COS(RADIANS(J$4))-Canoe!H37*SIN(RADIANS(J$4))+J$1,"") -> 987.2504645 | H13: =IF(Canoe!H37<>"",(Canoe!G37*SIN(RADIANS(J$4))+Canoe!H37*COS(RADIANS(J$4))*J$3)+J$2,"") -> 312.1293623 | I13: =IF(Canoe!I37<>"",Canoe!I37*COS(RADIANS(J$4))-Canoe!J37*SIN(RADIANS(J$4))+J$1,"") -> 987.0068994 | J13: =IF(Canoe!J37<>"",(Canoe!I37*SIN(RADIANS(J$4))+Canoe!J37*COS(RADIANS(J$4))*J$3)+J$2,"") -> 606.0527534 | L13: =IF(Canoe!L37<>"",Canoe!L37*COS(RADIANS(O$4))-Canoe!M37*SIN(RADIANS(O$4))+O$1,"") -> 999.7392497 | M13: =IF(Canoe!M37<>"",(Canoe!L37*SIN(RADIANS(O$4))+Canoe!M37*COS(RADIANS(O$4))*O$3)+O$2,"") -> 159.6450358 | N13: =IF(Canoe!N37<>"",Canoe!N37*COS(RADIANS(O$4))-Canoe!O37*SIN(RADIANS(O$4))+O$1,"") -> 999.7369188 | O13: =IF(Canoe!O37<>"",(Canoe!N37*SIN(RADIANS(O$4))+Canoe!O37*COS(RADIANS(O$4))*O$3)+O$2,"") -> 108.9364627 | Q13: =IF(Canoe!Q37<>"",Canoe!Q37*COS(RADIANS(T$4))-Canoe!R37*SIN(RADIANS(T$4))+T$1,"") -> 986.6377177 | R13: =IF(Canoe!R37<>"",(Canoe!Q37*SIN(RADIANS(T$4))+Canoe!R37*COS(RADIANS(T$4))*T$3)+T$2,"") -> -29.30035946 | S13: =IF(Canoe!S37<>"",Canoe!S37*COS(RADIANS(T$4))-Canoe!T37*SIN(RADIANS(T$4))+T$1,"") -> 986.6377177 | T13: =IF(Canoe!T37<>"",(Canoe!S37*SIN(RADIANS(T$4))+Canoe!T37*COS(RADIANS(T$4))*T$3)+T$2,"") -> -9.54727304 | V13: =IF(Canoe!V37<>"",Canoe!V37*COS(RADIANS(Y$4))-Canoe!W37*SIN(RADIANS(Y$4))+Y$1,"") ->  | W13: =IF(Canoe!W37<>"",(Canoe!V37*SIN(RADIANS(Y$4))+Canoe!W37*COS(RADIANS(Y$4))*Y$3)+Y$2,"") ->  | X13: =IF(Canoe!X37<>"",Canoe!X37*COS(RADIANS(Y$4))-Canoe!Y37*SIN(RADIANS(Y$4))+Y$1,"") ->  | Y13: =IF(Canoe!Y37<>"",(Canoe!X37*SIN(RADIANS(Y$4))+Canoe!Y37*COS(RADIANS(Y$4))*Y$3)+Y$2,"") -> 
A14: 8 | B14: =IF(Canoe!B38<>"",Canoe!B38*COS(RADIANS(E$4))-Canoe!C38*SIN(RADIANS(E$4))+E$1,"") -> 1100.320802 | C14: =IF(Canoe!C38<>"",(Canoe!B38*SIN(RADIANS(E$4))+Canoe!C38*COS(RADIANS(E$4))*E$3)+E$2,"") -> 7.684239862e-14 | D14: =IF(Canoe!D38<>"",Canoe!D38*COS(RADIANS(E$4))-Canoe!E38*SIN(RADIANS(E$4))+E$1,"") -> 1100.320802 | E14: =IF(Canoe!E38<>"",(Canoe!D38*SIN(RADIANS(E$4))+Canoe!E38*COS(RADIANS(E$4))*E$3)+E$2,"") -> 131.558642 | G14: =IF(Canoe!G38<>"",Canoe!G38*COS(RADIANS(J$4))-Canoe!H38*SIN(RADIANS(J$4))+J$1,"") -> 1089.844658 | H14: =IF(Canoe!H38<>"",(Canoe!G38*SIN(RADIANS(J$4))+Canoe!H38*COS(RADIANS(J$4))*J$3)+J$2,"") -> 314.1156503 | I14: =IF(Canoe!I38<>"",Canoe!I38*COS(RADIANS(J$4))-Canoe!J38*SIN(RADIANS(J$4))+J$1,"") -> 1089.635701 | J14: =IF(Canoe!J38<>"",(Canoe!I38*SIN(RADIANS(J$4))+Canoe!J38*COS(RADIANS(J$4))*J$3)+J$2,"") -> 605.8730624 | L14: =IF(Canoe!L38<>"",Canoe!L38*COS(RADIANS(O$4))-Canoe!M38*SIN(RADIANS(O$4))+O$1,"") -> 1099.819087 | M14: =IF(Canoe!M38<>"",(Canoe!L38*SIN(RADIANS(O$4))+Canoe!M38*COS(RADIANS(O$4))*O$3)+O$2,"") -> 182.3767218 | N14: =IF(Canoe!N38<>"",Canoe!N38*COS(RADIANS(O$4))-Canoe!O38*SIN(RADIANS(O$4))+O$1,"") -> 1099.813707 | O14: =IF(Canoe!O38<>"",(Canoe!N38*SIN(RADIANS(O$4))+Canoe!O38*COS(RADIANS(O$4))*O$3)+O$2,"") -> 131.8966703 | Q14: =IF(Canoe!Q38<>"",Canoe!Q38*COS(RADIANS(T$4))-Canoe!R38*SIN(RADIANS(T$4))+T$1,"") -> 1089.229986 | R14: =IF(Canoe!R38<>"",(Canoe!Q38*SIN(RADIANS(T$4))+Canoe!R38*COS(RADIANS(T$4))*T$3)+T$2,"") -> -33.46702613 | S14: =IF(Canoe!S38<>"",Canoe!S38*COS(RADIANS(T$4))-Canoe!T38*SIN(RADIANS(T$4))+T$1,"") -> 1089.229986 | T14: =IF(Canoe!T38<>"",(Canoe!S38*SIN(RADIANS(T$4))+Canoe!T38*COS(RADIANS(T$4))*T$3)+T$2,"") -> -9.54727304 | V14: =IF(Canoe!V38<>"",Canoe!V38*COS(RADIANS(Y$4))-Canoe!W38*SIN(RADIANS(Y$4))+Y$1,"") ->  | W14: =IF(Canoe!W38<>"",(Canoe!V38*SIN(RADIANS(Y$4))+Canoe!W38*COS(RADIANS(Y$4))*Y$3)+Y$2,"") ->  | X14: =IF(Canoe!X38<>"",Canoe!X38*COS(RADIANS(Y$4))-Canoe!Y38*SIN(RADIANS(Y$4))+Y$1,"") ->  | Y14: =IF(Canoe!Y38<>"",(Canoe!X38*SIN(RADIANS(Y$4))+Canoe!Y38*COS(RADIANS(Y$4))*Y$3)+Y$2,"") -> 
A15: 9 | B15: =IF(Canoe!B39<>"",Canoe!B39*COS(RADIANS(E$4))-Canoe!C39*SIN(RADIANS(E$4))+E$1,"") -> 1200.339405 | C15: =IF(Canoe!C39<>"",(Canoe!B39*SIN(RADIANS(E$4))+Canoe!C39*COS(RADIANS(E$4))*E$3)+E$2,"") -> 9.875847761e-14 | D15: =IF(Canoe!D39<>"",Canoe!D39*COS(RADIANS(E$4))-Canoe!E39*SIN(RADIANS(E$4))+E$1,"") -> 1200.339405 | E15: =IF(Canoe!E39<>"",(Canoe!D39*SIN(RADIANS(E$4))+Canoe!E39*COS(RADIANS(E$4))*E$3)+E$2,"") -> 152.7777778 | G15: =IF(Canoe!G39<>"",Canoe!G39*COS(RADIANS(J$4))-Canoe!H39*SIN(RADIANS(J$4))+J$1,"") -> 1192.072694 | H15: =IF(Canoe!H39<>"",(Canoe!G39*SIN(RADIANS(J$4))+Canoe!H39*COS(RADIANS(J$4))*J$3)+J$2,"") -> 315.9599539 | I15: =IF(Canoe!I39<>"",Canoe!I39*COS(RADIANS(J$4))-Canoe!J39*SIN(RADIANS(J$4))+J$1,"") -> 1191.896414 | J15: =IF(Canoe!J39<>"",(Canoe!I39*SIN(RADIANS(J$4))+Canoe!J39*COS(RADIANS(J$4))*J$3)+J$2,"") -> 605.735394 | L15: =IF(Canoe!L39<>"",Canoe!L39*COS(RADIANS(O$4))-Canoe!M39*SIN(RADIANS(O$4))+O$1,"") -> 1199.88693 | M15: =IF(Canoe!M39<>"",(Canoe!L39*SIN(RADIANS(O$4))+Canoe!M39*COS(RADIANS(O$4))*O$3)+O$2,"") -> 203.4408877 | N15: =IF(Canoe!N39<>"",Canoe!N39*COS(RADIANS(O$4))-Canoe!O39*SIN(RADIANS(O$4))+O$1,"") -> 1199.879718 | O15: =IF(Canoe!O39<>"",(Canoe!N39*SIN(RADIANS(O$4))+Canoe!O39*COS(RADIANS(O$4))*O$3)+O$2,"") -> 153.1553065 | Q15: =IF(Canoe!Q39<>"",Canoe!Q39*COS(RADIANS(T$4))-Canoe!R39*SIN(RADIANS(T$4))+T$1,"") -> 1191.456459 | R15: =IF(Canoe!R39<>"",(Canoe!Q39*SIN(RADIANS(T$4))+Canoe!R39*COS(RADIANS(T$4))*T$3)+T$2,"") -> -37.32505082 | S15: =IF(Canoe!S39<>"",Canoe!S39*COS(RADIANS(T$4))-Canoe!T39*SIN(RADIANS(T$4))+T$1,"") -> 1191.456459 | T15: =IF(Canoe!T39<>"",(Canoe!S39*SIN(RADIANS(T$4))+Canoe!T39*COS(RADIANS(T$4))*T$3)+T$2,"") -> -9.54727304 | V15: =IF(Canoe!V39<>"",Canoe!V39*COS(RADIANS(Y$4))-Canoe!W39*SIN(RADIANS(Y$4))+Y$1,"") ->  | W15: =IF(Canoe!W39<>"",(Canoe!V39*SIN(RADIANS(Y$4))+Canoe!W39*COS(RADIANS(Y$4))*Y$3)+Y$2,"") ->  | X15: =IF(Canoe!X39<>"",Canoe!X39*COS(RADIANS(Y$4))-Canoe!Y39*SIN(RADIANS(Y$4))+Y$1,"") ->  | Y15: =IF(Canoe!Y39<>"",(Canoe!X39*SIN(RADIANS(Y$4))+Canoe!Y39*COS(RADIANS(Y$4))*Y$3)+Y$2,"") -> 
A16: 10 | B16: =IF(Canoe!B40<>"",Canoe!B40*COS(RADIANS(E$4))-Canoe!C40*SIN(RADIANS(E$4))+E$1,"") -> 1300.355152 | C16: =IF(Canoe!C40<>"",(Canoe!B40*SIN(RADIANS(E$4))+Canoe!C40*COS(RADIANS(E$4))*E$3)+E$2,"") -> 1.288766579e-13 | D16: =IF(Canoe!D40<>"",Canoe!D40*COS(RADIANS(E$4))-Canoe!E40*SIN(RADIANS(E$4))+E$1,"") -> 1300.355152 | E16: =IF(Canoe!E40<>"",(Canoe!D40*SIN(RADIANS(E$4))+Canoe!E40*COS(RADIANS(E$4))*E$3)+E$2,"") -> 172.2993827 | G16: =IF(Canoe!G40<>"",Canoe!G40*COS(RADIANS(J$4))-Canoe!H40*SIN(RADIANS(J$4))+J$1,"") -> 1293.961592 | H16: =IF(Canoe!H40<>"",(Canoe!G40*SIN(RADIANS(J$4))+Canoe!H40*COS(RADIANS(J$4))*J$3)+J$2,"") -> 317.6614477 | I16: =IF(Canoe!I40<>"",Canoe!I40*COS(RADIANS(J$4))-Canoe!J40*SIN(RADIANS(J$4))+J$1,"") -> 1293.815684 | J16: =IF(Canoe!J40<>"",(Canoe!I40*SIN(RADIANS(J$4))+Canoe!J40*COS(RADIANS(J$4))*J$3)+J$2,"") -> 605.6366343 | L16: =IF(Canoe!L40<>"",Canoe!L40*COS(RADIANS(O$4))-Canoe!M40*SIN(RADIANS(O$4))+O$1,"") -> 1299.943892 | M16: =IF(Canoe!M40<>"",(Canoe!L40*SIN(RADIANS(O$4))+Canoe!M40*COS(RADIANS(O$4))*O$3)+O$2,"") -> 222.8355181 | N16: =IF(Canoe!N40<>"",Canoe!N40*COS(RADIANS(O$4))-Canoe!O40*SIN(RADIANS(O$4))+O$1,"") -> 1299.935818 | O16: =IF(Canoe!O40<>"",(Canoe!N40*SIN(RADIANS(O$4))+Canoe!O40*COS(RADIANS(O$4))*O$3)+O$2,"") -> 172.7120978 | Q16: =IF(Canoe!Q40<>"",Canoe!Q40*COS(RADIANS(T$4))-Canoe!R40*SIN(RADIANS(T$4))+T$1,"") -> 1293.344108 | R16: =IF(Canoe!R40<>"",(Canoe!Q40*SIN(RADIANS(T$4))+Canoe!R40*COS(RADIANS(T$4))*T$3)+T$2,"") -> -40.87443353 | S16: =IF(Canoe!S40<>"",Canoe!S40*COS(RADIANS(T$4))-Canoe!T40*SIN(RADIANS(T$4))+T$1,"") -> 1293.344108 | T16: =IF(Canoe!T40<>"",(Canoe!S40*SIN(RADIANS(T$4))+Canoe!T40*COS(RADIANS(T$4))*T$3)+T$2,"") -> -9.54727304 | V16: =IF(Canoe!V40<>"",Canoe!V40*COS(RADIANS(Y$4))-Canoe!W40*SIN(RADIANS(Y$4))+Y$1,"") ->  | W16: =IF(Canoe!W40<>"",(Canoe!V40*SIN(RADIANS(Y$4))+Canoe!W40*COS(RADIANS(Y$4))*Y$3)+Y$2,"") ->  | X16: =IF(Canoe!X40<>"",Canoe!X40*COS(RADIANS(Y$4))-Canoe!Y40*SIN(RADIANS(Y$4))+Y$1,"") ->  | Y16: =IF(Canoe!Y40<>"",(Canoe!X40*SIN(RADIANS(Y$4))+Canoe!Y40*COS(RADIANS(Y$4))*Y$3)+Y$2,"") -> 
A17: 11 | B17: =IF(Canoe!B41<>"",Canoe!B41*COS(RADIANS(E$4))-Canoe!C41*SIN(RADIANS(E$4))+E$1,"") -> 1400.368279 | C17: =IF(Canoe!C41<>"",(Canoe!B41*SIN(RADIANS(E$4))+Canoe!C41*COS(RADIANS(E$4))*E$3)+E$2,"") -> 1.58995602e-13 | D17: =IF(Canoe!D41<>"",Canoe!D41*COS(RADIANS(E$4))-Canoe!E41*SIN(RADIANS(E$4))+E$1,"") -> 1400.368279 | E17: =IF(Canoe!E41<>"",(Canoe!D41*SIN(RADIANS(E$4))+Canoe!E41*COS(RADIANS(E$4))*E$3)+E$2,"") -> 190.1234568 | G17: =IF(Canoe!G41<>"",Canoe!G41*COS(RADIANS(J$4))-Canoe!H41*SIN(RADIANS(J$4))+J$1,"") -> 1395.538638 | H17: =IF(Canoe!H41<>"",(Canoe!G41*SIN(RADIANS(J$4))+Canoe!H41*COS(RADIANS(J$4))*J$3)+J$2,"") -> 319.2192809 | I17: =IF(Canoe!I41<>"",Canoe!I41*COS(RADIANS(J$4))-Canoe!J41*SIN(RADIANS(J$4))+J$1,"") -> 1395.420494 | J17: =IF(Canoe!J41<>"",(Canoe!I41*SIN(RADIANS(J$4))+Canoe!J41*COS(RADIANS(J$4))*J$3)+J$2,"") -> 605.5736416 | L17: =IF(Canoe!L41<>"",Canoe!L41*COS(RADIANS(O$4))-Canoe!M41*SIN(RADIANS(O$4))+O$1,"") -> 1399.991019 | M17: =IF(Canoe!M41<>"",(Canoe!L41*SIN(RADIANS(O$4))+Canoe!M41*COS(RADIANS(O$4))*O$3)+O$2,"") -> 240.5587675 | N17: =IF(Canoe!N41<>"",Canoe!N41*COS(RADIANS(O$4))-Canoe!O41*SIN(RADIANS(O$4))+O$1,"") -> 1399.982837 | O17: =IF(Canoe!O41<>"",(Canoe!N41*SIN(RADIANS(O$4))+Canoe!O41*COS(RADIANS(O$4))*O$3)+O$2,"") -> 190.5668983 | Q17: =IF(Canoe!Q41<>"",Canoe!Q41*COS(RADIANS(T$4))-Canoe!R41*SIN(RADIANS(T$4))+T$1,"") -> 1394.920177 | R17: =IF(Canoe!R41<>"",(Canoe!Q41*SIN(RADIANS(T$4))+Canoe!R41*COS(RADIANS(T$4))*T$3)+T$2,"") -> -44.11517427 | S17: =IF(Canoe!S41<>"",Canoe!S41*COS(RADIANS(T$4))-Canoe!T41*SIN(RADIANS(T$4))+T$1,"") -> 1394.920177 | T17: =IF(Canoe!T41<>"",(Canoe!S41*SIN(RADIANS(T$4))+Canoe!T41*COS(RADIANS(T$4))*T$3)+T$2,"") -> -9.54727304 | V17: =IF(Canoe!V41<>"",Canoe!V41*COS(RADIANS(Y$4))-Canoe!W41*SIN(RADIANS(Y$4))+Y$1,"") ->  | W17: =IF(Canoe!W41<>"",(Canoe!V41*SIN(RADIANS(Y$4))+Canoe!W41*COS(RADIANS(Y$4))*Y$3)+Y$2,"") ->  | X17: =IF(Canoe!X41<>"",Canoe!X41*COS(RADIANS(Y$4))-Canoe!Y41*SIN(RADIANS(Y$4))+Y$1,"") ->  | Y17: =IF(Canoe!Y41<>"",(Canoe!X41*SIN(RADIANS(Y$4))+Canoe!Y41*COS(RADIANS(Y$4))*Y$3)+Y$2,"") -> 
A18: 12 | B18: =IF(Canoe!B42<>"",Canoe!B42*COS(RADIANS(E$4))-Canoe!C42*SIN(RADIANS(E$4))+E$1,"") -> 1500.379025 | C18: =IF(Canoe!C42<>"",(Canoe!B42*SIN(RADIANS(E$4))+Canoe!C42*COS(RADIANS(E$4))*E$3)+E$2,"") -> 1.543970479e-13 | D18: =IF(Canoe!D42<>"",Canoe!D42*COS(RADIANS(E$4))-Canoe!E42*SIN(RADIANS(E$4))+E$1,"") -> 1500.379025 | E18: =IF(Canoe!E42<>"",(Canoe!D42*SIN(RADIANS(E$4))+Canoe!E42*COS(RADIANS(E$4))*E$3)+E$2,"") -> 206.25 | G18: =IF(Canoe!G42<>"",Canoe!G42*COS(RADIANS(J$4))-Canoe!H42*SIN(RADIANS(J$4))+J$1,"") -> 1496.831369 | H18: =IF(Canoe!H42<>"",(Canoe!G42*SIN(RADIANS(J$4))+Canoe!H42*COS(RADIANS(J$4))*J$3)+J$2,"") -> 320.6325871 | I18: =IF(Canoe!I42<>"",Canoe!I42*COS(RADIANS(J$4))-Canoe!J42*SIN(RADIANS(J$4))+J$1,"") -> 1496.738144 | J18: =IF(Canoe!J42<>"",(Canoe!I42*SIN(RADIANS(J$4))+Canoe!J42*COS(RADIANS(J$4))*J$3)+J$2,"") -> 605.5432553 | L18: =IF(Canoe!L42<>"",Canoe!L42*COS(RADIANS(O$4))-Canoe!M42*SIN(RADIANS(O$4))+O$1,"") -> 1500.029307 | M18: =IF(Canoe!M42<>"",(Canoe!L42*SIN(RADIANS(O$4))+Canoe!M42*COS(RADIANS(O$4))*O$3)+O$2,"") -> 256.6089422 | N18: =IF(Canoe!N42<>"",Canoe!N42*COS(RADIANS(O$4))-Canoe!O42*SIN(RADIANS(O$4))+O$1,"") -> 1500.021581 | O18: =IF(Canoe!O42<>"",(Canoe!N42*SIN(RADIANS(O$4))+Canoe!O42*COS(RADIANS(O$4))*O$3)+O$2,"") -> 206.7196808 | Q18: =IF(Canoe!Q42<>"",Canoe!Q42*COS(RADIANS(T$4))-Canoe!R42*SIN(RADIANS(T$4))+T$1,"") -> 1496.212157 | R18: =IF(Canoe!R42<>"",(Canoe!Q42*SIN(RADIANS(T$4))+Canoe!R42*COS(RADIANS(T$4))*T$3)+T$2,"") -> -47.04727304 | S18: =IF(Canoe!S42<>"",Canoe!S42*COS(RADIANS(T$4))-Canoe!T42*SIN(RADIANS(T$4))+T$1,"") -> 1496.212157 | T18: =IF(Canoe!T42<>"",(Canoe!S42*SIN(RADIANS(T$4))+Canoe!T42*COS(RADIANS(T$4))*T$3)+T$2,"") -> -9.54727304 | V18: =IF(Canoe!V42<>"",Canoe!V42*COS(RADIANS(Y$4))-Canoe!W42*SIN(RADIANS(Y$4))+Y$1,"") ->  | W18: =IF(Canoe!W42<>"",(Canoe!V42*SIN(RADIANS(Y$4))+Canoe!W42*COS(RADIANS(Y$4))*Y$3)+Y$2,"") ->  | X18: =IF(Canoe!X42<>"",Canoe!X42*COS(RADIANS(Y$4))-Canoe!Y42*SIN(RADIANS(Y$4))+Y$1,"") ->  | Y18: =IF(Canoe!Y42<>"",(Canoe!X42*SIN(RADIANS(Y$4))+Canoe!Y42*COS(RADIANS(Y$4))*Y$3)+Y$2,"") -> 
A19: 13 | B19: =IF(Canoe!B43<>"",Canoe!B43*COS(RADIANS(E$4))-Canoe!C43*SIN(RADIANS(E$4))+E$1,"") -> 1600.387628 | C19: =IF(Canoe!C43<>"",(Canoe!B43*SIN(RADIANS(E$4))+Canoe!C43*COS(RADIANS(E$4))*E$3)+E$2,"") -> 1.595436002e-13 | D19: =IF(Canoe!D43<>"",Canoe!D43*COS(RADIANS(E$4))-Canoe!E43*SIN(RADIANS(E$4))+E$1,"") -> 1600.387628 | E19: =IF(Canoe!E43<>"",(Canoe!D43*SIN(RADIANS(E$4))+Canoe!E43*COS(RADIANS(E$4))*E$3)+E$2,"") -> 220.6790123 | G19: =IF(Canoe!G43<>"",Canoe!G43*COS(RADIANS(J$4))-Canoe!H43*SIN(RADIANS(J$4))+J$1,"") -> 1597.867548 | H19: =IF(Canoe!H43<>"",(Canoe!G43*SIN(RADIANS(J$4))+Canoe!H43*COS(RADIANS(J$4))*J$3)+J$2,"") -> 321.9004936 | I19: =IF(Canoe!I43<>"",Canoe!I43*COS(RADIANS(J$4))-Canoe!J43*SIN(RADIANS(J$4))+J$1,"") -> 1597.796234 | J19: =IF(Canoe!J43<>"",(Canoe!I43*SIN(RADIANS(J$4))+Canoe!J43*COS(RADIANS(J$4))*J$3)+J$2,"") -> 605.5423055 | L19: =IF(Canoe!L43<>"",Canoe!L43*COS(RADIANS(O$4))-Canoe!M43*SIN(RADIANS(O$4))+O$1,"") -> 1600.059709 | M19: =IF(Canoe!M43<>"",(Canoe!L43*SIN(RADIANS(O$4))+Canoe!M43*COS(RADIANS(O$4))*O$3)+O$2,"") -> 270.9844842 | N19: =IF(Canoe!N43<>"",Canoe!N43*COS(RADIANS(O$4))-Canoe!O43*SIN(RADIANS(O$4))+O$1,"") -> 1600.052835 | O19: =IF(Canoe!O43<>"",(Canoe!N43*SIN(RADIANS(O$4))+Canoe!O43*COS(RADIANS(O$4))*O$3)+O$2,"") -> 221.1705283 | Q19: =IF(Canoe!Q43<>"",Canoe!Q43*COS(RADIANS(T$4))-Canoe!R43*SIN(RADIANS(T$4))+T$1,"") -> 1597.247777 | R19: =IF(Canoe!R43<>"",(Canoe!Q43*SIN(RADIANS(T$4))+Canoe!R43*COS(RADIANS(T$4))*T$3)+T$2,"") -> -49.67072983 | S19: =IF(Canoe!S43<>"",Canoe!S43*COS(RADIANS(T$4))-Canoe!T43*SIN(RADIANS(T$4))+T$1,"") -> 1597.247777 | T19: =IF(Canoe!T43<>"",(Canoe!S43*SIN(RADIANS(T$4))+Canoe!T43*COS(RADIANS(T$4))*T$3)+T$2,"") -> -9.54727304 | V19: =IF(Canoe!V43<>"",Canoe!V43*COS(RADIANS(Y$4))-Canoe!W43*SIN(RADIANS(Y$4))+Y$1,"") ->  | W19: =IF(Canoe!W43<>"",(Canoe!V43*SIN(RADIANS(Y$4))+Canoe!W43*COS(RADIANS(Y$4))*Y$3)+Y$2,"") ->  | X19: =IF(Canoe!X43<>"",Canoe!X43*COS(RADIANS(Y$4))-Canoe!Y43*SIN(RADIANS(Y$4))+Y$1,"") ->  | Y19: =IF(Canoe!Y43<>"",(Canoe!X43*SIN(RADIANS(Y$4))+Canoe!Y43*COS(RADIANS(Y$4))*Y$3)+Y$2,"") -> 
A20: 14 | B20: =IF(Canoe!B44<>"",Canoe!B44*COS(RADIANS(E$4))-Canoe!C44*SIN(RADIANS(E$4))+E$1,"") -> 1700.394325 | C20: =IF(Canoe!C44<>"",(Canoe!B44*SIN(RADIANS(E$4))+Canoe!C44*COS(RADIANS(E$4))*E$3)+E$2,"") -> 1.861282171e-13 | D20: =IF(Canoe!D44<>"",Canoe!D44*COS(RADIANS(E$4))-Canoe!E44*SIN(RADIANS(E$4))+E$1,"") -> 1700.394325 | E20: =IF(Canoe!E44<>"",(Canoe!D44*SIN(RADIANS(E$4))+Canoe!E44*COS(RADIANS(E$4))*E$3)+E$2,"") -> 233.4104938 | G20: =IF(Canoe!G44<>"",Canoe!G44*COS(RADIANS(J$4))-Canoe!H44*SIN(RADIANS(J$4))+J$1,"") -> 1698.675148 | H20: =IF(Canoe!H44<>"",(Canoe!G44*SIN(RADIANS(J$4))+Canoe!H44*COS(RADIANS(J$4))*J$3)+J$2,"") -> 323.0221315 | I20: =IF(Canoe!I44<>"",Canoe!I44*COS(RADIANS(J$4))-Canoe!J44*SIN(RADIANS(J$4))+J$1,"") -> 1698.622644 | J20: =IF(Canoe!J44<>"",(Canoe!I44*SIN(RADIANS(J$4))+Canoe!J44*COS(RADIANS(J$4))*J$3)+J$2,"") -> 605.567623 | L20: =IF(Canoe!L44<>"",Canoe!L44*COS(RADIANS(O$4))-Canoe!M44*SIN(RADIANS(O$4))+O$1,"") -> 1700.083152 | M20: =IF(Canoe!M44<>"",(Canoe!L44*SIN(RADIANS(O$4))+Canoe!M44*COS(RADIANS(O$4))*O$3)+O$2,"") -> 283.6839543 | N20: =IF(Canoe!N44<>"",Canoe!N44*COS(RADIANS(O$4))-Canoe!O44*SIN(RADIANS(O$4))+O$1,"") -> 1700.07738 | O20: =IF(Canoe!O44<>"",(Canoe!N44*SIN(RADIANS(O$4))+Canoe!O44*COS(RADIANS(O$4))*O$3)+O$2,"") -> 233.9196262 | Q20: =IF(Canoe!Q44<>"",Canoe!Q44*COS(RADIANS(T$4))-Canoe!R44*SIN(RADIANS(T$4))+T$1,"") -> 1698.054972 | R20: =IF(Canoe!R44<>"",(Canoe!Q44*SIN(RADIANS(T$4))+Canoe!R44*COS(RADIANS(T$4))*T$3)+T$2,"") -> -51.98554464 | S20: =IF(Canoe!S44<>"",Canoe!S44*COS(RADIANS(T$4))-Canoe!T44*SIN(RADIANS(T$4))+T$1,"") -> 1698.054972 | T20: =IF(Canoe!T44<>"",(Canoe!S44*SIN(RADIANS(T$4))+Canoe!T44*COS(RADIANS(T$4))*T$3)+T$2,"") -> -9.54727304 | V20: =IF(Canoe!V44<>"",Canoe!V44*COS(RADIANS(Y$4))-Canoe!W44*SIN(RADIANS(Y$4))+Y$1,"") ->  | W20: =IF(Canoe!W44<>"",(Canoe!V44*SIN(RADIANS(Y$4))+Canoe!W44*COS(RADIANS(Y$4))*Y$3)+Y$2,"") ->  | X20: =IF(Canoe!X44<>"",Canoe!X44*COS(RADIANS(Y$4))-Canoe!Y44*SIN(RADIANS(Y$4))+Y$1,"") ->  | Y20: =IF(Canoe!Y44<>"",(Canoe!X44*SIN(RADIANS(Y$4))+Canoe!Y44*COS(RADIANS(Y$4))*Y$3)+Y$2,"") -> 
A21: 15 | B21: =IF(Canoe!B45<>"",Canoe!B45*COS(RADIANS(E$4))-Canoe!C45*SIN(RADIANS(E$4))+E$1,"") -> 1800.399356 | C21: =IF(Canoe!C45<>"",(Canoe!B45*SIN(RADIANS(E$4))+Canoe!C45*COS(RADIANS(E$4))*E$3)+E$2,"") -> 2.171412453e-13 | D21: =IF(Canoe!D45<>"",Canoe!D45*COS(RADIANS(E$4))-Canoe!E45*SIN(RADIANS(E$4))+E$1,"") -> 1800.399356 | E21: =IF(Canoe!E45<>"",(Canoe!D45*SIN(RADIANS(E$4))+Canoe!E45*COS(RADIANS(E$4))*E$3)+E$2,"") -> 244.4444444 | G21: =IF(Canoe!G45<>"",Canoe!G45*COS(RADIANS(J$4))-Canoe!H45*SIN(RADIANS(J$4))+J$1,"") -> 1799.282327 | H21: =IF(Canoe!H45<>"",(Canoe!G45*SIN(RADIANS(J$4))+Canoe!H45*COS(RADIANS(J$4))*J$3)+J$2,"") -> 323.9966458 | I21: =IF(Canoe!I45<>"",Canoe!I45*COS(RADIANS(J$4))-Canoe!J45*SIN(RADIANS(J$4))+J$1,"") -> 1799.245514 | J21: =IF(Canoe!J45<>"",(Canoe!I45*SIN(RADIANS(J$4))+Canoe!J45*COS(RADIANS(J$4))*J$3)+J$2,"") -> 605.6160499 | L21: =IF(Canoe!L45<>"",Canoe!L45*COS(RADIANS(O$4))-Canoe!M45*SIN(RADIANS(O$4))+O$1,"") -> 1800.100543 | M21: =IF(Canoe!M45<>"",(Canoe!L45*SIN(RADIANS(O$4))+Canoe!M45*COS(RADIANS(O$4))*O$3)+O$2,"") -> 294.7060172 | N21: =IF(Canoe!N45<>"",Canoe!N45*COS(RADIANS(O$4))-Canoe!O45*SIN(RADIANS(O$4))+O$1,"") -> 1800.095992 | O21: =IF(Canoe!O45<>"",(Canoe!N45*SIN(RADIANS(O$4))+Canoe!O45*COS(RADIANS(O$4))*O$3)+O$2,"") -> 244.9672541 | Q21: =IF(Canoe!Q45<>"",Canoe!Q45*COS(RADIANS(T$4))-Canoe!R45*SIN(RADIANS(T$4))+T$1,"") -> 1798.661871 | R21: =IF(Canoe!R45<>"",(Canoe!Q45*SIN(RADIANS(T$4))+Canoe!R45*COS(RADIANS(T$4))*T$3)+T$2,"") -> -53.99171748 | S21: =IF(Canoe!S45<>"",Canoe!S45*COS(RADIANS(T$4))-Canoe!T45*SIN(RADIANS(T$4))+T$1,"") -> 1798.661871 | T21: =IF(Canoe!T45<>"",(Canoe!S45*SIN(RADIANS(T$4))+Canoe!T45*COS(RADIANS(T$4))*T$3)+T$2,"") -> -9.54727304 | V21: =IF(Canoe!V45<>"",Canoe!V45*COS(RADIANS(Y$4))-Canoe!W45*SIN(RADIANS(Y$4))+Y$1,"") ->  | W21: =IF(Canoe!W45<>"",(Canoe!V45*SIN(RADIANS(Y$4))+Canoe!W45*COS(RADIANS(Y$4))*Y$3)+Y$2,"") ->  | X21: =IF(Canoe!X45<>"",Canoe!X45*COS(RADIANS(Y$4))-Canoe!Y45*SIN(RADIANS(Y$4))+Y$1,"") ->  | Y21: =IF(Canoe!Y45<>"",(Canoe!X45*SIN(RADIANS(Y$4))+Canoe!Y45*COS(RADIANS(Y$4))*Y$3)+Y$2,"") -> 
A22: 16 | B22: =IF(Canoe!B46<>"",Canoe!B46*COS(RADIANS(E$4))-Canoe!C46*SIN(RADIANS(E$4))+E$1,"") -> 1900.402958 | C22: =IF(Canoe!C46<>"",(Canoe!B46*SIN(RADIANS(E$4))+Canoe!C46*COS(RADIANS(E$4))*E$3)+E$2,"") -> 2.152433345e-13 | D22: =IF(Canoe!D46<>"",Canoe!D46*COS(RADIANS(E$4))-Canoe!E46*SIN(RADIANS(E$4))+E$1,"") -> 1900.402958 | E22: =IF(Canoe!E46<>"",(Canoe!D46*SIN(RADIANS(E$4))+Canoe!E46*COS(RADIANS(E$4))*E$3)+E$2,"") -> 253.7808642 | G22: =IF(Canoe!G46<>"",Canoe!G46*COS(RADIANS(J$4))-Canoe!H46*SIN(RADIANS(J$4))+J$1,"") -> 1899.71741 | H22: =IF(Canoe!H46<>"",(Canoe!G46*SIN(RADIANS(J$4))+Canoe!H46*COS(RADIANS(J$4))*J$3)+J$2,"") -> 324.8232062 | I22: =IF(Canoe!I46<>"",Canoe!I46*COS(RADIANS(J$4))-Canoe!J46*SIN(RADIANS(J$4))+J$1,"") -> 1899.693223 | J22: =IF(Canoe!J46<>"",(Canoe!I46*SIN(RADIANS(J$4))+Canoe!J46*COS(RADIANS(J$4))*J$3)+J$2,"") -> 605.68445 | L22: =IF(Canoe!L46<>"",Canoe!L46*COS(RADIANS(O$4))-Canoe!M46*SIN(RADIANS(O$4))+O$1,"") -> 1900.11278 | M22: =IF(Canoe!M46<>"",(Canoe!L46*SIN(RADIANS(O$4))+Canoe!M46*COS(RADIANS(O$4))*O$3)+O$2,"") -> 304.0494265 | N22: =IF(Canoe!N46<>"",Canoe!N46*COS(RADIANS(O$4))-Canoe!O46*SIN(RADIANS(O$4))+O$1,"") -> 1900.109455 | O22: =IF(Canoe!O46<>"",(Canoe!N46*SIN(RADIANS(O$4))+Canoe!O46*COS(RADIANS(O$4))*O$3)+O$2,"") -> 254.3137769 | Q22: =IF(Canoe!Q46<>"",Canoe!Q46*COS(RADIANS(T$4))-Canoe!R46*SIN(RADIANS(T$4))+T$1,"") -> 1899.096769 | R22: =IF(Canoe!R46<>"",(Canoe!Q46*SIN(RADIANS(T$4))+Canoe!R46*COS(RADIANS(T$4))*T$3)+T$2,"") -> -55.68924835 | S22: =IF(Canoe!S46<>"",Canoe!S46*COS(RADIANS(T$4))-Canoe!T46*SIN(RADIANS(T$4))+T$1,"") -> 1899.096769 | T22: =IF(Canoe!T46<>"",(Canoe!S46*SIN(RADIANS(T$4))+Canoe!T46*COS(RADIANS(T$4))*T$3)+T$2,"") -> -9.54727304 | V22: =IF(Canoe!V46<>"",Canoe!V46*COS(RADIANS(Y$4))-Canoe!W46*SIN(RADIANS(Y$4))+Y$1,"") ->  | W22: =IF(Canoe!W46<>"",(Canoe!V46*SIN(RADIANS(Y$4))+Canoe!W46*COS(RADIANS(Y$4))*Y$3)+Y$2,"") ->  | X22: =IF(Canoe!X46<>"",Canoe!X46*COS(RADIANS(Y$4))-Canoe!Y46*SIN(RADIANS(Y$4))+Y$1,"") ->  | Y22: =IF(Canoe!Y46<>"",(Canoe!X46*SIN(RADIANS(Y$4))+Canoe!Y46*COS(RADIANS(Y$4))*Y$3)+Y$2,"") -> 
A23: 17 | B23: =IF(Canoe!B47<>"",Canoe!B47*COS(RADIANS(E$4))-Canoe!C47*SIN(RADIANS(E$4))+E$1,"") -> 2000.405369 | C23: =IF(Canoe!C47<>"",(Canoe!B47*SIN(RADIANS(E$4))+Canoe!C47*COS(RADIANS(E$4))*E$3)+E$2,"") -> 2.053105029e-13 | D23: =IF(Canoe!D47<>"",Canoe!D47*COS(RADIANS(E$4))-Canoe!E47*SIN(RADIANS(E$4))+E$1,"") -> 2000.405369 | E23: =IF(Canoe!E47<>"",(Canoe!D47*SIN(RADIANS(E$4))+Canoe!E47*COS(RADIANS(E$4))*E$3)+E$2,"") -> 261.4197531 | G23: =IF(Canoe!G47<>"",Canoe!G47*COS(RADIANS(J$4))-Canoe!H47*SIN(RADIANS(J$4))+J$1,"") -> 2000.008863 | H23: =IF(Canoe!H47<>"",(Canoe!G47*SIN(RADIANS(J$4))+Canoe!H47*COS(RADIANS(J$4))*J$3)+J$2,"") -> 325.5010173 | I23: =IF(Canoe!I47<>"",Canoe!I47*COS(RADIANS(J$4))-Canoe!J47*SIN(RADIANS(J$4))+J$1,"") -> 1999.994363 | J23: =IF(Canoe!J47<>"",(Canoe!I47*SIN(RADIANS(J$4))+Canoe!J47*COS(RADIANS(J$4))*J$3)+J$2,"") -> 605.7697194 | L23: =IF(Canoe!L47<>"",Canoe!L47*COS(RADIANS(O$4))-Canoe!M47*SIN(RADIANS(O$4))+O$1,"") -> 2000.120757 | M23: =IF(Canoe!M47<>"",(Canoe!L47*SIN(RADIANS(O$4))+Canoe!M47*COS(RADIANS(O$4))*O$3)+O$2,"") -> 311.7130096 | N23: =IF(Canoe!N47<>"",Canoe!N47*COS(RADIANS(O$4))-Canoe!O47*SIN(RADIANS(O$4))+O$1,"") -> 2000.118567 | O23: =IF(Canoe!O47<>"",(Canoe!N47*SIN(RADIANS(O$4))+Canoe!O47*COS(RADIANS(O$4))*O$3)+O$2,"") -> 261.9596368 | Q23: =IF(Canoe!Q47<>"",Canoe!Q47*COS(RADIANS(T$4))-Canoe!R47*SIN(RADIANS(T$4))+T$1,"") -> 1999.388108 | R23: =IF(Canoe!R47<>"",(Canoe!Q47*SIN(RADIANS(T$4))+Canoe!R47*COS(RADIANS(T$4))*T$3)+T$2,"") -> -57.07813724 | S23: =IF(Canoe!S47<>"",Canoe!S47*COS(RADIANS(T$4))-Canoe!T47*SIN(RADIANS(T$4))+T$1,"") -> 1999.388108 | T23: =IF(Canoe!T47<>"",(Canoe!S47*SIN(RADIANS(T$4))+Canoe!T47*COS(RADIANS(T$4))*T$3)+T$2,"") -> -9.54727304 | V23: =IF(Canoe!V47<>"",Canoe!V47*COS(RADIANS(Y$4))-Canoe!W47*SIN(RADIANS(Y$4))+Y$1,"") ->  | W23: =IF(Canoe!W47<>"",(Canoe!V47*SIN(RADIANS(Y$4))+Canoe!W47*COS(RADIANS(Y$4))*Y$3)+Y$2,"") ->  | X23: =IF(Canoe!X47<>"",Canoe!X47*COS(RADIANS(Y$4))-Canoe!Y47*SIN(RADIANS(Y$4))+Y$1,"") ->  | Y23: =IF(Canoe!Y47<>"",(Canoe!X47*SIN(RADIANS(Y$4))+Canoe!Y47*COS(RADIANS(Y$4))*Y$3)+Y$2,"") -> 
A24: 18 | B24: =IF(Canoe!B48<>"",Canoe!B48*COS(RADIANS(E$4))-Canoe!C48*SIN(RADIANS(E$4))+E$1,"") -> 2100.406828 | C24: =IF(Canoe!C48<>"",(Canoe!B48*SIN(RADIANS(E$4))+Canoe!C48*COS(RADIANS(E$4))*E$3)+E$2,"") -> 2.124683169e-13 | D24: =IF(Canoe!D48<>"",Canoe!D48*COS(RADIANS(E$4))-Canoe!E48*SIN(RADIANS(E$4))+E$1,"") -> 2100.406828 | E24: =IF(Canoe!E48<>"",(Canoe!D48*SIN(RADIANS(E$4))+Canoe!E48*COS(RADIANS(E$4))*E$3)+E$2,"") -> 267.3611111 | G24: =IF(Canoe!G48<>"",Canoe!G48*COS(RADIANS(J$4))-Canoe!H48*SIN(RADIANS(J$4))+J$1,"") -> 2100.185269 | H24: =IF(Canoe!H48<>"",(Canoe!G48*SIN(RADIANS(J$4))+Canoe!H48*COS(RADIANS(J$4))*J$3)+J$2,"") -> 326.029329 | I24: =IF(Canoe!I48<>"",Canoe!I48*COS(RADIANS(J$4))-Canoe!J48*SIN(RADIANS(J$4))+J$1,"") -> 2100.177721 | J24: =IF(Canoe!J48<>"",(Canoe!I48*SIN(RADIANS(J$4))+Canoe!J48*COS(RADIANS(J$4))*J$3)+J$2,"") -> 605.8687979 | L24: =IF(Canoe!L48<>"",Canoe!L48*COS(RADIANS(O$4))-Canoe!M48*SIN(RADIANS(O$4))+O$1,"") -> 2100.125372 | M24: =IF(Canoe!M48<>"",(Canoe!L48*SIN(RADIANS(O$4))+Canoe!M48*COS(RADIANS(O$4))*O$3)+O$2,"") -> 317.695654 | N24: =IF(Canoe!N48<>"",Canoe!N48*COS(RADIANS(O$4))-Canoe!O48*SIN(RADIANS(O$4))+O$1,"") -> 2100.124143 | O24: =IF(Canoe!O48<>"",(Canoe!N48*SIN(RADIANS(O$4))+Canoe!O48*COS(RADIANS(O$4))*O$3)+O$2,"") -> 267.9053433 | Q24: =IF(Canoe!Q48<>"",Canoe!Q48*COS(RADIANS(T$4))-Canoe!R48*SIN(RADIANS(T$4))+T$1,"") -> 2099.564451 | R24: =IF(Canoe!R48<>"",(Canoe!Q48*SIN(RADIANS(T$4))+Canoe!R48*COS(RADIANS(T$4))*T$3)+T$2,"") -> -58.15838415 | S24: =IF(Canoe!S48<>"",Canoe!S48*COS(RADIANS(T$4))-Canoe!T48*SIN(RADIANS(T$4))+T$1,"") -> 2099.564451 | T24: =IF(Canoe!T48<>"",(Canoe!S48*SIN(RADIANS(T$4))+Canoe!T48*COS(RADIANS(T$4))*T$3)+T$2,"") -> -9.54727304 | V24: =IF(Canoe!V48<>"",Canoe!V48*COS(RADIANS(Y$4))-Canoe!W48*SIN(RADIANS(Y$4))+Y$1,"") ->  | W24: =IF(Canoe!W48<>"",(Canoe!V48*SIN(RADIANS(Y$4))+Canoe!W48*COS(RADIANS(Y$4))*Y$3)+Y$2,"") ->  | X24: =IF(Canoe!X48<>"",Canoe!X48*COS(RADIANS(Y$4))-Canoe!Y48*SIN(RADIANS(Y$4))+Y$1,"") ->  | Y24: =IF(Canoe!Y48<>"",(Canoe!X48*SIN(RADIANS(Y$4))+Canoe!Y48*COS(RADIANS(Y$4))*Y$3)+Y$2,"") -> 
A25: 19 | B25: =IF(Canoe!B49<>"",Canoe!B49*COS(RADIANS(E$4))-Canoe!C49*SIN(RADIANS(E$4))+E$1,"") -> 2200.407572 | C25: =IF(Canoe!C49<>"",(Canoe!B49*SIN(RADIANS(E$4))+Canoe!C49*COS(RADIANS(E$4))*E$3)+E$2,"") -> 2.349396706e-13 | D25: =IF(Canoe!D49<>"",Canoe!D49*COS(RADIANS(E$4))-Canoe!E49*SIN(RADIANS(E$4))+E$1,"") -> 2200.407572 | E25: =IF(Canoe!E49<>"",(Canoe!D49*SIN(RADIANS(E$4))+Canoe!E49*COS(RADIANS(E$4))*E$3)+E$2,"") -> 271.6049383 | G25: =IF(Canoe!G49<>"",Canoe!G49*COS(RADIANS(J$4))-Canoe!H49*SIN(RADIANS(J$4))+J$1,"") -> 2200.275308 | H25: =IF(Canoe!H49<>"",(Canoe!G49*SIN(RADIANS(J$4))+Canoe!H49*COS(RADIANS(J$4))*J$3)+J$2,"") -> 326.4074471 | I25: =IF(Canoe!I49<>"",Canoe!I49*COS(RADIANS(J$4))-Canoe!J49*SIN(RADIANS(J$4))+J$1,"") -> 2200.272253 | J25: =IF(Canoe!J49<>"",(Canoe!I49*SIN(RADIANS(J$4))+Canoe!J49*COS(RADIANS(J$4))*J$3)+J$2,"") -> 605.9786794 | L25: =IF(Canoe!L49<>"",Canoe!L49*COS(RADIANS(O$4))-Canoe!M49*SIN(RADIANS(O$4))+O$1,"") -> 2200.127531 | M25: =IF(Canoe!M49<>"",(Canoe!L49*SIN(RADIANS(O$4))+Canoe!M49*COS(RADIANS(O$4))*O$3)+O$2,"") -> 321.9962931 | N25: =IF(Canoe!N49<>"",Canoe!N49*COS(RADIANS(O$4))-Canoe!O49*SIN(RADIANS(O$4))+O$1,"") -> 2200.127023 | O25: =IF(Canoe!O49<>"",(Canoe!N49*SIN(RADIANS(O$4))+Canoe!O49*COS(RADIANS(O$4))*O$3)+O$2,"") -> 272.1514636 | Q25: =IF(Canoe!Q49<>"",Canoe!Q49*COS(RADIANS(T$4))-Canoe!R49*SIN(RADIANS(T$4))+T$1,"") -> 2199.654461 | R25: =IF(Canoe!R49<>"",(Canoe!Q49*SIN(RADIANS(T$4))+Canoe!R49*COS(RADIANS(T$4))*T$3)+T$2,"") -> -58.92998909 | S25: =IF(Canoe!S49<>"",Canoe!S49*COS(RADIANS(T$4))-Canoe!T49*SIN(RADIANS(T$4))+T$1,"") -> 2199.654461 | T25: =IF(Canoe!T49<>"",(Canoe!S49*SIN(RADIANS(T$4))+Canoe!T49*COS(RADIANS(T$4))*T$3)+T$2,"") -> -9.54727304 | V25: =IF(Canoe!V49<>"",Canoe!V49*COS(RADIANS(Y$4))-Canoe!W49*SIN(RADIANS(Y$4))+Y$1,"") ->  | W25: =IF(Canoe!W49<>"",(Canoe!V49*SIN(RADIANS(Y$4))+Canoe!W49*COS(RADIANS(Y$4))*Y$3)+Y$2,"") ->  | X25: =IF(Canoe!X49<>"",Canoe!X49*COS(RADIANS(Y$4))-Canoe!Y49*SIN(RADIANS(Y$4))+Y$1,"") ->  | Y25: =IF(Canoe!Y49<>"",(Canoe!X49*SIN(RADIANS(Y$4))+Canoe!Y49*COS(RADIANS(Y$4))*Y$3)+Y$2,"") -> 
A26: 20 | B26: =IF(Canoe!B50<>"",Canoe!B50*COS(RADIANS(E$4))-Canoe!C50*SIN(RADIANS(E$4))+E$1,"") -> 2300.40784 | C26: =IF(Canoe!C50<>"",(Canoe!B50*SIN(RADIANS(E$4))+Canoe!C50*COS(RADIANS(E$4))*E$3)+E$2,"") -> 2.583754094e-13 | D26: =IF(Canoe!D50<>"",Canoe!D50*COS(RADIANS(E$4))-Canoe!E50*SIN(RADIANS(E$4))+E$1,"") -> 2300.40784 | E26: =IF(Canoe!E50<>"",(Canoe!D50*SIN(RADIANS(E$4))+Canoe!E50*COS(RADIANS(E$4))*E$3)+E$2,"") -> 274.1512346 | G26: =IF(Canoe!G50<>"",Canoe!G50*COS(RADIANS(J$4))-Canoe!H50*SIN(RADIANS(J$4))+J$1,"") -> 2300.307731 | H26: =IF(Canoe!H50<>"",(Canoe!G50*SIN(RADIANS(J$4))+Canoe!H50*COS(RADIANS(J$4))*J$3)+J$2,"") -> 326.6347431 | I26: =IF(Canoe!I50<>"",Canoe!I50*COS(RADIANS(J$4))-Canoe!J50*SIN(RADIANS(J$4))+J$1,"") -> 2300.307056 | J26: =IF(Canoe!J50<>"",(Canoe!I50*SIN(RADIANS(J$4))+Canoe!J50*COS(RADIANS(J$4))*J$3)+J$2,"") -> 606.0964226 | L26: =IF(Canoe!L50<>"",Canoe!L50*COS(RADIANS(O$4))-Canoe!M50*SIN(RADIANS(O$4))+O$1,"") -> 2300.12815 | M26: =IF(Canoe!M50<>"",(Canoe!L50*SIN(RADIANS(O$4))+Canoe!M50*COS(RADIANS(O$4))*O$3)+O$2,"") -> 324.6138926 | N26: =IF(Canoe!N50<>"",Canoe!N50*COS(RADIANS(O$4))-Canoe!O50*SIN(RADIANS(O$4))+O$1,"") -> 2300.128072 | O26: =IF(Canoe!O50<>"",(Canoe!N50*SIN(RADIANS(O$4))+Canoe!O50*COS(RADIANS(O$4))*O$3)+O$2,"") -> 274.6986117 | Q26: =IF(Canoe!Q50<>"",Canoe!Q50*COS(RADIANS(T$4))-Canoe!R50*SIN(RADIANS(T$4))+T$1,"") -> 2299.686873 | R26: =IF(Canoe!R50<>"",(Canoe!Q50*SIN(RADIANS(T$4))+Canoe!R50*COS(RADIANS(T$4))*T$3)+T$2,"") -> -59.39295205 | S26: =IF(Canoe!S50<>"",Canoe!S50*COS(RADIANS(T$4))-Canoe!T50*SIN(RADIANS(T$4))+T$1,"") -> 2299.686873 | T26: =IF(Canoe!T50<>"",(Canoe!S50*SIN(RADIANS(T$4))+Canoe!T50*COS(RADIANS(T$4))*T$3)+T$2,"") -> -9.54727304 | V26: =IF(Canoe!V50<>"",Canoe!V50*COS(RADIANS(Y$4))-Canoe!W50*SIN(RADIANS(Y$4))+Y$1,"") ->  | W26: =IF(Canoe!W50<>"",(Canoe!V50*SIN(RADIANS(Y$4))+Canoe!W50*COS(RADIANS(Y$4))*Y$3)+Y$2,"") ->  | X26: =IF(Canoe!X50<>"",Canoe!X50*COS(RADIANS(Y$4))-Canoe!Y50*SIN(RADIANS(Y$4))+Y$1,"") ->  | Y26: =IF(Canoe!Y50<>"",(Canoe!X50*SIN(RADIANS(Y$4))+Canoe!Y50*COS(RADIANS(Y$4))*Y$3)+Y$2,"") -> 
A27: 21 | B27: =IF(Canoe!B51<>"",Canoe!B51*COS(RADIANS(E$4))-Canoe!C51*SIN(RADIANS(E$4))+E$1,"") -> 2400.40787 | C27: =IF(Canoe!C51<>"",(Canoe!B51*SIN(RADIANS(E$4))+Canoe!C51*COS(RADIANS(E$4))*E$3)+E$2,"") -> 2.511625107e-13 | D27: =IF(Canoe!D51<>"",Canoe!D51*COS(RADIANS(E$4))-Canoe!E51*SIN(RADIANS(E$4))+E$1,"") -> 2400.40787 | E27: =IF(Canoe!E51<>"",(Canoe!D51*SIN(RADIANS(E$4))+Canoe!E51*COS(RADIANS(E$4))*E$3)+E$2,"") -> 275 | G27: =IF(Canoe!G51<>"",Canoe!G51*COS(RADIANS(J$4))-Canoe!H51*SIN(RADIANS(J$4))+J$1,"") -> 2400.311333 | H27: =IF(Canoe!H51<>"",(Canoe!G51*SIN(RADIANS(J$4))+Canoe!H51*COS(RADIANS(J$4))*J$3)+J$2,"") -> 326.7106644 | I27: =IF(Canoe!I51<>"",Canoe!I51*COS(RADIANS(J$4))-Canoe!J51*SIN(RADIANS(J$4))+J$1,"") -> 2400.311349 | J27: =IF(Canoe!J51<>"",(Canoe!I51*SIN(RADIANS(J$4))+Canoe!J51*COS(RADIANS(J$4))*J$3)+J$2,"") -> 606.2191616 | L27: =IF(Canoe!L51<>"",Canoe!L51*COS(RADIANS(O$4))-Canoe!M51*SIN(RADIANS(O$4))+O$1,"") -> 2400.128161 | M27: =IF(Canoe!M51<>"",(Canoe!L51*SIN(RADIANS(O$4))+Canoe!M51*COS(RADIANS(O$4))*O$3)+O$2,"") -> 325.547437 | N27: =IF(Canoe!N51<>"",Canoe!N51*COS(RADIANS(O$4))-Canoe!O51*SIN(RADIANS(O$4))+O$1,"") -> 2400.128191 | O27: =IF(Canoe!O51<>"",(Canoe!N51*SIN(RADIANS(O$4))+Canoe!O51*COS(RADIANS(O$4))*O$3)+O$2,"") -> 275.547437 | Q27: =IF(Canoe!Q51<>"",Canoe!Q51*COS(RADIANS(T$4))-Canoe!R51*SIN(RADIANS(T$4))+T$1,"") -> 2399.690475 | R27: =IF(Canoe!R51<>"",(Canoe!Q51*SIN(RADIANS(T$4))+Canoe!R51*COS(RADIANS(T$4))*T$3)+T$2,"") -> -59.54727304 | S27: =IF(Canoe!S51<>"",Canoe!S51*COS(RADIANS(T$4))-Canoe!T51*SIN(RADIANS(T$4))+T$1,"") -> 2399.690475 | T27: =IF(Canoe!T51<>"",(Canoe!S51*SIN(RADIANS(T$4))+Canoe!T51*COS(RADIANS(T$4))*T$3)+T$2,"") -> -9.54727304 | V27: =IF(Canoe!V51<>"",Canoe!V51*COS(RADIANS(Y$4))-Canoe!W51*SIN(RADIANS(Y$4))+Y$1,"") ->  | W27: =IF(Canoe!W51<>"",(Canoe!V51*SIN(RADIANS(Y$4))+Canoe!W51*COS(RADIANS(Y$4))*Y$3)+Y$2,"") ->  | X27: =IF(Canoe!X51<>"",Canoe!X51*COS(RADIANS(Y$4))-Canoe!Y51*SIN(RADIANS(Y$4))+Y$1,"") ->  | Y27: =IF(Canoe!Y51<>"",(Canoe!X51*SIN(RADIANS(Y$4))+Canoe!Y51*COS(RADIANS(Y$4))*Y$3)+Y$2,"") -> 
A28: 22 | B28: =IF(Canoe!B52<>"",Canoe!B52*COS(RADIANS(E$4))-Canoe!C52*SIN(RADIANS(E$4))+E$1,"") -> 2500.4079 | C28: =IF(Canoe!C52<>"",(Canoe!B52*SIN(RADIANS(E$4))+Canoe!C52*COS(RADIANS(E$4))*E$3)+E$2,"") -> 2.583754094e-13 | D28: =IF(Canoe!D52<>"",Canoe!D52*COS(RADIANS(E$4))-Canoe!E52*SIN(RADIANS(E$4))+E$1,"") -> 2500.4079 | E28: =IF(Canoe!E52<>"",(Canoe!D52*SIN(RADIANS(E$4))+Canoe!E52*COS(RADIANS(E$4))*E$3)+E$2,"") -> 274.1512346 | G28: =IF(Canoe!G52<>"",Canoe!G52*COS(RADIANS(J$4))-Canoe!H52*SIN(RADIANS(J$4))+J$1,"") -> 2500.314936 | H28: =IF(Canoe!H52<>"",(Canoe!G52*SIN(RADIANS(J$4))+Canoe!H52*COS(RADIANS(J$4))*J$3)+J$2,"") -> 326.6347431 | I28: =IF(Canoe!I52<>"",Canoe!I52*COS(RADIANS(J$4))-Canoe!J52*SIN(RADIANS(J$4))+J$1,"") -> 2500.315641 | J28: =IF(Canoe!J52<>"",(Canoe!I52*SIN(RADIANS(J$4))+Canoe!J52*COS(RADIANS(J$4))*J$3)+J$2,"") -> 606.0964226 | L28: =IF(Canoe!L52<>"",Canoe!L52*COS(RADIANS(O$4))-Canoe!M52*SIN(RADIANS(O$4))+O$1,"") -> 2500.128172 | M28: =IF(Canoe!M52<>"",(Canoe!L52*SIN(RADIANS(O$4))+Canoe!M52*COS(RADIANS(O$4))*O$3)+O$2,"") -> 324.6138926 | N28: =IF(Canoe!N52<>"",Canoe!N52*COS(RADIANS(O$4))-Canoe!O52*SIN(RADIANS(O$4))+O$1,"") -> 2500.12831 | O28: =IF(Canoe!O52<>"",(Canoe!N52*SIN(RADIANS(O$4))+Canoe!O52*COS(RADIANS(O$4))*O$3)+O$2,"") -> 274.6986117 | Q28: =IF(Canoe!Q52<>"",Canoe!Q52*COS(RADIANS(T$4))-Canoe!R52*SIN(RADIANS(T$4))+T$1,"") -> 2499.694077 | R28: =IF(Canoe!R52<>"",(Canoe!Q52*SIN(RADIANS(T$4))+Canoe!R52*COS(RADIANS(T$4))*T$3)+T$2,"") -> -59.39295205 | S28: =IF(Canoe!S52<>"",Canoe!S52*COS(RADIANS(T$4))-Canoe!T52*SIN(RADIANS(T$4))+T$1,"") -> 2499.694077 | T28: =IF(Canoe!T52<>"",(Canoe!S52*SIN(RADIANS(T$4))+Canoe!T52*COS(RADIANS(T$4))*T$3)+T$2,"") -> -9.54727304 | V28: =IF(Canoe!V52<>"",Canoe!V52*COS(RADIANS(Y$4))-Canoe!W52*SIN(RADIANS(Y$4))+Y$1,"") ->  | W28: =IF(Canoe!W52<>"",(Canoe!V52*SIN(RADIANS(Y$4))+Canoe!W52*COS(RADIANS(Y$4))*Y$3)+Y$2,"") ->  | X28: =IF(Canoe!X52<>"",Canoe!X52*COS(RADIANS(Y$4))-Canoe!Y52*SIN(RADIANS(Y$4))+Y$1,"") ->  | Y28: =IF(Canoe!Y52<>"",(Canoe!X52*SIN(RADIANS(Y$4))+Canoe!Y52*COS(RADIANS(Y$4))*Y$3)+Y$2,"") -> 
A29: 23 | B29: =IF(Canoe!B53<>"",Canoe!B53*COS(RADIANS(E$4))-Canoe!C53*SIN(RADIANS(E$4))+E$1,"") -> 2600.408168 | C29: =IF(Canoe!C53<>"",(Canoe!B53*SIN(RADIANS(E$4))+Canoe!C53*COS(RADIANS(E$4))*E$3)+E$2,"") -> 2.4235044e-13 | D29: =IF(Canoe!D53<>"",Canoe!D53*COS(RADIANS(E$4))-Canoe!E53*SIN(RADIANS(E$4))+E$1,"") -> 2600.408168 | E29: =IF(Canoe!E53<>"",(Canoe!D53*SIN(RADIANS(E$4))+Canoe!E53*COS(RADIANS(E$4))*E$3)+E$2,"") -> 271.6049383 | G29: =IF(Canoe!G53<>"",Canoe!G53*COS(RADIANS(J$4))-Canoe!H53*SIN(RADIANS(J$4))+J$1,"") -> 2600.347359 | H29: =IF(Canoe!H53<>"",(Canoe!G53*SIN(RADIANS(J$4))+Canoe!H53*COS(RADIANS(J$4))*J$3)+J$2,"") -> 326.4074513 | I29: =IF(Canoe!I53<>"",Canoe!I53*COS(RADIANS(J$4))-Canoe!J53*SIN(RADIANS(J$4))+J$1,"") -> 2600.350444 | J29: =IF(Canoe!J53<>"",(Canoe!I53*SIN(RADIANS(J$4))+Canoe!J53*COS(RADIANS(J$4))*J$3)+J$2,"") -> 605.9786836 | L29: =IF(Canoe!L53<>"",Canoe!L53*COS(RADIANS(O$4))-Canoe!M53*SIN(RADIANS(O$4))+O$1,"") -> 2600.128791 | M29: =IF(Canoe!M53<>"",(Canoe!L53*SIN(RADIANS(O$4))+Canoe!M53*COS(RADIANS(O$4))*O$3)+O$2,"") -> 321.9962972 | N29: =IF(Canoe!N53<>"",Canoe!N53*COS(RADIANS(O$4))-Canoe!O53*SIN(RADIANS(O$4))+O$1,"") -> 2600.12936 | O29: =IF(Canoe!O53<>"",(Canoe!N53*SIN(RADIANS(O$4))+Canoe!O53*COS(RADIANS(O$4))*O$3)+O$2,"") -> 272.1514677 | Q29: =IF(Canoe!Q53<>"",Canoe!Q53*COS(RADIANS(T$4))-Canoe!R53*SIN(RADIANS(T$4))+T$1,"") -> 2599.72649 | R29: =IF(Canoe!R53<>"",(Canoe!Q53*SIN(RADIANS(T$4))+Canoe!R53*COS(RADIANS(T$4))*T$3)+T$2,"") -> -58.92998909 | S29: =IF(Canoe!S53<>"",Canoe!S53*COS(RADIANS(T$4))-Canoe!T53*SIN(RADIANS(T$4))+T$1,"") -> 2599.72649 | T29: =IF(Canoe!T53<>"",(Canoe!S53*SIN(RADIANS(T$4))+Canoe!T53*COS(RADIANS(T$4))*T$3)+T$2,"") -> -9.54727304 | V29: =IF(Canoe!V53<>"",Canoe!V53*COS(RADIANS(Y$4))-Canoe!W53*SIN(RADIANS(Y$4))+Y$1,"") ->  | W29: =IF(Canoe!W53<>"",(Canoe!V53*SIN(RADIANS(Y$4))+Canoe!W53*COS(RADIANS(Y$4))*Y$3)+Y$2,"") ->  | X29: =IF(Canoe!X53<>"",Canoe!X53*COS(RADIANS(Y$4))-Canoe!Y53*SIN(RADIANS(Y$4))+Y$1,"") ->  | Y29: =IF(Canoe!Y53<>"",(Canoe!X53*SIN(RADIANS(Y$4))+Canoe!Y53*COS(RADIANS(Y$4))*Y$3)+Y$2,"") -> 
A30: 24 | B30: =IF(Canoe!B54<>"",Canoe!B54*COS(RADIANS(E$4))-Canoe!C54*SIN(RADIANS(E$4))+E$1,"") -> 2700.408912 | C30: =IF(Canoe!C54<>"",(Canoe!B54*SIN(RADIANS(E$4))+Canoe!C54*COS(RADIANS(E$4))*E$3)+E$2,"") -> 2.877090442e-13 | D30: =IF(Canoe!D54<>"",Canoe!D54*COS(RADIANS(E$4))-Canoe!E54*SIN(RADIANS(E$4))+E$1,"") -> 2700.408912 | E30: =IF(Canoe!E54<>"",(Canoe!D54*SIN(RADIANS(E$4))+Canoe!E54*COS(RADIANS(E$4))*E$3)+E$2,"") -> 267.3611111 | G30: =IF(Canoe!G54<>"",Canoe!G54*COS(RADIANS(J$4))-Canoe!H54*SIN(RADIANS(J$4))+J$1,"") -> 2700.437398 | H30: =IF(Canoe!H54<>"",(Canoe!G54*SIN(RADIANS(J$4))+Canoe!H54*COS(RADIANS(J$4))*J$3)+J$2,"") -> 326.0293419 | I30: =IF(Canoe!I54<>"",Canoe!I54*COS(RADIANS(J$4))-Canoe!J54*SIN(RADIANS(J$4))+J$1,"") -> 2700.444976 | J30: =IF(Canoe!J54<>"",(Canoe!I54*SIN(RADIANS(J$4))+Canoe!J54*COS(RADIANS(J$4))*J$3)+J$2,"") -> 605.8688109 | L30: =IF(Canoe!L54<>"",Canoe!L54*COS(RADIANS(O$4))-Canoe!M54*SIN(RADIANS(O$4))+O$1,"") -> 2700.130951 | M30: =IF(Canoe!M54<>"",(Canoe!L54*SIN(RADIANS(O$4))+Canoe!M54*COS(RADIANS(O$4))*O$3)+O$2,"") -> 317.6956707 | N30: =IF(Canoe!N54<>"",Canoe!N54*COS(RADIANS(O$4))-Canoe!O54*SIN(RADIANS(O$4))+O$1,"") -> 2700.13224 | O30: =IF(Canoe!O54<>"",(Canoe!N54*SIN(RADIANS(O$4))+Canoe!O54*COS(RADIANS(O$4))*O$3)+O$2,"") -> 267.90536 | Q30: =IF(Canoe!Q54<>"",Canoe!Q54*COS(RADIANS(T$4))-Canoe!R54*SIN(RADIANS(T$4))+T$1,"") -> 2699.8165 | R30: =IF(Canoe!R54<>"",(Canoe!Q54*SIN(RADIANS(T$4))+Canoe!R54*COS(RADIANS(T$4))*T$3)+T$2,"") -> -58.15838415 | S30: =IF(Canoe!S54<>"",Canoe!S54*COS(RADIANS(T$4))-Canoe!T54*SIN(RADIANS(T$4))+T$1,"") -> 2699.8165 | T30: =IF(Canoe!T54<>"",(Canoe!S54*SIN(RADIANS(T$4))+Canoe!T54*COS(RADIANS(T$4))*T$3)+T$2,"") -> -9.54727304 | V30: =IF(Canoe!V54<>"",Canoe!V54*COS(RADIANS(Y$4))-Canoe!W54*SIN(RADIANS(Y$4))+Y$1,"") ->  | W30: =IF(Canoe!W54<>"",(Canoe!V54*SIN(RADIANS(Y$4))+Canoe!W54*COS(RADIANS(Y$4))*Y$3)+Y$2,"") ->  | X30: =IF(Canoe!X54<>"",Canoe!X54*COS(RADIANS(Y$4))-Canoe!Y54*SIN(RADIANS(Y$4))+Y$1,"") ->  | Y30: =IF(Canoe!Y54<>"",(Canoe!X54*SIN(RADIANS(Y$4))+Canoe!Y54*COS(RADIANS(Y$4))*Y$3)+Y$2,"") -> 
A31: 25 | B31: =IF(Canoe!B55<>"",Canoe!B55*COS(RADIANS(E$4))-Canoe!C55*SIN(RADIANS(E$4))+E$1,"") -> 2800.41037 | C31: =IF(Canoe!C55<>"",(Canoe!B55*SIN(RADIANS(E$4))+Canoe!C55*COS(RADIANS(E$4))*E$3)+E$2,"") -> 2.469690969e-13 | D31: =IF(Canoe!D55<>"",Canoe!D55*COS(RADIANS(E$4))-Canoe!E55*SIN(RADIANS(E$4))+E$1,"") -> 2800.41037 | E31: =IF(Canoe!E55<>"",(Canoe!D55*SIN(RADIANS(E$4))+Canoe!E55*COS(RADIANS(E$4))*E$3)+E$2,"") -> 261.4197531 | G31: =IF(Canoe!G55<>"",Canoe!G55*COS(RADIANS(J$4))-Canoe!H55*SIN(RADIANS(J$4))+J$1,"") -> 2800.613804 | H31: =IF(Canoe!H55<>"",(Canoe!G55*SIN(RADIANS(J$4))+Canoe!H55*COS(RADIANS(J$4))*J$3)+J$2,"") -> 325.5010433 | I31: =IF(Canoe!I55<>"",Canoe!I55*COS(RADIANS(J$4))-Canoe!J55*SIN(RADIANS(J$4))+J$1,"") -> 2800.628334 | J31: =IF(Canoe!J55<>"",(Canoe!I55*SIN(RADIANS(J$4))+Canoe!J55*COS(RADIANS(J$4))*J$3)+J$2,"") -> 605.7697454 | L31: =IF(Canoe!L55<>"",Canoe!L55*COS(RADIANS(O$4))-Canoe!M55*SIN(RADIANS(O$4))+O$1,"") -> 2800.135568 | M31: =IF(Canoe!M55<>"",(Canoe!L55*SIN(RADIANS(O$4))+Canoe!M55*COS(RADIANS(O$4))*O$3)+O$2,"") -> 311.7130512 | N31: =IF(Canoe!N55<>"",Canoe!N55*COS(RADIANS(O$4))-Canoe!O55*SIN(RADIANS(O$4))+O$1,"") -> 2800.137817 | O31: =IF(Canoe!O55<>"",(Canoe!N55*SIN(RADIANS(O$4))+Canoe!O55*COS(RADIANS(O$4))*O$3)+O$2,"") -> 261.9596785 | Q31: =IF(Canoe!Q55<>"",Canoe!Q55*COS(RADIANS(T$4))-Canoe!R55*SIN(RADIANS(T$4))+T$1,"") -> 2799.992843 | R31: =IF(Canoe!R55<>"",(Canoe!Q55*SIN(RADIANS(T$4))+Canoe!R55*COS(RADIANS(T$4))*T$3)+T$2,"") -> -57.07813724 | S31: =IF(Canoe!S55<>"",Canoe!S55*COS(RADIANS(T$4))-Canoe!T55*SIN(RADIANS(T$4))+T$1,"") -> 2799.992843 | T31: =IF(Canoe!T55<>"",(Canoe!S55*SIN(RADIANS(T$4))+Canoe!T55*COS(RADIANS(T$4))*T$3)+T$2,"") -> -9.54727304 | V31: =IF(Canoe!V55<>"",Canoe!V55*COS(RADIANS(Y$4))-Canoe!W55*SIN(RADIANS(Y$4))+Y$1,"") ->  | W31: =IF(Canoe!W55<>"",(Canoe!V55*SIN(RADIANS(Y$4))+Canoe!W55*COS(RADIANS(Y$4))*Y$3)+Y$2,"") ->  | X31: =IF(Canoe!X55<>"",Canoe!X55*COS(RADIANS(Y$4))-Canoe!Y55*SIN(RADIANS(Y$4))+Y$1,"") ->  | Y31: =IF(Canoe!Y55<>"",(Canoe!X55*SIN(RADIANS(Y$4))+Canoe!Y55*COS(RADIANS(Y$4))*Y$3)+Y$2,"") -> 
A32: 26 | B32: =IF(Canoe!B56<>"",Canoe!B56*COS(RADIANS(E$4))-Canoe!C56*SIN(RADIANS(E$4))+E$1,"") -> 2900.412782 | C32: =IF(Canoe!C56<>"",(Canoe!B56*SIN(RADIANS(E$4))+Canoe!C56*COS(RADIANS(E$4))*E$3)+E$2,"") -> 2.685868256e-13 | D32: =IF(Canoe!D56<>"",Canoe!D56*COS(RADIANS(E$4))-Canoe!E56*SIN(RADIANS(E$4))+E$1,"") -> 2900.412782 | E32: =IF(Canoe!E56<>"",(Canoe!D56*SIN(RADIANS(E$4))+Canoe!E56*COS(RADIANS(E$4))*E$3)+E$2,"") -> 253.7808642 | G32: =IF(Canoe!G56<>"",Canoe!G56*COS(RADIANS(J$4))-Canoe!H56*SIN(RADIANS(J$4))+J$1,"") -> 2900.905257 | H32: =IF(Canoe!H56<>"",(Canoe!G56*SIN(RADIANS(J$4))+Canoe!H56*COS(RADIANS(J$4))*J$3)+J$2,"") -> 324.8232494 | I32: =IF(Canoe!I56<>"",Canoe!I56*COS(RADIANS(J$4))-Canoe!J56*SIN(RADIANS(J$4))+J$1,"") -> 2900.929475 | J32: =IF(Canoe!J56<>"",(Canoe!I56*SIN(RADIANS(J$4))+Canoe!J56*COS(RADIANS(J$4))*J$3)+J$2,"") -> 605.6844932 | L32: =IF(Canoe!L56<>"",Canoe!L56*COS(RADIANS(O$4))-Canoe!M56*SIN(RADIANS(O$4))+O$1,"") -> 2900.143548 | M32: =IF(Canoe!M56<>"",(Canoe!L56*SIN(RADIANS(O$4))+Canoe!M56*COS(RADIANS(O$4))*O$3)+O$2,"") -> 304.0495085 | N32: =IF(Canoe!N56<>"",Canoe!N56*COS(RADIANS(O$4))-Canoe!O56*SIN(RADIANS(O$4))+O$1,"") -> 2900.146932 | O32: =IF(Canoe!O56<>"",(Canoe!N56*SIN(RADIANS(O$4))+Canoe!O56*COS(RADIANS(O$4))*O$3)+O$2,"") -> 254.3138589 | Q32: =IF(Canoe!Q56<>"",Canoe!Q56*COS(RADIANS(T$4))-Canoe!R56*SIN(RADIANS(T$4))+T$1,"") -> 2900.284182 | R32: =IF(Canoe!R56<>"",(Canoe!Q56*SIN(RADIANS(T$4))+Canoe!R56*COS(RADIANS(T$4))*T$3)+T$2,"") -> -55.68924835 | S32: =IF(Canoe!S56<>"",Canoe!S56*COS(RADIANS(T$4))-Canoe!T56*SIN(RADIANS(T$4))+T$1,"") -> 2900.284182 | T32: =IF(Canoe!T56<>"",(Canoe!S56*SIN(RADIANS(T$4))+Canoe!T56*COS(RADIANS(T$4))*T$3)+T$2,"") -> -9.54727304 | V32: =IF(Canoe!V56<>"",Canoe!V56*COS(RADIANS(Y$4))-Canoe!W56*SIN(RADIANS(Y$4))+Y$1,"") ->  | W32: =IF(Canoe!W56<>"",(Canoe!V56*SIN(RADIANS(Y$4))+Canoe!W56*COS(RADIANS(Y$4))*Y$3)+Y$2,"") ->  | X32: =IF(Canoe!X56<>"",Canoe!X56*COS(RADIANS(Y$4))-Canoe!Y56*SIN(RADIANS(Y$4))+Y$1,"") ->  | Y32: =IF(Canoe!Y56<>"",(Canoe!X56*SIN(RADIANS(Y$4))+Canoe!Y56*COS(RADIANS(Y$4))*Y$3)+Y$2,"") -> 
A33: 27 | B33: =IF(Canoe!B57<>"",Canoe!B57*COS(RADIANS(E$4))-Canoe!C57*SIN(RADIANS(E$4))+E$1,"") -> 3000.416384 | C33: =IF(Canoe!C57<>"",(Canoe!B57*SIN(RADIANS(E$4))+Canoe!C57*COS(RADIANS(E$4))*E$3)+E$2,"") -> 2.919020453e-13 | D33: =IF(Canoe!D57<>"",Canoe!D57*COS(RADIANS(E$4))-Canoe!E57*SIN(RADIANS(E$4))+E$1,"") -> 3000.416384 | E33: =IF(Canoe!E57<>"",(Canoe!D57*SIN(RADIANS(E$4))+Canoe!E57*COS(RADIANS(E$4))*E$3)+E$2,"") -> 244.4444444 | G33: =IF(Canoe!G57<>"",Canoe!G57*COS(RADIANS(J$4))-Canoe!H57*SIN(RADIANS(J$4))+J$1,"") -> 3001.34034 | H33: =IF(Canoe!H57<>"",(Canoe!G57*SIN(RADIANS(J$4))+Canoe!H57*COS(RADIANS(J$4))*J$3)+J$2,"") -> 323.99671 | I33: =IF(Canoe!I57<>"",Canoe!I57*COS(RADIANS(J$4))-Canoe!J57*SIN(RADIANS(J$4))+J$1,"") -> 3001.377183 | J33: =IF(Canoe!J57<>"",(Canoe!I57*SIN(RADIANS(J$4))+Canoe!J57*COS(RADIANS(J$4))*J$3)+J$2,"") -> 605.6161141 | L33: =IF(Canoe!L57<>"",Canoe!L57*COS(RADIANS(O$4))-Canoe!M57*SIN(RADIANS(O$4))+O$1,"") -> 3000.15579 | M33: =IF(Canoe!M57<>"",(Canoe!L57*SIN(RADIANS(O$4))+Canoe!M57*COS(RADIANS(O$4))*O$3)+O$2,"") -> 294.7061571 | N33: =IF(Canoe!N57<>"",Canoe!N57*COS(RADIANS(O$4))-Canoe!O57*SIN(RADIANS(O$4))+O$1,"") -> 3000.160401 | O33: =IF(Canoe!O57<>"",(Canoe!N57*SIN(RADIANS(O$4))+Canoe!O57*COS(RADIANS(O$4))*O$3)+O$2,"") -> 244.967394 | Q33: =IF(Canoe!Q57<>"",Canoe!Q57*COS(RADIANS(T$4))-Canoe!R57*SIN(RADIANS(T$4))+T$1,"") -> 3000.71908 | R33: =IF(Canoe!R57<>"",(Canoe!Q57*SIN(RADIANS(T$4))+Canoe!R57*COS(RADIANS(T$4))*T$3)+T$2,"") -> -53.99171748 | S33: =IF(Canoe!S57<>"",Canoe!S57*COS(RADIANS(T$4))-Canoe!T57*SIN(RADIANS(T$4))+T$1,"") -> 3000.71908 | T33: =IF(Canoe!T57<>"",(Canoe!S57*SIN(RADIANS(T$4))+Canoe!T57*COS(RADIANS(T$4))*T$3)+T$2,"") -> -9.54727304 | V33: =IF(Canoe!V57<>"",Canoe!V57*COS(RADIANS(Y$4))-Canoe!W57*SIN(RADIANS(Y$4))+Y$1,"") ->  | W33: =IF(Canoe!W57<>"",(Canoe!V57*SIN(RADIANS(Y$4))+Canoe!W57*COS(RADIANS(Y$4))*Y$3)+Y$2,"") ->  | X33: =IF(Canoe!X57<>"",Canoe!X57*COS(RADIANS(Y$4))-Canoe!Y57*SIN(RADIANS(Y$4))+Y$1,"") ->  | Y33: =IF(Canoe!Y57<>"",(Canoe!X57*SIN(RADIANS(Y$4))+Canoe!Y57*COS(RADIANS(Y$4))*Y$3)+Y$2,"") -> 
A34: 28 | B34: =IF(Canoe!B58<>"",Canoe!B58*COS(RADIANS(E$4))-Canoe!C58*SIN(RADIANS(E$4))+E$1,"") -> 3100.421414 | C34: =IF(Canoe!C58<>"",(Canoe!B58*SIN(RADIANS(E$4))+Canoe!C58*COS(RADIANS(E$4))*E$3)+E$2,"") -> 3.028376198e-13 | D34: =IF(Canoe!D58<>"",Canoe!D58*COS(RADIANS(E$4))-Canoe!E58*SIN(RADIANS(E$4))+E$1,"") -> 3100.421414 | E34: =IF(Canoe!E58<>"",(Canoe!D58*SIN(RADIANS(E$4))+Canoe!E58*COS(RADIANS(E$4))*E$3)+E$2,"") -> 233.4104938 | G34: =IF(Canoe!G58<>"",Canoe!G58*COS(RADIANS(J$4))-Canoe!H58*SIN(RADIANS(J$4))+J$1,"") -> 3101.94752 | H34: =IF(Canoe!H58<>"",(Canoe!G58*SIN(RADIANS(J$4))+Canoe!H58*COS(RADIANS(J$4))*J$3)+J$2,"") -> 323.0222197 | I34: =IF(Canoe!I58<>"",Canoe!I58*COS(RADIANS(J$4))-Canoe!J58*SIN(RADIANS(J$4))+J$1,"") -> 3102.000053 | J34: =IF(Canoe!J58<>"",(Canoe!I58*SIN(RADIANS(J$4))+Canoe!J58*COS(RADIANS(J$4))*J$3)+J$2,"") -> 605.5677113 | L34: =IF(Canoe!L58<>"",Canoe!L58*COS(RADIANS(O$4))-Canoe!M58*SIN(RADIANS(O$4))+O$1,"") -> 3100.17319 | M34: =IF(Canoe!M58<>"",(Canoe!L58*SIN(RADIANS(O$4))+Canoe!M58*COS(RADIANS(O$4))*O$3)+O$2,"") -> 283.6841702 | N34: =IF(Canoe!N58<>"",Canoe!N58*COS(RADIANS(O$4))-Canoe!O58*SIN(RADIANS(O$4))+O$1,"") -> 3100.179021 | O34: =IF(Canoe!O58<>"",(Canoe!N58*SIN(RADIANS(O$4))+Canoe!O58*COS(RADIANS(O$4))*O$3)+O$2,"") -> 233.9198422 | Q34: =IF(Canoe!Q58<>"",Canoe!Q58*COS(RADIANS(T$4))-Canoe!R58*SIN(RADIANS(T$4))+T$1,"") -> 3101.325979 | R34: =IF(Canoe!R58<>"",(Canoe!Q58*SIN(RADIANS(T$4))+Canoe!R58*COS(RADIANS(T$4))*T$3)+T$2,"") -> -51.98554464 | S34: =IF(Canoe!S58<>"",Canoe!S58*COS(RADIANS(T$4))-Canoe!T58*SIN(RADIANS(T$4))+T$1,"") -> 3101.325979 | T34: =IF(Canoe!T58<>"",(Canoe!S58*SIN(RADIANS(T$4))+Canoe!T58*COS(RADIANS(T$4))*T$3)+T$2,"") -> -9.54727304 | V34: =IF(Canoe!V58<>"",Canoe!V58*COS(RADIANS(Y$4))-Canoe!W58*SIN(RADIANS(Y$4))+Y$1,"") ->  | W34: =IF(Canoe!W58<>"",(Canoe!V58*SIN(RADIANS(Y$4))+Canoe!W58*COS(RADIANS(Y$4))*Y$3)+Y$2,"") ->  | X34: =IF(Canoe!X58<>"",Canoe!X58*COS(RADIANS(Y$4))-Canoe!Y58*SIN(RADIANS(Y$4))+Y$1,"") ->  | Y34: =IF(Canoe!Y58<>"",(Canoe!X58*SIN(RADIANS(Y$4))+Canoe!Y58*COS(RADIANS(Y$4))*Y$3)+Y$2,"") -> 
A35: 29 | B35: =IF(Canoe!B59<>"",Canoe!B59*COS(RADIANS(E$4))-Canoe!C59*SIN(RADIANS(E$4))+E$1,"") -> 3200.428112 | C35: =IF(Canoe!C59<>"",(Canoe!B59*SIN(RADIANS(E$4))+Canoe!C59*COS(RADIANS(E$4))*E$3)+E$2,"") -> 3.321003801e-13 | D35: =IF(Canoe!D59<>"",Canoe!D59*COS(RADIANS(E$4))-Canoe!E59*SIN(RADIANS(E$4))+E$1,"") -> 3200.428112 | E35: =IF(Canoe!E59<>"",(Canoe!D59*SIN(RADIANS(E$4))+Canoe!E59*COS(RADIANS(E$4))*E$3)+E$2,"") -> 220.6790123 | G35: =IF(Canoe!G59<>"",Canoe!G59*COS(RADIANS(J$4))-Canoe!H59*SIN(RADIANS(J$4))+J$1,"") -> 3202.75512 | H35: =IF(Canoe!H59<>"",(Canoe!G59*SIN(RADIANS(J$4))+Canoe!H59*COS(RADIANS(J$4))*J$3)+J$2,"") -> 321.9006085 | I35: =IF(Canoe!I59<>"",Canoe!I59*COS(RADIANS(J$4))-Canoe!J59*SIN(RADIANS(J$4))+J$1,"") -> 3202.826464 | J35: =IF(Canoe!J59<>"",(Canoe!I59*SIN(RADIANS(J$4))+Canoe!J59*COS(RADIANS(J$4))*J$3)+J$2,"") -> 605.5424203 | L35: =IF(Canoe!L59<>"",Canoe!L59*COS(RADIANS(O$4))-Canoe!M59*SIN(RADIANS(O$4))+O$1,"") -> 3200.196644 | M35: =IF(Canoe!M59<>"",(Canoe!L59*SIN(RADIANS(O$4))+Canoe!M59*COS(RADIANS(O$4))*O$3)+O$2,"") -> 270.9847935 | N35: =IF(Canoe!N59<>"",Canoe!N59*COS(RADIANS(O$4))-Canoe!O59*SIN(RADIANS(O$4))+O$1,"") -> 3200.203578 | O35: =IF(Canoe!O59<>"",(Canoe!N59*SIN(RADIANS(O$4))+Canoe!O59*COS(RADIANS(O$4))*O$3)+O$2,"") -> 221.1708376 | Q35: =IF(Canoe!Q59<>"",Canoe!Q59*COS(RADIANS(T$4))-Canoe!R59*SIN(RADIANS(T$4))+T$1,"") -> 3202.133174 | R35: =IF(Canoe!R59<>"",(Canoe!Q59*SIN(RADIANS(T$4))+Canoe!R59*COS(RADIANS(T$4))*T$3)+T$2,"") -> -49.67072983 | S35: =IF(Canoe!S59<>"",Canoe!S59*COS(RADIANS(T$4))-Canoe!T59*SIN(RADIANS(T$4))+T$1,"") -> 3202.133174 | T35: =IF(Canoe!T59<>"",(Canoe!S59*SIN(RADIANS(T$4))+Canoe!T59*COS(RADIANS(T$4))*T$3)+T$2,"") -> -9.54727304 | V35: =IF(Canoe!V59<>"",Canoe!V59*COS(RADIANS(Y$4))-Canoe!W59*SIN(RADIANS(Y$4))+Y$1,"") ->  | W35: =IF(Canoe!W59<>"",(Canoe!V59*SIN(RADIANS(Y$4))+Canoe!W59*COS(RADIANS(Y$4))*Y$3)+Y$2,"") ->  | X35: =IF(Canoe!X59<>"",Canoe!X59*COS(RADIANS(Y$4))-Canoe!Y59*SIN(RADIANS(Y$4))+Y$1,"") ->  | Y35: =IF(Canoe!Y59<>"",(Canoe!X59*SIN(RADIANS(Y$4))+Canoe!Y59*COS(RADIANS(Y$4))*Y$3)+Y$2,"") -> 
A36: 30 | B36: =IF(Canoe!B60<>"",Canoe!B60*COS(RADIANS(E$4))-Canoe!C60*SIN(RADIANS(E$4))+E$1,"") -> 3300.436715 | C36: =IF(Canoe!C60<>"",(Canoe!B60*SIN(RADIANS(E$4))+Canoe!C60*COS(RADIANS(E$4))*E$3)+E$2,"") -> 3.34914961e-13 | D36: =IF(Canoe!D60<>"",Canoe!D60*COS(RADIANS(E$4))-Canoe!E60*SIN(RADIANS(E$4))+E$1,"") -> 3300.436715 | E36: =IF(Canoe!E60<>"",(Canoe!D60*SIN(RADIANS(E$4))+Canoe!E60*COS(RADIANS(E$4))*E$3)+E$2,"") -> 206.25 | G36: =IF(Canoe!G60<>"",Canoe!G60*COS(RADIANS(J$4))-Canoe!H60*SIN(RADIANS(J$4))+J$1,"") -> 3303.791299 | H36: =IF(Canoe!H60<>"",(Canoe!G60*SIN(RADIANS(J$4))+Canoe!H60*COS(RADIANS(J$4))*J$3)+J$2,"") -> 320.6327304 | I36: =IF(Canoe!I60<>"",Canoe!I60*COS(RADIANS(J$4))-Canoe!J60*SIN(RADIANS(J$4))+J$1,"") -> 3303.884554 | J36: =IF(Canoe!J60<>"",(Canoe!I60*SIN(RADIANS(J$4))+Canoe!J60*COS(RADIANS(J$4))*J$3)+J$2,"") -> 605.5433986 | L36: =IF(Canoe!L60<>"",Canoe!L60*COS(RADIANS(O$4))-Canoe!M60*SIN(RADIANS(O$4))+O$1,"") -> 3300.227062 | M36: =IF(Canoe!M60<>"",(Canoe!L60*SIN(RADIANS(O$4))+Canoe!M60*COS(RADIANS(O$4))*O$3)+O$2,"") -> 256.6093595 | N36: =IF(Canoe!N60<>"",Canoe!N60*COS(RADIANS(O$4))-Canoe!O60*SIN(RADIANS(O$4))+O$1,"") -> 3300.234848 | O36: =IF(Canoe!O60<>"",(Canoe!N60*SIN(RADIANS(O$4))+Canoe!O60*COS(RADIANS(O$4))*O$3)+O$2,"") -> 206.720098 | Q36: =IF(Canoe!Q60<>"",Canoe!Q60*COS(RADIANS(T$4))-Canoe!R60*SIN(RADIANS(T$4))+T$1,"") -> 3303.168793 | R36: =IF(Canoe!R60<>"",(Canoe!Q60*SIN(RADIANS(T$4))+Canoe!R60*COS(RADIANS(T$4))*T$3)+T$2,"") -> -47.04727304 | S36: =IF(Canoe!S60<>"",Canoe!S60*COS(RADIANS(T$4))-Canoe!T60*SIN(RADIANS(T$4))+T$1,"") -> 3303.168793 | T36: =IF(Canoe!T60<>"",(Canoe!S60*SIN(RADIANS(T$4))+Canoe!T60*COS(RADIANS(T$4))*T$3)+T$2,"") -> -9.54727304 | V36: =IF(Canoe!V60<>"",Canoe!V60*COS(RADIANS(Y$4))-Canoe!W60*SIN(RADIANS(Y$4))+Y$1,"") ->  | W36: =IF(Canoe!W60<>"",(Canoe!V60*SIN(RADIANS(Y$4))+Canoe!W60*COS(RADIANS(Y$4))*Y$3)+Y$2,"") ->  | X36: =IF(Canoe!X60<>"",Canoe!X60*COS(RADIANS(Y$4))-Canoe!Y60*SIN(RADIANS(Y$4))+Y$1,"") ->  | Y36: =IF(Canoe!Y60<>"",(Canoe!X60*SIN(RADIANS(Y$4))+Canoe!Y60*COS(RADIANS(Y$4))*Y$3)+Y$2,"") -> 
A37: 31 | B37: =IF(Canoe!B61<>"",Canoe!B61*COS(RADIANS(E$4))-Canoe!C61*SIN(RADIANS(E$4))+E$1,"") -> 3400.447461 | C37: =IF(Canoe!C61<>"",(Canoe!B61*SIN(RADIANS(E$4))+Canoe!C61*COS(RADIANS(E$4))*E$3)+E$2,"") -> 3.43429227e-13 | D37: =IF(Canoe!D61<>"",Canoe!D61*COS(RADIANS(E$4))-Canoe!E61*SIN(RADIANS(E$4))+E$1,"") -> 3400.447461 | E37: =IF(Canoe!E61<>"",(Canoe!D61*SIN(RADIANS(E$4))+Canoe!E61*COS(RADIANS(E$4))*E$3)+E$2,"") -> 190.1234568 | G37: =IF(Canoe!G61<>"",Canoe!G61*COS(RADIANS(J$4))-Canoe!H61*SIN(RADIANS(J$4))+J$1,"") -> 3405.08403 | H37: =IF(Canoe!H61<>"",(Canoe!G61*SIN(RADIANS(J$4))+Canoe!H61*COS(RADIANS(J$4))*J$3)+J$2,"") -> 319.2194536 | I37: =IF(Canoe!I61<>"",Canoe!I61*COS(RADIANS(J$4))-Canoe!J61*SIN(RADIANS(J$4))+J$1,"") -> 3405.202203 | J37: =IF(Canoe!J61<>"",(Canoe!I61*SIN(RADIANS(J$4))+Canoe!J61*COS(RADIANS(J$4))*J$3)+J$2,"") -> 605.5738143 | L37: =IF(Canoe!L61<>"",Canoe!L61*COS(RADIANS(O$4))-Canoe!M61*SIN(RADIANS(O$4))+O$1,"") -> 3400.265368 | M37: =IF(Canoe!M61<>"",(Canoe!L61*SIN(RADIANS(O$4))+Canoe!M61*COS(RADIANS(O$4))*O$3)+O$2,"") -> 240.5593023 | N37: =IF(Canoe!N61<>"",Canoe!N61*COS(RADIANS(O$4))-Canoe!O61*SIN(RADIANS(O$4))+O$1,"") -> 3400.273611 | O37: =IF(Canoe!O61<>"",(Canoe!N61*SIN(RADIANS(O$4))+Canoe!O61*COS(RADIANS(O$4))*O$3)+O$2,"") -> 190.5674332 | Q37: =IF(Canoe!Q61<>"",Canoe!Q61*COS(RADIANS(T$4))-Canoe!R61*SIN(RADIANS(T$4))+T$1,"") -> 3404.460774 | R37: =IF(Canoe!R61<>"",(Canoe!Q61*SIN(RADIANS(T$4))+Canoe!R61*COS(RADIANS(T$4))*T$3)+T$2,"") -> -44.11517427 | S37: =IF(Canoe!S61<>"",Canoe!S61*COS(RADIANS(T$4))-Canoe!T61*SIN(RADIANS(T$4))+T$1,"") -> 3404.460774 | T37: =IF(Canoe!T61<>"",(Canoe!S61*SIN(RADIANS(T$4))+Canoe!T61*COS(RADIANS(T$4))*T$3)+T$2,"") -> -9.54727304 | V37: =IF(Canoe!V61<>"",Canoe!V61*COS(RADIANS(Y$4))-Canoe!W61*SIN(RADIANS(Y$4))+Y$1,"") ->  | W37: =IF(Canoe!W61<>"",(Canoe!V61*SIN(RADIANS(Y$4))+Canoe!W61*COS(RADIANS(Y$4))*Y$3)+Y$2,"") ->  | X37: =IF(Canoe!X61<>"",Canoe!X61*COS(RADIANS(Y$4))-Canoe!Y61*SIN(RADIANS(Y$4))+Y$1,"") ->  | Y37: =IF(Canoe!Y61<>"",(Canoe!X61*SIN(RADIANS(Y$4))+Canoe!Y61*COS(RADIANS(Y$4))*Y$3)+Y$2,"") -> 
A38: 32 | B38: =IF(Canoe!B62<>"",Canoe!B62*COS(RADIANS(E$4))-Canoe!C62*SIN(RADIANS(E$4))+E$1,"") -> 3500.460588 | C38: =IF(Canoe!C62<>"",(Canoe!B62*SIN(RADIANS(E$4))+Canoe!C62*COS(RADIANS(E$4))*E$3)+E$2,"") -> 3.545554282e-13 | D38: =IF(Canoe!D62<>"",Canoe!D62*COS(RADIANS(E$4))-Canoe!E62*SIN(RADIANS(E$4))+E$1,"") -> 3500.460588 | E38: =IF(Canoe!E62<>"",(Canoe!D62*SIN(RADIANS(E$4))+Canoe!E62*COS(RADIANS(E$4))*E$3)+E$2,"") -> 172.2993827 | G38: =IF(Canoe!G62<>"",Canoe!G62*COS(RADIANS(J$4))-Canoe!H62*SIN(RADIANS(J$4))+J$1,"") -> 3506.661077 | H38: =IF(Canoe!H62<>"",(Canoe!G62*SIN(RADIANS(J$4))+Canoe!H62*COS(RADIANS(J$4))*J$3)+J$2,"") -> 317.6616499 | I38: =IF(Canoe!I62<>"",Canoe!I62*COS(RADIANS(J$4))-Canoe!J62*SIN(RADIANS(J$4))+J$1,"") -> 3506.807013 | J38: =IF(Canoe!J62<>"",(Canoe!I62*SIN(RADIANS(J$4))+Canoe!J62*COS(RADIANS(J$4))*J$3)+J$2,"") -> 605.6368366 | L38: =IF(Canoe!L62<>"",Canoe!L62*COS(RADIANS(O$4))-Canoe!M62*SIN(RADIANS(O$4))+O$1,"") -> 3500.312517 | M38: =IF(Canoe!M62<>"",(Canoe!L62*SIN(RADIANS(O$4))+Canoe!M62*COS(RADIANS(O$4))*O$3)+O$2,"") -> 222.8361731 | N38: =IF(Canoe!N62<>"",Canoe!N62*COS(RADIANS(O$4))-Canoe!O62*SIN(RADIANS(O$4))+O$1,"") -> 3500.320652 | O38: =IF(Canoe!O62<>"",(Canoe!N62*SIN(RADIANS(O$4))+Canoe!O62*COS(RADIANS(O$4))*O$3)+O$2,"") -> 172.7127528 | Q38: =IF(Canoe!Q62<>"",Canoe!Q62*COS(RADIANS(T$4))-Canoe!R62*SIN(RADIANS(T$4))+T$1,"") -> 3506.036842 | R38: =IF(Canoe!R62<>"",(Canoe!Q62*SIN(RADIANS(T$4))+Canoe!R62*COS(RADIANS(T$4))*T$3)+T$2,"") -> -40.87443353 | S38: =IF(Canoe!S62<>"",Canoe!S62*COS(RADIANS(T$4))-Canoe!T62*SIN(RADIANS(T$4))+T$1,"") -> 3506.036842 | T38: =IF(Canoe!T62<>"",(Canoe!S62*SIN(RADIANS(T$4))+Canoe!T62*COS(RADIANS(T$4))*T$3)+T$2,"") -> -9.54727304 | V38: =IF(Canoe!V62<>"",Canoe!V62*COS(RADIANS(Y$4))-Canoe!W62*SIN(RADIANS(Y$4))+Y$1,"") ->  | W38: =IF(Canoe!W62<>"",(Canoe!V62*SIN(RADIANS(Y$4))+Canoe!W62*COS(RADIANS(Y$4))*Y$3)+Y$2,"") ->  | X38: =IF(Canoe!X62<>"",Canoe!X62*COS(RADIANS(Y$4))-Canoe!Y62*SIN(RADIANS(Y$4))+Y$1,"") ->  | Y38: =IF(Canoe!Y62<>"",(Canoe!X62*SIN(RADIANS(Y$4))+Canoe!Y62*COS(RADIANS(Y$4))*Y$3)+Y$2,"") -> 
A39: 33 | B39: =IF(Canoe!B63<>"",Canoe!B63*COS(RADIANS(E$4))-Canoe!C63*SIN(RADIANS(E$4))+E$1,"") -> 3600.476334 | C39: =IF(Canoe!C63<>"",(Canoe!B63*SIN(RADIANS(E$4))+Canoe!C63*COS(RADIANS(E$4))*E$3)+E$2,"") -> 3.823239681e-13 | D39: =IF(Canoe!D63<>"",Canoe!D63*COS(RADIANS(E$4))-Canoe!E63*SIN(RADIANS(E$4))+E$1,"") -> 3600.476334 | E39: =IF(Canoe!E63<>"",(Canoe!D63*SIN(RADIANS(E$4))+Canoe!E63*COS(RADIANS(E$4))*E$3)+E$2,"") -> 152.7777778 | G39: =IF(Canoe!G63<>"",Canoe!G63*COS(RADIANS(J$4))-Canoe!H63*SIN(RADIANS(J$4))+J$1,"") -> 3608.549975 | H39: =IF(Canoe!H63<>"",(Canoe!G63*SIN(RADIANS(J$4))+Canoe!H63*COS(RADIANS(J$4))*J$3)+J$2,"") -> 315.9601852 | I39: =IF(Canoe!I63<>"",Canoe!I63*COS(RADIANS(J$4))-Canoe!J63*SIN(RADIANS(J$4))+J$1,"") -> 3608.726283 | J39: =IF(Canoe!J63<>"",(Canoe!I63*SIN(RADIANS(J$4))+Canoe!J63*COS(RADIANS(J$4))*J$3)+J$2,"") -> 605.7356253 | L39: =IF(Canoe!L63<>"",Canoe!L63*COS(RADIANS(O$4))-Canoe!M63*SIN(RADIANS(O$4))+O$1,"") -> 3600.369501 | M39: =IF(Canoe!M63<>"",(Canoe!L63*SIN(RADIANS(O$4))+Canoe!M63*COS(RADIANS(O$4))*O$3)+O$2,"") -> 203.4416557 | N39: =IF(Canoe!N63<>"",Canoe!N63*COS(RADIANS(O$4))-Canoe!O63*SIN(RADIANS(O$4))+O$1,"") -> 3600.376773 | O39: =IF(Canoe!O63<>"",(Canoe!N63*SIN(RADIANS(O$4))+Canoe!O63*COS(RADIANS(O$4))*O$3)+O$2,"") -> 153.1560744 | Q39: =IF(Canoe!Q63<>"",Canoe!Q63*COS(RADIANS(T$4))-Canoe!R63*SIN(RADIANS(T$4))+T$1,"") -> 3607.924492 | R39: =IF(Canoe!R63<>"",(Canoe!Q63*SIN(RADIANS(T$4))+Canoe!R63*COS(RADIANS(T$4))*T$3)+T$2,"") -> -37.32505082 | S39: =IF(Canoe!S63<>"",Canoe!S63*COS(RADIANS(T$4))-Canoe!T63*SIN(RADIANS(T$4))+T$1,"") -> 3607.924492 | T39: =IF(Canoe!T63<>"",(Canoe!S63*SIN(RADIANS(T$4))+Canoe!T63*COS(RADIANS(T$4))*T$3)+T$2,"") -> -9.54727304 | V39: =IF(Canoe!V63<>"",Canoe!V63*COS(RADIANS(Y$4))-Canoe!W63*SIN(RADIANS(Y$4))+Y$1,"") ->  | W39: =IF(Canoe!W63<>"",(Canoe!V63*SIN(RADIANS(Y$4))+Canoe!W63*COS(RADIANS(Y$4))*Y$3)+Y$2,"") ->  | X39: =IF(Canoe!X63<>"",Canoe!X63*COS(RADIANS(Y$4))-Canoe!Y63*SIN(RADIANS(Y$4))+Y$1,"") ->  | Y39: =IF(Canoe!Y63<>"",(Canoe!X63*SIN(RADIANS(Y$4))+Canoe!Y63*COS(RADIANS(Y$4))*Y$3)+Y$2,"") -> 
A40: 34 | B40: =IF(Canoe!B64<>"",Canoe!B64*COS(RADIANS(E$4))-Canoe!C64*SIN(RADIANS(E$4))+E$1,"") -> 3700.494938 | C40: =IF(Canoe!C64<>"",(Canoe!B64*SIN(RADIANS(E$4))+Canoe!C64*COS(RADIANS(E$4))*E$3)+E$2,"") -> 3.923740667e-13 | D40: =IF(Canoe!D64<>"",Canoe!D64*COS(RADIANS(E$4))-Canoe!E64*SIN(RADIANS(E$4))+E$1,"") -> 3700.494938 | E40: =IF(Canoe!E64<>"",(Canoe!D64*SIN(RADIANS(E$4))+Canoe!E64*COS(RADIANS(E$4))*E$3)+E$2,"") -> 131.558642 | G40: =IF(Canoe!G64<>"",Canoe!G64*COS(RADIANS(J$4))-Canoe!H64*SIN(RADIANS(J$4))+J$1,"") -> 3710.778012 | H40: =IF(Canoe!H64<>"",(Canoe!G64*SIN(RADIANS(J$4))+Canoe!H64*COS(RADIANS(J$4))*J$3)+J$2,"") -> 314.1159092 | I40: =IF(Canoe!I64<>"",Canoe!I64*COS(RADIANS(J$4))-Canoe!J64*SIN(RADIANS(J$4))+J$1,"") -> 3710.986996 | J40: =IF(Canoe!J64<>"",(Canoe!I64*SIN(RADIANS(J$4))+Canoe!J64*COS(RADIANS(J$4))*J$3)+J$2,"") -> 605.8733213 | L40: =IF(Canoe!L64<>"",Canoe!L64*COS(RADIANS(O$4))-Canoe!M64*SIN(RADIANS(O$4))+O$1,"") -> 3700.437364 | M40: =IF(Canoe!M64<>"",(Canoe!L64*SIN(RADIANS(O$4))+Canoe!M64*COS(RADIANS(O$4))*O$3)+O$2,"") -> 182.3775834 | N40: =IF(Canoe!N64<>"",Canoe!N64*COS(RADIANS(O$4))-Canoe!O64*SIN(RADIANS(O$4))+O$1,"") -> 3700.442804 | O40: =IF(Canoe!O64<>"",(Canoe!N64*SIN(RADIANS(O$4))+Canoe!O64*COS(RADIANS(O$4))*O$3)+O$2,"") -> 131.8975319 | Q40: =IF(Canoe!Q64<>"",Canoe!Q64*COS(RADIANS(T$4))-Canoe!R64*SIN(RADIANS(T$4))+T$1,"") -> 3710.150964 | R40: =IF(Canoe!R64<>"",(Canoe!Q64*SIN(RADIANS(T$4))+Canoe!R64*COS(RADIANS(T$4))*T$3)+T$2,"") -> -33.46702613 | S40: =IF(Canoe!S64<>"",Canoe!S64*COS(RADIANS(T$4))-Canoe!T64*SIN(RADIANS(T$4))+T$1,"") -> 3710.150964 | T40: =IF(Canoe!T64<>"",(Canoe!S64*SIN(RADIANS(T$4))+Canoe!T64*COS(RADIANS(T$4))*T$3)+T$2,"") -> -9.54727304 | V40: =IF(Canoe!V64<>"",Canoe!V64*COS(RADIANS(Y$4))-Canoe!W64*SIN(RADIANS(Y$4))+Y$1,"") ->  | W40: =IF(Canoe!W64<>"",(Canoe!V64*SIN(RADIANS(Y$4))+Canoe!W64*COS(RADIANS(Y$4))*Y$3)+Y$2,"") ->  | X40: =IF(Canoe!X64<>"",Canoe!X64*COS(RADIANS(Y$4))-Canoe!Y64*SIN(RADIANS(Y$4))+Y$1,"") ->  | Y40: =IF(Canoe!Y64<>"",(Canoe!X64*SIN(RADIANS(Y$4))+Canoe!Y64*COS(RADIANS(Y$4))*Y$3)+Y$2,"") -> 
A41: 35 | B41: =IF(Canoe!B65<>"",Canoe!B65*COS(RADIANS(E$4))-Canoe!C65*SIN(RADIANS(E$4))+E$1,"") -> 3800.516637 | C41: =IF(Canoe!C65<>"",(Canoe!B65*SIN(RADIANS(E$4))+Canoe!C65*COS(RADIANS(E$4))*E$3)+E$2,"") -> 4.045349129e-13 | D41: =IF(Canoe!D65<>"",Canoe!D65*COS(RADIANS(E$4))-Canoe!E65*SIN(RADIANS(E$4))+E$1,"") -> 3800.516637 | E41: =IF(Canoe!E65<>"",(Canoe!D65*SIN(RADIANS(E$4))+Canoe!E65*COS(RADIANS(E$4))*E$3)+E$2,"") -> 108.6419753 | G41: =IF(Canoe!G65<>"",Canoe!G65*COS(RADIANS(J$4))-Canoe!H65*SIN(RADIANS(J$4))+J$1,"") -> 3813.372206 | H41: =IF(Canoe!H65<>"",(Canoe!G65*SIN(RADIANS(J$4))+Canoe!H65*COS(RADIANS(J$4))*J$3)+J$2,"") -> 312.1296468 | I41: =IF(Canoe!I65<>"",Canoe!I65*COS(RADIANS(J$4))-Canoe!J65*SIN(RADIANS(J$4))+J$1,"") -> 3813.615798 | J41: =IF(Canoe!J65<>"",(Canoe!I65*SIN(RADIANS(J$4))+Canoe!J65*COS(RADIANS(J$4))*J$3)+J$2,"") -> 606.0530379 | L41: =IF(Canoe!L65<>"",Canoe!L65*COS(RADIANS(O$4))-Canoe!M65*SIN(RADIANS(O$4))+O$1,"") -> 3800.517214 | M41: =IF(Canoe!M65<>"",(Canoe!L65*SIN(RADIANS(O$4))+Canoe!M65*COS(RADIANS(O$4))*O$3)+O$2,"") -> 159.6459568 | N41: =IF(Canoe!N65<>"",Canoe!N65*COS(RADIANS(O$4))-Canoe!O65*SIN(RADIANS(O$4))+O$1,"") -> 3800.519606 | O41: =IF(Canoe!O65<>"",(Canoe!N65*SIN(RADIANS(O$4))+Canoe!O65*COS(RADIANS(O$4))*O$3)+O$2,"") -> 108.9373837 | Q41: =IF(Canoe!Q65<>"",Canoe!Q65*COS(RADIANS(T$4))-Canoe!R65*SIN(RADIANS(T$4))+T$1,"") -> 3812.743233 | R41: =IF(Canoe!R65<>"",(Canoe!Q65*SIN(RADIANS(T$4))+Canoe!R65*COS(RADIANS(T$4))*T$3)+T$2,"") -> -29.30035946 | S41: =IF(Canoe!S65<>"",Canoe!S65*COS(RADIANS(T$4))-Canoe!T65*SIN(RADIANS(T$4))+T$1,"") -> 3812.743233 | T41: =IF(Canoe!T65<>"",(Canoe!S65*SIN(RADIANS(T$4))+Canoe!T65*COS(RADIANS(T$4))*T$3)+T$2,"") -> -9.54727304 | V41: =IF(Canoe!V65<>"",Canoe!V65*COS(RADIANS(Y$4))-Canoe!W65*SIN(RADIANS(Y$4))+Y$1,"") ->  | W41: =IF(Canoe!W65<>"",(Canoe!V65*SIN(RADIANS(Y$4))+Canoe!W65*COS(RADIANS(Y$4))*Y$3)+Y$2,"") ->  | X41: =IF(Canoe!X65<>"",Canoe!X65*COS(RADIANS(Y$4))-Canoe!Y65*SIN(RADIANS(Y$4))+Y$1,"") ->  | Y41: =IF(Canoe!Y65<>"",(Canoe!X65*SIN(RADIANS(Y$4))+Canoe!Y65*COS(RADIANS(Y$4))*Y$3)+Y$2,"") -> 
A42: 36 | B42: =IF(Canoe!B66<>"",Canoe!B66*COS(RADIANS(E$4))-Canoe!C66*SIN(RADIANS(E$4))+E$1,"") -> 3900.54167 | C42: =IF(Canoe!C66<>"",(Canoe!B66*SIN(RADIANS(E$4))+Canoe!C66*COS(RADIANS(E$4))*E$3)+E$2,"") -> 4.197695618e-13 | D42: =IF(Canoe!D66<>"",Canoe!D66*COS(RADIANS(E$4))-Canoe!E66*SIN(RADIANS(E$4))+E$1,"") -> 3900.54167 | E42: =IF(Canoe!E66<>"",(Canoe!D66*SIN(RADIANS(E$4))+Canoe!E66*COS(RADIANS(E$4))*E$3)+E$2,"") -> 84.02777778 | G42: =IF(Canoe!G66<>"",Canoe!G66*COS(RADIANS(J$4))-Canoe!H66*SIN(RADIANS(J$4))+J$1,"") -> 3916.359291 | H42: =IF(Canoe!H66<>"",(Canoe!G66*SIN(RADIANS(J$4))+Canoe!H66*COS(RADIANS(J$4))*J$3)+J$2,"") -> 310.002189 | I42: =IF(Canoe!I66<>"",Canoe!I66*COS(RADIANS(J$4))-Canoe!J66*SIN(RADIANS(J$4))+J$1,"") -> 3916.638985 | J42: =IF(Canoe!J66<>"",(Canoe!I66*SIN(RADIANS(J$4))+Canoe!J66*COS(RADIANS(J$4))*J$3)+J$2,"") -> 606.2778519 | L42: =IF(Canoe!L66<>"",Canoe!L66*COS(RADIANS(O$4))-Canoe!M66*SIN(RADIANS(O$4))+O$1,"") -> 3900.610242 | M42: =IF(Canoe!M66<>"",(Canoe!L66*SIN(RADIANS(O$4))+Canoe!M66*COS(RADIANS(O$4))*O$3)+O$2,"") -> 135.2489616 | N42: =IF(Canoe!N66<>"",Canoe!N66*COS(RADIANS(O$4))-Canoe!O66*SIN(RADIANS(O$4))+O$1,"") -> 3900.608089 | O42: =IF(Canoe!O66<>"",(Canoe!N66*SIN(RADIANS(O$4))+Canoe!O66*COS(RADIANS(O$4))*O$3)+O$2,"") -> 84.27602235 | Q42: =IF(Canoe!Q66<>"",Canoe!Q66*COS(RADIANS(T$4))-Canoe!R66*SIN(RADIANS(T$4))+T$1,"") -> 3915.727983 | R42: =IF(Canoe!R66<>"",(Canoe!Q66*SIN(RADIANS(T$4))+Canoe!R66*COS(RADIANS(T$4))*T$3)+T$2,"") -> -24.82505082 | S42: =IF(Canoe!S66<>"",Canoe!S66*COS(RADIANS(T$4))-Canoe!T66*SIN(RADIANS(T$4))+T$1,"") -> 3915.727983 | T42: =IF(Canoe!T66<>"",(Canoe!S66*SIN(RADIANS(T$4))+Canoe!T66*COS(RADIANS(T$4))*T$3)+T$2,"") -> -9.54727304 | V42: =IF(Canoe!V66<>"",Canoe!V66*COS(RADIANS(Y$4))-Canoe!W66*SIN(RADIANS(Y$4))+Y$1,"") ->  | W42: =IF(Canoe!W66<>"",(Canoe!V66*SIN(RADIANS(Y$4))+Canoe!W66*COS(RADIANS(Y$4))*Y$3)+Y$2,"") ->  | X42: =IF(Canoe!X66<>"",Canoe!X66*COS(RADIANS(Y$4))-Canoe!Y66*SIN(RADIANS(Y$4))+Y$1,"") ->  | Y42: =IF(Canoe!Y66<>"",(Canoe!X66*SIN(RADIANS(Y$4))+Canoe!Y66*COS(RADIANS(Y$4))*Y$3)+Y$2,"") -> 
A43: 37 | B43: =IF(Canoe!B67<>"",Canoe!B67*COS(RADIANS(E$4))-Canoe!C67*SIN(RADIANS(E$4))+E$1,"") -> 4000.570273 | C43: =IF(Canoe!C67<>"",(Canoe!B67*SIN(RADIANS(E$4))+Canoe!C67*COS(RADIANS(E$4))*E$3)+E$2,"") -> 4.548133621e-13 | D43: =IF(Canoe!D67<>"",Canoe!D67*COS(RADIANS(E$4))-Canoe!E67*SIN(RADIANS(E$4))+E$1,"") -> 4000.570273 | E43: =IF(Canoe!E67<>"",(Canoe!D67*SIN(RADIANS(E$4))+Canoe!E67*COS(RADIANS(E$4))*E$3)+E$2,"") -> 57.71604938 | G43: =IF(Canoe!G67<>"",Canoe!G67*COS(RADIANS(J$4))-Canoe!H67*SIN(RADIANS(J$4))+J$1,"") -> 4019.765699 | H43: =IF(Canoe!H67<>"",(Canoe!G67*SIN(RADIANS(J$4))+Canoe!H67*COS(RADIANS(J$4))*J$3)+J$2,"") -> 307.7342849 | I43: =IF(Canoe!I67<>"",Canoe!I67*COS(RADIANS(J$4))-Canoe!J67*SIN(RADIANS(J$4))+J$1,"") -> 4020.082486 | J43: =IF(Canoe!J67<>"",(Canoe!I67*SIN(RADIANS(J$4))+Canoe!J67*COS(RADIANS(J$4))*J$3)+J$2,"") -> 606.5507962 | L43: =IF(Canoe!L67<>"",Canoe!L67*COS(RADIANS(O$4))-Canoe!M67*SIN(RADIANS(O$4))+O$1,"") -> 4000.717736 | M43: =IF(Canoe!M67<>"",(Canoe!L67*SIN(RADIANS(O$4))+Canoe!M67*COS(RADIANS(O$4))*O$3)+O$2,"") -> 109.1889883 | N43: =IF(Canoe!N67<>"",Canoe!N67*COS(RADIANS(O$4))-Canoe!O67*SIN(RADIANS(O$4))+O$1,"") -> 4000.709218 | O43: =IF(Canoe!O67<>"",(Canoe!N67*SIN(RADIANS(O$4))+Canoe!O67*COS(RADIANS(O$4))*O$3)+O$2,"") -> 57.91398498 | Q43: =IF(Canoe!Q67<>"",Canoe!Q67*COS(RADIANS(T$4))-Canoe!R67*SIN(RADIANS(T$4))+T$1,"") -> 4019.131595 | R43: =IF(Canoe!R67<>"",(Canoe!Q67*SIN(RADIANS(T$4))+Canoe!R67*COS(RADIANS(T$4))*T$3)+T$2,"") -> -20.0411002 | S43: =IF(Canoe!S67<>"",Canoe!S67*COS(RADIANS(T$4))-Canoe!T67*SIN(RADIANS(T$4))+T$1,"") -> 4019.131595 | T43: =IF(Canoe!T67<>"",(Canoe!S67*SIN(RADIANS(T$4))+Canoe!T67*COS(RADIANS(T$4))*T$3)+T$2,"") -> -9.54727304 | V43: =IF(Canoe!V67<>"",Canoe!V67*COS(RADIANS(Y$4))-Canoe!W67*SIN(RADIANS(Y$4))+Y$1,"") ->  | W43: =IF(Canoe!W67<>"",(Canoe!V67*SIN(RADIANS(Y$4))+Canoe!W67*COS(RADIANS(Y$4))*Y$3)+Y$2,"") ->  | X43: =IF(Canoe!X67<>"",Canoe!X67*COS(RADIANS(Y$4))-Canoe!Y67*SIN(RADIANS(Y$4))+Y$1,"") ->  | Y43: =IF(Canoe!Y67<>"",(Canoe!X67*SIN(RADIANS(Y$4))+Canoe!Y67*COS(RADIANS(Y$4))*Y$3)+Y$2,"") -> 
A44: 38 | B44: =IF(Canoe!B68<>"",Canoe!B68*COS(RADIANS(E$4))-Canoe!C68*SIN(RADIANS(E$4))+E$1,"") -> 4100.602686 | C44: =IF(Canoe!C68<>"",(Canoe!B68*SIN(RADIANS(E$4))+Canoe!C68*COS(RADIANS(E$4))*E$3)+E$2,"") -> 4.658768058e-13 | D44: =IF(Canoe!D68<>"",Canoe!D68*COS(RADIANS(E$4))-Canoe!E68*SIN(RADIANS(E$4))+E$1,"") -> 4100.602686 | E44: =IF(Canoe!E68<>"",(Canoe!D68*SIN(RADIANS(E$4))+Canoe!E68*COS(RADIANS(E$4))*E$3)+E$2,"") -> 29.70679012 | G44: =IF(Canoe!G68<>"",Canoe!G68*COS(RADIANS(J$4))-Canoe!H68*SIN(RADIANS(J$4))+J$1,"") -> 4123.617543 | H44: =IF(Canoe!H68<>"",(Canoe!G68*SIN(RADIANS(J$4))+Canoe!H68*COS(RADIANS(J$4))*J$3)+J$2,"") -> 305.3266343 | I44: =IF(Canoe!I68<>"",Canoe!I68*COS(RADIANS(J$4))-Canoe!J68*SIN(RADIANS(J$4))+J$1,"") -> 4123.971851 | J44: =IF(Canoe!J68<>"",(Canoe!I68*SIN(RADIANS(J$4))+Canoe!J68*COS(RADIANS(J$4))*J$3)+J$2,"") -> 606.8748524 | L44: =IF(Canoe!L68<>"",Canoe!L68*COS(RADIANS(O$4))-Canoe!M68*SIN(RADIANS(O$4))+O$1,"") -> 4100.8411 | M44: =IF(Canoe!M68<>"",(Canoe!L68*SIN(RADIANS(O$4))+Canoe!M68*COS(RADIANS(O$4))*O$3)+O$2,"") -> 81.46865213 | N44: =IF(Canoe!N68<>"",Canoe!N68*COS(RADIANS(O$4))-Canoe!O68*SIN(RADIANS(O$4))+O$1,"") -> 4100.824033 | O44: =IF(Canoe!O68<>"",(Canoe!N68*SIN(RADIANS(O$4))+Canoe!O68*COS(RADIANS(O$4))*O$3)+O$2,"") -> 29.85196441 | Q44: =IF(Canoe!Q68<>"",Canoe!Q68*COS(RADIANS(T$4))-Canoe!R68*SIN(RADIANS(T$4))+T$1,"") -> 4122.980132 | R44: =IF(Canoe!R68<>"",(Canoe!Q68*SIN(RADIANS(T$4))+Canoe!R68*COS(RADIANS(T$4))*T$3)+T$2,"") -> -14.94850761 | S44: =IF(Canoe!S68<>"",Canoe!S68*COS(RADIANS(T$4))-Canoe!T68*SIN(RADIANS(T$4))+T$1,"") -> 4122.980132 | T44: =IF(Canoe!T68<>"",(Canoe!S68*SIN(RADIANS(T$4))+Canoe!T68*COS(RADIANS(T$4))*T$3)+T$2,"") -> -9.54727304 | V44: =IF(Canoe!V68<>"",Canoe!V68*COS(RADIANS(Y$4))-Canoe!W68*SIN(RADIANS(Y$4))+Y$1,"") ->  | W44: =IF(Canoe!W68<>"",(Canoe!V68*SIN(RADIANS(Y$4))+Canoe!W68*COS(RADIANS(Y$4))*Y$3)+Y$2,"") ->  | X44: =IF(Canoe!X68<>"",Canoe!X68*COS(RADIANS(Y$4))-Canoe!Y68*SIN(RADIANS(Y$4))+Y$1,"") ->  | Y44: =IF(Canoe!Y68<>"",(Canoe!X68*SIN(RADIANS(Y$4))+Canoe!Y68*COS(RADIANS(Y$4))*Y$3)+Y$2,"") -> 
A45: 39 | B45: =IF(Canoe!B69<>"",Canoe!B69*COS(RADIANS(E$4))-Canoe!C69*SIN(RADIANS(E$4))+E$1,"") -> 4200.639146 | C45: =IF(Canoe!C69<>"",(Canoe!B69*SIN(RADIANS(E$4))+Canoe!C69*COS(RADIANS(E$4))*E$3)+E$2,"") -> 4.726079785e-13 | D45: =IF(Canoe!D69<>"",Canoe!D69*COS(RADIANS(E$4))-Canoe!E69*SIN(RADIANS(E$4))+E$1,"") -> 4200.639146 | E45: =IF(Canoe!E69<>"",(Canoe!D69*SIN(RADIANS(E$4))+Canoe!E69*COS(RADIANS(E$4))*E$3)+E$2,"") -> 4.729986954e-13 | G45: =IF(Canoe!G69<>"",Canoe!G69*COS(RADIANS(J$4))-Canoe!H69*SIN(RADIANS(J$4))+J$1,"") -> 4227.940603 | H45: =IF(Canoe!H69<>"",(Canoe!G69*SIN(RADIANS(J$4))+Canoe!H69*COS(RADIANS(J$4))*J$3)+J$2,"") -> 302.7798806 | I45: =IF(Canoe!I69<>"",Canoe!I69*COS(RADIANS(J$4))-Canoe!J69*SIN(RADIANS(J$4))+J$1,"") -> 4228.332236 | J45: =IF(Canoe!J69<>"",(Canoe!I69*SIN(RADIANS(J$4))+Canoe!J69*COS(RADIANS(J$4))*J$3)+J$2,"") -> 607.2529445 | L45: =IF(Canoe!L69<>"",Canoe!L69*COS(RADIANS(O$4))-Canoe!M69*SIN(RADIANS(O$4))+O$1,"") -> 4200.981879 | M45: =IF(Canoe!M69<>"",(Canoe!L69*SIN(RADIANS(O$4))+Canoe!M69*COS(RADIANS(O$4))*O$3)+O$2,"") -> 52.09081432 | N45: =IF(Canoe!N69<>"",Canoe!N69*COS(RADIANS(O$4))-Canoe!O69*SIN(RADIANS(O$4))+O$1,"") -> 4200.953655 | O45: =IF(Canoe!O69<>"",(Canoe!N69*SIN(RADIANS(O$4))+Canoe!O69*COS(RADIANS(O$4))*O$3)+O$2,"") -> 0.0908219748 | Q45: =IF(Canoe!Q69<>"",Canoe!Q69*COS(RADIANS(T$4))-Canoe!R69*SIN(RADIANS(T$4))+T$1,"") -> 4227.299322 | R45: =IF(Canoe!R69<>"",(Canoe!Q69*SIN(RADIANS(T$4))+Canoe!R69*COS(RADIANS(T$4))*T$3)+T$2,"") -> -9.54727304 | S45: =IF(Canoe!S69<>"",Canoe!S69*COS(RADIANS(T$4))-Canoe!T69*SIN(RADIANS(T$4))+T$1,"") -> 4227.299322 | T45: =IF(Canoe!T69<>"",(Canoe!S69*SIN(RADIANS(T$4))+Canoe!T69*COS(RADIANS(T$4))*T$3)+T$2,"") -> -9.54727304 | V45: =IF(Canoe!V69<>"",Canoe!V69*COS(RADIANS(Y$4))-Canoe!W69*SIN(RADIANS(Y$4))+Y$1,"") ->  | W45: =IF(Canoe!W69<>"",(Canoe!V69*SIN(RADIANS(Y$4))+Canoe!W69*COS(RADIANS(Y$4))*Y$3)+Y$2,"") ->  | X45: =IF(Canoe!X69<>"",Canoe!X69*COS(RADIANS(Y$4))-Canoe!Y69*SIN(RADIANS(Y$4))+Y$1,"") ->  | Y45: =IF(Canoe!Y69<>"",(Canoe!X69*SIN(RADIANS(Y$4))+Canoe!Y69*COS(RADIANS(Y$4))*Y$3)+Y$2,"") -> 
A46: 40 | B46: =IF(Canoe!B70<>"",Canoe!B70*COS(RADIANS(E$4))-Canoe!C70*SIN(RADIANS(E$4))+E$1,"") ->  | C46: =IF(Canoe!C70<>"",(Canoe!B70*SIN(RADIANS(E$4))+Canoe!C70*COS(RADIANS(E$4))*E$3)+E$2,"") ->  | D46: =IF(Canoe!D70<>"",Canoe!D70*COS(RADIANS(E$4))-Canoe!E70*SIN(RADIANS(E$4))+E$1,"") ->  | E46: =IF(Canoe!E70<>"",(Canoe!D70*SIN(RADIANS(E$4))+Canoe!E70*COS(RADIANS(E$4))*E$3)+E$2,"") ->  | G46: =IF(Canoe!G70<>"",Canoe!G70*COS(RADIANS(J$4))-Canoe!H70*SIN(RADIANS(J$4))+J$1,"") -> 4333.200475 | H46: =IF(Canoe!H70<>"",(Canoe!G70*SIN(RADIANS(J$4))+Canoe!H70*COS(RADIANS(J$4))*J$3)+J$2,"") -> 487.7631181 | I46: =IF(Canoe!I70<>"",Canoe!I70*COS(RADIANS(J$4))-Canoe!J70*SIN(RADIANS(J$4))+J$1,"") -> 4333.188391 | J46: =IF(Canoe!J70<>"",(Canoe!I70*SIN(RADIANS(J$4))+Canoe!J70*COS(RADIANS(J$4))*J$3)+J$2,"") -> 607.6890557 | L46: =IF(Canoe!L70<>"",Canoe!L70*COS(RADIANS(O$4))-Canoe!M70*SIN(RADIANS(O$4))+O$1,"") -> 4301.141778 | M46: =IF(Canoe!M70<>"",(Canoe!L70*SIN(RADIANS(O$4))+Canoe!M70*COS(RADIANS(O$4))*O$3)+O$2,"") -> 21.05860358 | N46: =IF(Canoe!N70<>"",Canoe!N70*COS(RADIANS(O$4))-Canoe!O70*SIN(RADIANS(O$4))+O$1,"") -> 4301.137126 | O46: =IF(Canoe!O70<>"",(Canoe!N70*SIN(RADIANS(O$4))+Canoe!O70*COS(RADIANS(O$4))*O$3)+O$2,"") -> 0.03614341553 | Q46: =IF(Canoe!Q70<>"",Canoe!Q70*COS(RADIANS(T$4))-Canoe!R70*SIN(RADIANS(T$4))+T$1,"") ->  | R46: =IF(Canoe!R70<>"",(Canoe!Q70*SIN(RADIANS(T$4))+Canoe!R70*COS(RADIANS(T$4))*T$3)+T$2,"") ->  | S46: =IF(Canoe!S70<>"",Canoe!S70*COS(RADIANS(T$4))-Canoe!T70*SIN(RADIANS(T$4))+T$1,"") ->  | T46: =IF(Canoe!T70<>"",(Canoe!S70*SIN(RADIANS(T$4))+Canoe!T70*COS(RADIANS(T$4))*T$3)+T$2,"") ->  | V46: =IF(Canoe!V70<>"",Canoe!V70*COS(RADIANS(Y$4))-Canoe!W70*SIN(RADIANS(Y$4))+Y$1,"") ->  | W46: =IF(Canoe!W70<>"",(Canoe!V70*SIN(RADIANS(Y$4))+Canoe!W70*COS(RADIANS(Y$4))*Y$3)+Y$2,"") ->  | X46: =IF(Canoe!X70<>"",Canoe!X70*COS(RADIANS(Y$4))-Canoe!Y70*SIN(RADIANS(Y$4))+Y$1,"") ->  | Y46: =IF(Canoe!Y70<>"",(Canoe!X70*SIN(RADIANS(Y$4))+Canoe!Y70*COS(RADIANS(Y$4))*Y$3)+Y$2,"") -> 
A47: 41 | B47: =IF(Canoe!B71<>"",Canoe!B71*COS(RADIANS(E$4))-Canoe!C71*SIN(RADIANS(E$4))+E$1,"") ->  | C47: =IF(Canoe!C71<>"",(Canoe!B71*SIN(RADIANS(E$4))+Canoe!C71*COS(RADIANS(E$4))*E$3)+E$2,"") ->  | D47: =IF(Canoe!D71<>"",Canoe!D71*COS(RADIANS(E$4))-Canoe!E71*SIN(RADIANS(E$4))+E$1,"") ->  | E47: =IF(Canoe!E71<>"",(Canoe!D71*SIN(RADIANS(E$4))+Canoe!E71*COS(RADIANS(E$4))*E$3)+E$2,"") ->  | G47: =IF(Canoe!G71<>"",Canoe!G71*COS(RADIANS(J$4))-Canoe!H71*SIN(RADIANS(J$4))+J$1,"") -> 4401.622697 | H47: =IF(Canoe!H71<>"",(Canoe!G71*SIN(RADIANS(J$4))+Canoe!H71*COS(RADIANS(J$4))*J$3)+J$2,"") -> 608.0003418 | I47: =IF(Canoe!I71<>"",Canoe!I71*COS(RADIANS(J$4))-Canoe!J71*SIN(RADIANS(J$4))+J$1,"") -> 4401.622697 | J47: =IF(Canoe!J71<>"",(Canoe!I71*SIN(RADIANS(J$4))+Canoe!J71*COS(RADIANS(J$4))*J$3)+J$2,"") -> 608.0003418 | L47: =IF(Canoe!L71<>"",Canoe!L71*COS(RADIANS(O$4))-Canoe!M71*SIN(RADIANS(O$4))+O$1,"") -> 4366.256383 | M47: =IF(Canoe!M71<>"",(Canoe!L71*SIN(RADIANS(O$4))+Canoe!M71*COS(RADIANS(O$4))*O$3)+O$2,"") -> 0.0006023520073 | N47: =IF(Canoe!N71<>"",Canoe!N71*COS(RADIANS(O$4))-Canoe!O71*SIN(RADIANS(O$4))+O$1,"") -> 4366.256383 | O47: =IF(Canoe!O71<>"",(Canoe!N71*SIN(RADIANS(O$4))+Canoe!O71*COS(RADIANS(O$4))*O$3)+O$2,"") -> 0.0006023520073 | Q47: =IF(Canoe!Q71<>"",Canoe!Q71*COS(RADIANS(T$4))-Canoe!R71*SIN(RADIANS(T$4))+T$1,"") ->  | R47: =IF(Canoe!R71<>"",(Canoe!Q71*SIN(RADIANS(T$4))+Canoe!R71*COS(RADIANS(T$4))*T$3)+T$2,"") ->  | S47: =IF(Canoe!S71<>"",Canoe!S71*COS(RADIANS(T$4))-Canoe!T71*SIN(RADIANS(T$4))+T$1,"") ->  | T47: =IF(Canoe!T71<>"",(Canoe!S71*SIN(RADIANS(T$4))+Canoe!T71*COS(RADIANS(T$4))*T$3)+T$2,"") ->  | V47: =IF(Canoe!V71<>"",Canoe!V71*COS(RADIANS(Y$4))-Canoe!W71*SIN(RADIANS(Y$4))+Y$1,"") ->  | W47: =IF(Canoe!W71<>"",(Canoe!V71*SIN(RADIANS(Y$4))+Canoe!W71*COS(RADIANS(Y$4))*Y$3)+Y$2,"") ->  | X47: =IF(Canoe!X71<>"",Canoe!X71*COS(RADIANS(Y$4))-Canoe!Y71*SIN(RADIANS(Y$4))+Y$1,"") ->  | Y47: =IF(Canoe!Y71<>"",(Canoe!X71*SIN(RADIANS(Y$4))+Canoe!Y71*COS(RADIANS(Y$4))*Y$3)+Y$2,"") -> 
A48: 42 | B48: =IF(Canoe!B72<>"",Canoe!B72*COS(RADIANS(E$4))-Canoe!C72*SIN(RADIANS(E$4))+E$1,"") ->  | C48: =IF(Canoe!C72<>"",(Canoe!B72*SIN(RADIANS(E$4))+Canoe!C72*COS(RADIANS(E$4))*E$3)+E$2,"") ->  | D48: =IF(Canoe!D72<>"",Canoe!D72*COS(RADIANS(E$4))-Canoe!E72*SIN(RADIANS(E$4))+E$1,"") ->  | E48: =IF(Canoe!E72<>"",(Canoe!D72*SIN(RADIANS(E$4))+Canoe!E72*COS(RADIANS(E$4))*E$3)+E$2,"") ->  | G48: =IF(Canoe!G72<>"",Canoe!G72*COS(RADIANS(J$4))-Canoe!H72*SIN(RADIANS(J$4))+J$1,"") ->  | H48: =IF(Canoe!H72<>"",(Canoe!G72*SIN(RADIANS(J$4))+Canoe!H72*COS(RADIANS(J$4))*J$3)+J$2,"") ->  | I48: =IF(Canoe!I72<>"",Canoe!I72*COS(RADIANS(J$4))-Canoe!J72*SIN(RADIANS(J$4))+J$1,"") ->  | J48: =IF(Canoe!J72<>"",(Canoe!I72*SIN(RADIANS(J$4))+Canoe!J72*COS(RADIANS(J$4))*J$3)+J$2,"") ->  | L48: =IF(Canoe!L72<>"",Canoe!L72*COS(RADIANS(O$4))-Canoe!M72*SIN(RADIANS(O$4))+O$1,"") ->  | M48: =IF(Canoe!M72<>"",(Canoe!L72*SIN(RADIANS(O$4))+Canoe!M72*COS(RADIANS(O$4))*O$3)+O$2,"") ->  | N48: =IF(Canoe!N72<>"",Canoe!N72*COS(RADIANS(O$4))-Canoe!O72*SIN(RADIANS(O$4))+O$1,"") ->  | O48: =IF(Canoe!O72<>"",(Canoe!N72*SIN(RADIANS(O$4))+Canoe!O72*COS(RADIANS(O$4))*O$3)+O$2,"") ->  | Q48: =IF(Canoe!Q72<>"",Canoe!Q72*COS(RADIANS(T$4))-Canoe!R72*SIN(RADIANS(T$4))+T$1,"") ->  | R48: =IF(Canoe!R72<>"",(Canoe!Q72*SIN(RADIANS(T$4))+Canoe!R72*COS(RADIANS(T$4))*T$3)+T$2,"") ->  | S48: =IF(Canoe!S72<>"",Canoe!S72*COS(RADIANS(T$4))-Canoe!T72*SIN(RADIANS(T$4))+T$1,"") ->  | T48: =IF(Canoe!T72<>"",(Canoe!S72*SIN(RADIANS(T$4))+Canoe!T72*COS(RADIANS(T$4))*T$3)+T$2,"") ->  | V48: =IF(Canoe!V72<>"",Canoe!V72*COS(RADIANS(Y$4))-Canoe!W72*SIN(RADIANS(Y$4))+Y$1,"") ->  | W48: =IF(Canoe!W72<>"",(Canoe!V72*SIN(RADIANS(Y$4))+Canoe!W72*COS(RADIANS(Y$4))*Y$3)+Y$2,"") ->  | X48: =IF(Canoe!X72<>"",Canoe!X72*COS(RADIANS(Y$4))-Canoe!Y72*SIN(RADIANS(Y$4))+Y$1,"") ->  | Y48: =IF(Canoe!Y72<>"",(Canoe!X72*SIN(RADIANS(Y$4))+Canoe!Y72*COS(RADIANS(Y$4))*Y$3)+Y$2,"") -> 
A49: 43 | B49: =IF(Canoe!B73<>"",Canoe!B73*COS(RADIANS(E$4))-Canoe!C73*SIN(RADIANS(E$4))+E$1,"") ->  | C49: =IF(Canoe!C73<>"",(Canoe!B73*SIN(RADIANS(E$4))+Canoe!C73*COS(RADIANS(E$4))*E$3)+E$2,"") ->  | D49: =IF(Canoe!D73<>"",Canoe!D73*COS(RADIANS(E$4))-Canoe!E73*SIN(RADIANS(E$4))+E$1,"") ->  | E49: =IF(Canoe!E73<>"",(Canoe!D73*SIN(RADIANS(E$4))+Canoe!E73*COS(RADIANS(E$4))*E$3)+E$2,"") ->  | G49: =IF(Canoe!G73<>"",Canoe!G73*COS(RADIANS(J$4))-Canoe!H73*SIN(RADIANS(J$4))+J$1,"") ->  | H49: =IF(Canoe!H73<>"",(Canoe!G73*SIN(RADIANS(J$4))+Canoe!H73*COS(RADIANS(J$4))*J$3)+J$2,"") ->  | I49: =IF(Canoe!I73<>"",Canoe!I73*COS(RADIANS(J$4))-Canoe!J73*SIN(RADIANS(J$4))+J$1,"") ->  | J49: =IF(Canoe!J73<>"",(Canoe!I73*SIN(RADIANS(J$4))+Canoe!J73*COS(RADIANS(J$4))*J$3)+J$2,"") ->  | L49: =IF(Canoe!L73<>"",Canoe!L73*COS(RADIANS(O$4))-Canoe!M73*SIN(RADIANS(O$4))+O$1,"") ->  | M49: =IF(Canoe!M73<>"",(Canoe!L73*SIN(RADIANS(O$4))+Canoe!M73*COS(RADIANS(O$4))*O$3)+O$2,"") ->  | N49: =IF(Canoe!N73<>"",Canoe!N73*COS(RADIANS(O$4))-Canoe!O73*SIN(RADIANS(O$4))+O$1,"") ->  | O49: =IF(Canoe!O73<>"",(Canoe!N73*SIN(RADIANS(O$4))+Canoe!O73*COS(RADIANS(O$4))*O$3)+O$2,"") ->  | Q49: =IF(Canoe!Q73<>"",Canoe!Q73*COS(RADIANS(T$4))-Canoe!R73*SIN(RADIANS(T$4))+T$1,"") ->  | R49: =IF(Canoe!R73<>"",(Canoe!Q73*SIN(RADIANS(T$4))+Canoe!R73*COS(RADIANS(T$4))*T$3)+T$2,"") ->  | S49: =IF(Canoe!S73<>"",Canoe!S73*COS(RADIANS(T$4))-Canoe!T73*SIN(RADIANS(T$4))+T$1,"") ->  | T49: =IF(Canoe!T73<>"",(Canoe!S73*SIN(RADIANS(T$4))+Canoe!T73*COS(RADIANS(T$4))*T$3)+T$2,"") ->  | V49: =IF(Canoe!V73<>"",Canoe!V73*COS(RADIANS(Y$4))-Canoe!W73*SIN(RADIANS(Y$4))+Y$1,"") ->  | W49: =IF(Canoe!W73<>"",(Canoe!V73*SIN(RADIANS(Y$4))+Canoe!W73*COS(RADIANS(Y$4))*Y$3)+Y$2,"") ->  | X49: =IF(Canoe!X73<>"",Canoe!X73*COS(RADIANS(Y$4))-Canoe!Y73*SIN(RADIANS(Y$4))+Y$1,"") ->  | Y49: =IF(Canoe!Y73<>"",(Canoe!X73*SIN(RADIANS(Y$4))+Canoe!Y73*COS(RADIANS(Y$4))*Y$3)+Y$2,"") -> 
A50: 44 | B50: =IF(Canoe!B74<>"",Canoe!B74*COS(RADIANS(E$4))-Canoe!C74*SIN(RADIANS(E$4))+E$1,"") ->  | C50: =IF(Canoe!C74<>"",(Canoe!B74*SIN(RADIANS(E$4))+Canoe!C74*COS(RADIANS(E$4))*E$3)+E$2,"") ->  | D50: =IF(Canoe!D74<>"",Canoe!D74*COS(RADIANS(E$4))-Canoe!E74*SIN(RADIANS(E$4))+E$1,"") ->  | E50: =IF(Canoe!E74<>"",(Canoe!D74*SIN(RADIANS(E$4))+Canoe!E74*COS(RADIANS(E$4))*E$3)+E$2,"") ->  | G50: =IF(Canoe!G74<>"",Canoe!G74*COS(RADIANS(J$4))-Canoe!H74*SIN(RADIANS(J$4))+J$1,"") ->  | H50: =IF(Canoe!H74<>"",(Canoe!G74*SIN(RADIANS(J$4))+Canoe!H74*COS(RADIANS(J$4))*J$3)+J$2,"") ->  | I50: =IF(Canoe!I74<>"",Canoe!I74*COS(RADIANS(J$4))-Canoe!J74*SIN(RADIANS(J$4))+J$1,"") ->  | J50: =IF(Canoe!J74<>"",(Canoe!I74*SIN(RADIANS(J$4))+Canoe!J74*COS(RADIANS(J$4))*J$3)+J$2,"") ->  | L50: =IF(Canoe!L74<>"",Canoe!L74*COS(RADIANS(O$4))-Canoe!M74*SIN(RADIANS(O$4))+O$1,"") ->  | M50: =IF(Canoe!M74<>"",(Canoe!L74*SIN(RADIANS(O$4))+Canoe!M74*COS(RADIANS(O$4))*O$3)+O$2,"") ->  | N50: =IF(Canoe!N74<>"",Canoe!N74*COS(RADIANS(O$4))-Canoe!O74*SIN(RADIANS(O$4))+O$1,"") ->  | O50: =IF(Canoe!O74<>"",(Canoe!N74*SIN(RADIANS(O$4))+Canoe!O74*COS(RADIANS(O$4))*O$3)+O$2,"") ->  | Q50: =IF(Canoe!Q74<>"",Canoe!Q74*COS(RADIANS(T$4))-Canoe!R74*SIN(RADIANS(T$4))+T$1,"") ->  | R50: =IF(Canoe!R74<>"",(Canoe!Q74*SIN(RADIANS(T$4))+Canoe!R74*COS(RADIANS(T$4))*T$3)+T$2,"") ->  | S50: =IF(Canoe!S74<>"",Canoe!S74*COS(RADIANS(T$4))-Canoe!T74*SIN(RADIANS(T$4))+T$1,"") ->  | T50: =IF(Canoe!T74<>"",(Canoe!S74*SIN(RADIANS(T$4))+Canoe!T74*COS(RADIANS(T$4))*T$3)+T$2,"") ->  | V50: =IF(Canoe!V74<>"",Canoe!V74*COS(RADIANS(Y$4))-Canoe!W74*SIN(RADIANS(Y$4))+Y$1,"") ->  | W50: =IF(Canoe!W74<>"",(Canoe!V74*SIN(RADIANS(Y$4))+Canoe!W74*COS(RADIANS(Y$4))*Y$3)+Y$2,"") ->  | X50: =IF(Canoe!X74<>"",Canoe!X74*COS(RADIANS(Y$4))-Canoe!Y74*SIN(RADIANS(Y$4))+Y$1,"") ->  | Y50: =IF(Canoe!Y74<>"",(Canoe!X74*SIN(RADIANS(Y$4))+Canoe!Y74*COS(RADIANS(Y$4))*Y$3)+Y$2,"") -> 
A51: 45 | B51: =IF(Canoe!B75<>"",Canoe!B75*COS(RADIANS(E$4))-Canoe!C75*SIN(RADIANS(E$4))+E$1,"") ->  | C51: =IF(Canoe!C75<>"",(Canoe!B75*SIN(RADIANS(E$4))+Canoe!C75*COS(RADIANS(E$4))*E$3)+E$2,"") ->  | D51: =IF(Canoe!D75<>"",Canoe!D75*COS(RADIANS(E$4))-Canoe!E75*SIN(RADIANS(E$4))+E$1,"") ->  | E51: =IF(Canoe!E75<>"",(Canoe!D75*SIN(RADIANS(E$4))+Canoe!E75*COS(RADIANS(E$4))*E$3)+E$2,"") ->  | G51: =IF(Canoe!G75<>"",Canoe!G75*COS(RADIANS(J$4))-Canoe!H75*SIN(RADIANS(J$4))+J$1,"") ->  | H51: =IF(Canoe!H75<>"",(Canoe!G75*SIN(RADIANS(J$4))+Canoe!H75*COS(RADIANS(J$4))*J$3)+J$2,"") ->  | I51: =IF(Canoe!I75<>"",Canoe!I75*COS(RADIANS(J$4))-Canoe!J75*SIN(RADIANS(J$4))+J$1,"") ->  | J51: =IF(Canoe!J75<>"",(Canoe!I75*SIN(RADIANS(J$4))+Canoe!J75*COS(RADIANS(J$4))*J$3)+J$2,"") ->  | L51: =IF(Canoe!L75<>"",Canoe!L75*COS(RADIANS(O$4))-Canoe!M75*SIN(RADIANS(O$4))+O$1,"") ->  | M51: =IF(Canoe!M75<>"",(Canoe!L75*SIN(RADIANS(O$4))+Canoe!M75*COS(RADIANS(O$4))*O$3)+O$2,"") ->  | N51: =IF(Canoe!N75<>"",Canoe!N75*COS(RADIANS(O$4))-Canoe!O75*SIN(RADIANS(O$4))+O$1,"") ->  | O51: =IF(Canoe!O75<>"",(Canoe!N75*SIN(RADIANS(O$4))+Canoe!O75*COS(RADIANS(O$4))*O$3)+O$2,"") ->  | Q51: =IF(Canoe!Q75<>"",Canoe!Q75*COS(RADIANS(T$4))-Canoe!R75*SIN(RADIANS(T$4))+T$1,"") ->  | R51: =IF(Canoe!R75<>"",(Canoe!Q75*SIN(RADIANS(T$4))+Canoe!R75*COS(RADIANS(T$4))*T$3)+T$2,"") ->  | S51: =IF(Canoe!S75<>"",Canoe!S75*COS(RADIANS(T$4))-Canoe!T75*SIN(RADIANS(T$4))+T$1,"") ->  | T51: =IF(Canoe!T75<>"",(Canoe!S75*SIN(RADIANS(T$4))+Canoe!T75*COS(RADIANS(T$4))*T$3)+T$2,"") ->  | V51: =IF(Canoe!V75<>"",Canoe!V75*COS(RADIANS(Y$4))-Canoe!W75*SIN(RADIANS(Y$4))+Y$1,"") ->  | W51: =IF(Canoe!W75<>"",(Canoe!V75*SIN(RADIANS(Y$4))+Canoe!W75*COS(RADIANS(Y$4))*Y$3)+Y$2,"") ->  | X51: =IF(Canoe!X75<>"",Canoe!X75*COS(RADIANS(Y$4))-Canoe!Y75*SIN(RADIANS(Y$4))+Y$1,"") ->  | Y51: =IF(Canoe!Y75<>"",(Canoe!X75*SIN(RADIANS(Y$4))+Canoe!Y75*COS(RADIANS(Y$4))*Y$3)+Y$2,"") -> 
A52: 46 | B52: =IF(Canoe!B76<>"",Canoe!B76*COS(RADIANS(E$4))-Canoe!C76*SIN(RADIANS(E$4))+E$1,"") ->  | C52: =IF(Canoe!C76<>"",(Canoe!B76*SIN(RADIANS(E$4))+Canoe!C76*COS(RADIANS(E$4))*E$3)+E$2,"") ->  | D52: =IF(Canoe!D76<>"",Canoe!D76*COS(RADIANS(E$4))-Canoe!E76*SIN(RADIANS(E$4))+E$1,"") ->  | E52: =IF(Canoe!E76<>"",(Canoe!D76*SIN(RADIANS(E$4))+Canoe!E76*COS(RADIANS(E$4))*E$3)+E$2,"") ->  | G52: =IF(Canoe!G76<>"",Canoe!G76*COS(RADIANS(J$4))-Canoe!H76*SIN(RADIANS(J$4))+J$1,"") ->  | H52: =IF(Canoe!H76<>"",(Canoe!G76*SIN(RADIANS(J$4))+Canoe!H76*COS(RADIANS(J$4))*J$3)+J$2,"") ->  | I52: =IF(Canoe!I76<>"",Canoe!I76*COS(RADIANS(J$4))-Canoe!J76*SIN(RADIANS(J$4))+J$1,"") ->  | J52: =IF(Canoe!J76<>"",(Canoe!I76*SIN(RADIANS(J$4))+Canoe!J76*COS(RADIANS(J$4))*J$3)+J$2,"") ->  | L52: =IF(Canoe!L76<>"",Canoe!L76*COS(RADIANS(O$4))-Canoe!M76*SIN(RADIANS(O$4))+O$1,"") ->  | M52: =IF(Canoe!M76<>"",(Canoe!L76*SIN(RADIANS(O$4))+Canoe!M76*COS(RADIANS(O$4))*O$3)+O$2,"") ->  | N52: =IF(Canoe!N76<>"",Canoe!N76*COS(RADIANS(O$4))-Canoe!O76*SIN(RADIANS(O$4))+O$1,"") ->  | O52: =IF(Canoe!O76<>"",(Canoe!N76*SIN(RADIANS(O$4))+Canoe!O76*COS(RADIANS(O$4))*O$3)+O$2,"") ->  | Q52: =IF(Canoe!Q76<>"",Canoe!Q76*COS(RADIANS(T$4))-Canoe!R76*SIN(RADIANS(T$4))+T$1,"") ->  | R52: =IF(Canoe!R76<>"",(Canoe!Q76*SIN(RADIANS(T$4))+Canoe!R76*COS(RADIANS(T$4))*T$3)+T$2,"") ->  | S52: =IF(Canoe!S76<>"",Canoe!S76*COS(RADIANS(T$4))-Canoe!T76*SIN(RADIANS(T$4))+T$1,"") ->  | T52: =IF(Canoe!T76<>"",(Canoe!S76*SIN(RADIANS(T$4))+Canoe!T76*COS(RADIANS(T$4))*T$3)+T$2,"") ->  | V52: =IF(Canoe!V76<>"",Canoe!V76*COS(RADIANS(Y$4))-Canoe!W76*SIN(RADIANS(Y$4))+Y$1,"") ->  | W52: =IF(Canoe!W76<>"",(Canoe!V76*SIN(RADIANS(Y$4))+Canoe!W76*COS(RADIANS(Y$4))*Y$3)+Y$2,"") ->  | X52: =IF(Canoe!X76<>"",Canoe!X76*COS(RADIANS(Y$4))-Canoe!Y76*SIN(RADIANS(Y$4))+Y$1,"") ->  | Y52: =IF(Canoe!Y76<>"",(Canoe!X76*SIN(RADIANS(Y$4))+Canoe!Y76*COS(RADIANS(Y$4))*Y$3)+Y$2,"") -> 
A53: 47 | B53: =IF(Canoe!B77<>"",Canoe!B77*COS(RADIANS(E$4))-Canoe!C77*SIN(RADIANS(E$4))+E$1,"") ->  | C53: =IF(Canoe!C77<>"",(Canoe!B77*SIN(RADIANS(E$4))+Canoe!C77*COS(RADIANS(E$4))*E$3)+E$2,"") ->  | D53: =IF(Canoe!D77<>"",Canoe!D77*COS(RADIANS(E$4))-Canoe!E77*SIN(RADIANS(E$4))+E$1,"") ->  | E53: =IF(Canoe!E77<>"",(Canoe!D77*SIN(RADIANS(E$4))+Canoe!E77*COS(RADIANS(E$4))*E$3)+E$2,"") ->  | G53: =IF(Canoe!G77<>"",Canoe!G77*COS(RADIANS(J$4))-Canoe!H77*SIN(RADIANS(J$4))+J$1,"") ->  | H53: =IF(Canoe!H77<>"",(Canoe!G77*SIN(RADIANS(J$4))+Canoe!H77*COS(RADIANS(J$4))*J$3)+J$2,"") ->  | I53: =IF(Canoe!I77<>"",Canoe!I77*COS(RADIANS(J$4))-Canoe!J77*SIN(RADIANS(J$4))+J$1,"") ->  | J53: =IF(Canoe!J77<>"",(Canoe!I77*SIN(RADIANS(J$4))+Canoe!J77*COS(RADIANS(J$4))*J$3)+J$2,"") ->  | L53: =IF(Canoe!L77<>"",Canoe!L77*COS(RADIANS(O$4))-Canoe!M77*SIN(RADIANS(O$4))+O$1,"") ->  | M53: =IF(Canoe!M77<>"",(Canoe!L77*SIN(RADIANS(O$4))+Canoe!M77*COS(RADIANS(O$4))*O$3)+O$2,"") ->  | N53: =IF(Canoe!N77<>"",Canoe!N77*COS(RADIANS(O$4))-Canoe!O77*SIN(RADIANS(O$4))+O$1,"") ->  | O53: =IF(Canoe!O77<>"",(Canoe!N77*SIN(RADIANS(O$4))+Canoe!O77*COS(RADIANS(O$4))*O$3)+O$2,"") ->  | Q53: =IF(Canoe!Q77<>"",Canoe!Q77*COS(RADIANS(T$4))-Canoe!R77*SIN(RADIANS(T$4))+T$1,"") ->  | R53: =IF(Canoe!R77<>"",(Canoe!Q77*SIN(RADIANS(T$4))+Canoe!R77*COS(RADIANS(T$4))*T$3)+T$2,"") ->  | S53: =IF(Canoe!S77<>"",Canoe!S77*COS(RADIANS(T$4))-Canoe!T77*SIN(RADIANS(T$4))+T$1,"") ->  | T53: =IF(Canoe!T77<>"",(Canoe!S77*SIN(RADIANS(T$4))+Canoe!T77*COS(RADIANS(T$4))*T$3)+T$2,"") ->  | V53: =IF(Canoe!V77<>"",Canoe!V77*COS(RADIANS(Y$4))-Canoe!W77*SIN(RADIANS(Y$4))+Y$1,"") ->  | W53: =IF(Canoe!W77<>"",(Canoe!V77*SIN(RADIANS(Y$4))+Canoe!W77*COS(RADIANS(Y$4))*Y$3)+Y$2,"") ->  | X53: =IF(Canoe!X77<>"",Canoe!X77*COS(RADIANS(Y$4))-Canoe!Y77*SIN(RADIANS(Y$4))+Y$1,"") ->  | Y53: =IF(Canoe!Y77<>"",(Canoe!X77*SIN(RADIANS(Y$4))+Canoe!Y77*COS(RADIANS(Y$4))*Y$3)+Y$2,"") -> 
A54: 48 | B54: =IF(Canoe!B78<>"",Canoe!B78*COS(RADIANS(E$4))-Canoe!C78*SIN(RADIANS(E$4))+E$1,"") ->  | C54: =IF(Canoe!C78<>"",(Canoe!B78*SIN(RADIANS(E$4))+Canoe!C78*COS(RADIANS(E$4))*E$3)+E$2,"") ->  | D54: =IF(Canoe!D78<>"",Canoe!D78*COS(RADIANS(E$4))-Canoe!E78*SIN(RADIANS(E$4))+E$1,"") ->  | E54: =IF(Canoe!E78<>"",(Canoe!D78*SIN(RADIANS(E$4))+Canoe!E78*COS(RADIANS(E$4))*E$3)+E$2,"") ->  | G54: =IF(Canoe!G78<>"",Canoe!G78*COS(RADIANS(J$4))-Canoe!H78*SIN(RADIANS(J$4))+J$1,"") ->  | H54: =IF(Canoe!H78<>"",(Canoe!G78*SIN(RADIANS(J$4))+Canoe!H78*COS(RADIANS(J$4))*J$3)+J$2,"") ->  | I54: =IF(Canoe!I78<>"",Canoe!I78*COS(RADIANS(J$4))-Canoe!J78*SIN(RADIANS(J$4))+J$1,"") ->  | J54: =IF(Canoe!J78<>"",(Canoe!I78*SIN(RADIANS(J$4))+Canoe!J78*COS(RADIANS(J$4))*J$3)+J$2,"") ->  | L54: =IF(Canoe!L78<>"",Canoe!L78*COS(RADIANS(O$4))-Canoe!M78*SIN(RADIANS(O$4))+O$1,"") ->  | M54: =IF(Canoe!M78<>"",(Canoe!L78*SIN(RADIANS(O$4))+Canoe!M78*COS(RADIANS(O$4))*O$3)+O$2,"") ->  | N54: =IF(Canoe!N78<>"",Canoe!N78*COS(RADIANS(O$4))-Canoe!O78*SIN(RADIANS(O$4))+O$1,"") ->  | O54: =IF(Canoe!O78<>"",(Canoe!N78*SIN(RADIANS(O$4))+Canoe!O78*COS(RADIANS(O$4))*O$3)+O$2,"") ->  | Q54: =IF(Canoe!Q78<>"",Canoe!Q78*COS(RADIANS(T$4))-Canoe!R78*SIN(RADIANS(T$4))+T$1,"") ->  | R54: =IF(Canoe!R78<>"",(Canoe!Q78*SIN(RADIANS(T$4))+Canoe!R78*COS(RADIANS(T$4))*T$3)+T$2,"") ->  | S54: =IF(Canoe!S78<>"",Canoe!S78*COS(RADIANS(T$4))-Canoe!T78*SIN(RADIANS(T$4))+T$1,"") ->  | T54: =IF(Canoe!T78<>"",(Canoe!S78*SIN(RADIANS(T$4))+Canoe!T78*COS(RADIANS(T$4))*T$3)+T$2,"") ->  | V54: =IF(Canoe!V78<>"",Canoe!V78*COS(RADIANS(Y$4))-Canoe!W78*SIN(RADIANS(Y$4))+Y$1,"") ->  | W54: =IF(Canoe!W78<>"",(Canoe!V78*SIN(RADIANS(Y$4))+Canoe!W78*COS(RADIANS(Y$4))*Y$3)+Y$2,"") ->  | X54: =IF(Canoe!X78<>"",Canoe!X78*COS(RADIANS(Y$4))-Canoe!Y78*SIN(RADIANS(Y$4))+Y$1,"") ->  | Y54: =IF(Canoe!Y78<>"",(Canoe!X78*SIN(RADIANS(Y$4))+Canoe!Y78*COS(RADIANS(Y$4))*Y$3)+Y$2,"") -> 
A55: 49 | B55: =IF(Canoe!B79<>"",Canoe!B79*COS(RADIANS(E$4))-Canoe!C79*SIN(RADIANS(E$4))+E$1,"") ->  | C55: =IF(Canoe!C79<>"",(Canoe!B79*SIN(RADIANS(E$4))+Canoe!C79*COS(RADIANS(E$4))*E$3)+E$2,"") ->  | D55: =IF(Canoe!D79<>"",Canoe!D79*COS(RADIANS(E$4))-Canoe!E79*SIN(RADIANS(E$4))+E$1,"") ->  | E55: =IF(Canoe!E79<>"",(Canoe!D79*SIN(RADIANS(E$4))+Canoe!E79*COS(RADIANS(E$4))*E$3)+E$2,"") ->  | G55: =IF(Canoe!G79<>"",Canoe!G79*COS(RADIANS(J$4))-Canoe!H79*SIN(RADIANS(J$4))+J$1,"") ->  | H55: =IF(Canoe!H79<>"",(Canoe!G79*SIN(RADIANS(J$4))+Canoe!H79*COS(RADIANS(J$4))*J$3)+J$2,"") ->  | I55: =IF(Canoe!I79<>"",Canoe!I79*COS(RADIANS(J$4))-Canoe!J79*SIN(RADIANS(J$4))+J$1,"") ->  | J55: =IF(Canoe!J79<>"",(Canoe!I79*SIN(RADIANS(J$4))+Canoe!J79*COS(RADIANS(J$4))*J$3)+J$2,"") ->  | L55: =IF(Canoe!L79<>"",Canoe!L79*COS(RADIANS(O$4))-Canoe!M79*SIN(RADIANS(O$4))+O$1,"") ->  | M55: =IF(Canoe!M79<>"",(Canoe!L79*SIN(RADIANS(O$4))+Canoe!M79*COS(RADIANS(O$4))*O$3)+O$2,"") ->  | N55: =IF(Canoe!N79<>"",Canoe!N79*COS(RADIANS(O$4))-Canoe!O79*SIN(RADIANS(O$4))+O$1,"") ->  | O55: =IF(Canoe!O79<>"",(Canoe!N79*SIN(RADIANS(O$4))+Canoe!O79*COS(RADIANS(O$4))*O$3)+O$2,"") ->  | Q55: =IF(Canoe!Q79<>"",Canoe!Q79*COS(RADIANS(T$4))-Canoe!R79*SIN(RADIANS(T$4))+T$1,"") ->  | R55: =IF(Canoe!R79<>"",(Canoe!Q79*SIN(RADIANS(T$4))+Canoe!R79*COS(RADIANS(T$4))*T$3)+T$2,"") ->  | S55: =IF(Canoe!S79<>"",Canoe!S79*COS(RADIANS(T$4))-Canoe!T79*SIN(RADIANS(T$4))+T$1,"") ->  | T55: =IF(Canoe!T79<>"",(Canoe!S79*SIN(RADIANS(T$4))+Canoe!T79*COS(RADIANS(T$4))*T$3)+T$2,"") ->  | V55: =IF(Canoe!V79<>"",Canoe!V79*COS(RADIANS(Y$4))-Canoe!W79*SIN(RADIANS(Y$4))+Y$1,"") ->  | W55: =IF(Canoe!W79<>"",(Canoe!V79*SIN(RADIANS(Y$4))+Canoe!W79*COS(RADIANS(Y$4))*Y$3)+Y$2,"") ->  | X55: =IF(Canoe!X79<>"",Canoe!X79*COS(RADIANS(Y$4))-Canoe!Y79*SIN(RADIANS(Y$4))+Y$1,"") ->  | Y55: =IF(Canoe!Y79<>"",(Canoe!X79*SIN(RADIANS(Y$4))+Canoe!Y79*COS(RADIANS(Y$4))*Y$3)+Y$2,"") -> 
A56: 50 | B56: =IF(Canoe!B80<>"",Canoe!B80*COS(RADIANS(E$4))-Canoe!C80*SIN(RADIANS(E$4))+E$1,"") ->  | C56: =IF(Canoe!C80<>"",(Canoe!B80*SIN(RADIANS(E$4))+Canoe!C80*COS(RADIANS(E$4))*E$3)+E$2,"") ->  | D56: =IF(Canoe!D80<>"",Canoe!D80*COS(RADIANS(E$4))-Canoe!E80*SIN(RADIANS(E$4))+E$1,"") ->  | E56: =IF(Canoe!E80<>"",(Canoe!D80*SIN(RADIANS(E$4))+Canoe!E80*COS(RADIANS(E$4))*E$3)+E$2,"") ->  | G56: =IF(Canoe!G80<>"",Canoe!G80*COS(RADIANS(J$4))-Canoe!H80*SIN(RADIANS(J$4))+J$1,"") ->  | H56: =IF(Canoe!H80<>"",(Canoe!G80*SIN(RADIANS(J$4))+Canoe!H80*COS(RADIANS(J$4))*J$3)+J$2,"") ->  | I56: =IF(Canoe!I80<>"",Canoe!I80*COS(RADIANS(J$4))-Canoe!J80*SIN(RADIANS(J$4))+J$1,"") ->  | J56: =IF(Canoe!J80<>"",(Canoe!I80*SIN(RADIANS(J$4))+Canoe!J80*COS(RADIANS(J$4))*J$3)+J$2,"") ->  | L56: =IF(Canoe!L80<>"",Canoe!L80*COS(RADIANS(O$4))-Canoe!M80*SIN(RADIANS(O$4))+O$1,"") ->  | M56: =IF(Canoe!M80<>"",(Canoe!L80*SIN(RADIANS(O$4))+Canoe!M80*COS(RADIANS(O$4))*O$3)+O$2,"") ->  | N56: =IF(Canoe!N80<>"",Canoe!N80*COS(RADIANS(O$4))-Canoe!O80*SIN(RADIANS(O$4))+O$1,"") ->  | O56: =IF(Canoe!O80<>"",(Canoe!N80*SIN(RADIANS(O$4))+Canoe!O80*COS(RADIANS(O$4))*O$3)+O$2,"") ->  | Q56: =IF(Canoe!Q80<>"",Canoe!Q80*COS(RADIANS(T$4))-Canoe!R80*SIN(RADIANS(T$4))+T$1,"") ->  | R56: =IF(Canoe!R80<>"",(Canoe!Q80*SIN(RADIANS(T$4))+Canoe!R80*COS(RADIANS(T$4))*T$3)+T$2,"") ->  | S56: =IF(Canoe!S80<>"",Canoe!S80*COS(RADIANS(T$4))-Canoe!T80*SIN(RADIANS(T$4))+T$1,"") ->  | T56: =IF(Canoe!T80<>"",(Canoe!S80*SIN(RADIANS(T$4))+Canoe!T80*COS(RADIANS(T$4))*T$3)+T$2,"") ->  | V56: =IF(Canoe!V80<>"",Canoe!V80*COS(RADIANS(Y$4))-Canoe!W80*SIN(RADIANS(Y$4))+Y$1,"") ->  | W56: =IF(Canoe!W80<>"",(Canoe!V80*SIN(RADIANS(Y$4))+Canoe!W80*COS(RADIANS(Y$4))*Y$3)+Y$2,"") ->  | X56: =IF(Canoe!X80<>"",Canoe!X80*COS(RADIANS(Y$4))-Canoe!Y80*SIN(RADIANS(Y$4))+Y$1,"") ->  | Y56: =IF(Canoe!Y80<>"",(Canoe!X80*SIN(RADIANS(Y$4))+Canoe!Y80*COS(RADIANS(Y$4))*Y$3)+Y$2,"") -> 
A57: 51 | B57: =IF(Canoe!B81<>"",Canoe!B81*COS(RADIANS(E$4))-Canoe!C81*SIN(RADIANS(E$4))+E$1,"") ->  | C57: =IF(Canoe!C81<>"",(Canoe!B81*SIN(RADIANS(E$4))+Canoe!C81*COS(RADIANS(E$4))*E$3)+E$2,"") ->  | D57: =IF(Canoe!D81<>"",Canoe!D81*COS(RADIANS(E$4))-Canoe!E81*SIN(RADIANS(E$4))+E$1,"") ->  | E57: =IF(Canoe!E81<>"",(Canoe!D81*SIN(RADIANS(E$4))+Canoe!E81*COS(RADIANS(E$4))*E$3)+E$2,"") ->  | G57: =IF(Canoe!G81<>"",Canoe!G81*COS(RADIANS(J$4))-Canoe!H81*SIN(RADIANS(J$4))+J$1,"") ->  | H57: =IF(Canoe!H81<>"",(Canoe!G81*SIN(RADIANS(J$4))+Canoe!H81*COS(RADIANS(J$4))*J$3)+J$2,"") ->  | I57: =IF(Canoe!I81<>"",Canoe!I81*COS(RADIANS(J$4))-Canoe!J81*SIN(RADIANS(J$4))+J$1,"") ->  | J57: =IF(Canoe!J81<>"",(Canoe!I81*SIN(RADIANS(J$4))+Canoe!J81*COS(RADIANS(J$4))*J$3)+J$2,"") ->  | L57: =IF(Canoe!L81<>"",Canoe!L81*COS(RADIANS(O$4))-Canoe!M81*SIN(RADIANS(O$4))+O$1,"") ->  | M57: =IF(Canoe!M81<>"",(Canoe!L81*SIN(RADIANS(O$4))+Canoe!M81*COS(RADIANS(O$4))*O$3)+O$2,"") ->  | N57: =IF(Canoe!N81<>"",Canoe!N81*COS(RADIANS(O$4))-Canoe!O81*SIN(RADIANS(O$4))+O$1,"") ->  | O57: =IF(Canoe!O81<>"",(Canoe!N81*SIN(RADIANS(O$4))+Canoe!O81*COS(RADIANS(O$4))*O$3)+O$2,"") ->  | Q57: =IF(Canoe!Q81<>"",Canoe!Q81*COS(RADIANS(T$4))-Canoe!R81*SIN(RADIANS(T$4))+T$1,"") ->  | R57: =IF(Canoe!R81<>"",(Canoe!Q81*SIN(RADIANS(T$4))+Canoe!R81*COS(RADIANS(T$4))*T$3)+T$2,"") ->  | S57: =IF(Canoe!S81<>"",Canoe!S81*COS(RADIANS(T$4))-Canoe!T81*SIN(RADIANS(T$4))+T$1,"") ->  | T57: =IF(Canoe!T81<>"",(Canoe!S81*SIN(RADIANS(T$4))+Canoe!T81*COS(RADIANS(T$4))*T$3)+T$2,"") ->  | V57: =IF(Canoe!V81<>"",Canoe!V81*COS(RADIANS(Y$4))-Canoe!W81*SIN(RADIANS(Y$4))+Y$1,"") ->  | W57: =IF(Canoe!W81<>"",(Canoe!V81*SIN(RADIANS(Y$4))+Canoe!W81*COS(RADIANS(Y$4))*Y$3)+Y$2,"") ->  | X57: =IF(Canoe!X81<>"",Canoe!X81*COS(RADIANS(Y$4))-Canoe!Y81*SIN(RADIANS(Y$4))+Y$1,"") ->  | Y57: =IF(Canoe!Y81<>"",(Canoe!X81*SIN(RADIANS(Y$4))+Canoe!Y81*COS(RADIANS(Y$4))*Y$3)+Y$2,"") -> 
A58: 52 | B58: =IF(Canoe!B82<>"",Canoe!B82*COS(RADIANS(E$4))-Canoe!C82*SIN(RADIANS(E$4))+E$1,"") ->  | C58: =IF(Canoe!C82<>"",(Canoe!B82*SIN(RADIANS(E$4))+Canoe!C82*COS(RADIANS(E$4))*E$3)+E$2,"") ->  | D58: =IF(Canoe!D82<>"",Canoe!D82*COS(RADIANS(E$4))-Canoe!E82*SIN(RADIANS(E$4))+E$1,"") ->  | E58: =IF(Canoe!E82<>"",(Canoe!D82*SIN(RADIANS(E$4))+Canoe!E82*COS(RADIANS(E$4))*E$3)+E$2,"") ->  | G58: =IF(Canoe!G82<>"",Canoe!G82*COS(RADIANS(J$4))-Canoe!H82*SIN(RADIANS(J$4))+J$1,"") ->  | H58: =IF(Canoe!H82<>"",(Canoe!G82*SIN(RADIANS(J$4))+Canoe!H82*COS(RADIANS(J$4))*J$3)+J$2,"") ->  | I58: =IF(Canoe!I82<>"",Canoe!I82*COS(RADIANS(J$4))-Canoe!J82*SIN(RADIANS(J$4))+J$1,"") ->  | J58: =IF(Canoe!J82<>"",(Canoe!I82*SIN(RADIANS(J$4))+Canoe!J82*COS(RADIANS(J$4))*J$3)+J$2,"") ->  | L58: =IF(Canoe!L82<>"",Canoe!L82*COS(RADIANS(O$4))-Canoe!M82*SIN(RADIANS(O$4))+O$1,"") ->  | M58: =IF(Canoe!M82<>"",(Canoe!L82*SIN(RADIANS(O$4))+Canoe!M82*COS(RADIANS(O$4))*O$3)+O$2,"") ->  | N58: =IF(Canoe!N82<>"",Canoe!N82*COS(RADIANS(O$4))-Canoe!O82*SIN(RADIANS(O$4))+O$1,"") ->  | O58: =IF(Canoe!O82<>"",(Canoe!N82*SIN(RADIANS(O$4))+Canoe!O82*COS(RADIANS(O$4))*O$3)+O$2,"") ->  | Q58: =IF(Canoe!Q82<>"",Canoe!Q82*COS(RADIANS(T$4))-Canoe!R82*SIN(RADIANS(T$4))+T$1,"") ->  | R58: =IF(Canoe!R82<>"",(Canoe!Q82*SIN(RADIANS(T$4))+Canoe!R82*COS(RADIANS(T$4))*T$3)+T$2,"") ->  | S58: =IF(Canoe!S82<>"",Canoe!S82*COS(RADIANS(T$4))-Canoe!T82*SIN(RADIANS(T$4))+T$1,"") ->  | T58: =IF(Canoe!T82<>"",(Canoe!S82*SIN(RADIANS(T$4))+Canoe!T82*COS(RADIANS(T$4))*T$3)+T$2,"") ->  | V58: =IF(Canoe!V82<>"",Canoe!V82*COS(RADIANS(Y$4))-Canoe!W82*SIN(RADIANS(Y$4))+Y$1,"") ->  | W58: =IF(Canoe!W82<>"",(Canoe!V82*SIN(RADIANS(Y$4))+Canoe!W82*COS(RADIANS(Y$4))*Y$3)+Y$2,"") ->  | X58: =IF(Canoe!X82<>"",Canoe!X82*COS(RADIANS(Y$4))-Canoe!Y82*SIN(RADIANS(Y$4))+Y$1,"") ->  | Y58: =IF(Canoe!Y82<>"",(Canoe!X82*SIN(RADIANS(Y$4))+Canoe!Y82*COS(RADIANS(Y$4))*Y$3)+Y$2,"") -> 
A59: 53 | B59: =IF(Canoe!B83<>"",Canoe!B83*COS(RADIANS(E$4))-Canoe!C83*SIN(RADIANS(E$4))+E$1,"") ->  | C59: =IF(Canoe!C83<>"",(Canoe!B83*SIN(RADIANS(E$4))+Canoe!C83*COS(RADIANS(E$4))*E$3)+E$2,"") ->  | D59: =IF(Canoe!D83<>"",Canoe!D83*COS(RADIANS(E$4))-Canoe!E83*SIN(RADIANS(E$4))+E$1,"") ->  | E59: =IF(Canoe!E83<>"",(Canoe!D83*SIN(RADIANS(E$4))+Canoe!E83*COS(RADIANS(E$4))*E$3)+E$2,"") ->  | G59: =IF(Canoe!G83<>"",Canoe!G83*COS(RADIANS(J$4))-Canoe!H83*SIN(RADIANS(J$4))+J$1,"") ->  | H59: =IF(Canoe!H83<>"",(Canoe!G83*SIN(RADIANS(J$4))+Canoe!H83*COS(RADIANS(J$4))*J$3)+J$2,"") ->  | I59: =IF(Canoe!I83<>"",Canoe!I83*COS(RADIANS(J$4))-Canoe!J83*SIN(RADIANS(J$4))+J$1,"") ->  | J59: =IF(Canoe!J83<>"",(Canoe!I83*SIN(RADIANS(J$4))+Canoe!J83*COS(RADIANS(J$4))*J$3)+J$2,"") ->  | L59: =IF(Canoe!L83<>"",Canoe!L83*COS(RADIANS(O$4))-Canoe!M83*SIN(RADIANS(O$4))+O$1,"") ->  | M59: =IF(Canoe!M83<>"",(Canoe!L83*SIN(RADIANS(O$4))+Canoe!M83*COS(RADIANS(O$4))*O$3)+O$2,"") ->  | N59: =IF(Canoe!N83<>"",Canoe!N83*COS(RADIANS(O$4))-Canoe!O83*SIN(RADIANS(O$4))+O$1,"") ->  | O59: =IF(Canoe!O83<>"",(Canoe!N83*SIN(RADIANS(O$4))+Canoe!O83*COS(RADIANS(O$4))*O$3)+O$2,"") ->  | Q59: =IF(Canoe!Q83<>"",Canoe!Q83*COS(RADIANS(T$4))-Canoe!R83*SIN(RADIANS(T$4))+T$1,"") ->  | R59: =IF(Canoe!R83<>"",(Canoe!Q83*SIN(RADIANS(T$4))+Canoe!R83*COS(RADIANS(T$4))*T$3)+T$2,"") ->  | S59: =IF(Canoe!S83<>"",Canoe!S83*COS(RADIANS(T$4))-Canoe!T83*SIN(RADIANS(T$4))+T$1,"") ->  | T59: =IF(Canoe!T83<>"",(Canoe!S83*SIN(RADIANS(T$4))+Canoe!T83*COS(RADIANS(T$4))*T$3)+T$2,"") ->  | V59: =IF(Canoe!V83<>"",Canoe!V83*COS(RADIANS(Y$4))-Canoe!W83*SIN(RADIANS(Y$4))+Y$1,"") ->  | W59: =IF(Canoe!W83<>"",(Canoe!V83*SIN(RADIANS(Y$4))+Canoe!W83*COS(RADIANS(Y$4))*Y$3)+Y$2,"") ->  | X59: =IF(Canoe!X83<>"",Canoe!X83*COS(RADIANS(Y$4))-Canoe!Y83*SIN(RADIANS(Y$4))+Y$1,"") ->  | Y59: =IF(Canoe!Y83<>"",(Canoe!X83*SIN(RADIANS(Y$4))+Canoe!Y83*COS(RADIANS(Y$4))*Y$3)+Y$2,"") -> 
A60: 54 | B60: =IF(Canoe!B84<>"",Canoe!B84*COS(RADIANS(E$4))-Canoe!C84*SIN(RADIANS(E$4))+E$1,"") ->  | C60: =IF(Canoe!C84<>"",(Canoe!B84*SIN(RADIANS(E$4))+Canoe!C84*COS(RADIANS(E$4))*E$3)+E$2,"") ->  | D60: =IF(Canoe!D84<>"",Canoe!D84*COS(RADIANS(E$4))-Canoe!E84*SIN(RADIANS(E$4))+E$1,"") ->  | E60: =IF(Canoe!E84<>"",(Canoe!D84*SIN(RADIANS(E$4))+Canoe!E84*COS(RADIANS(E$4))*E$3)+E$2,"") ->  | G60: =IF(Canoe!G84<>"",Canoe!G84*COS(RADIANS(J$4))-Canoe!H84*SIN(RADIANS(J$4))+J$1,"") ->  | H60: =IF(Canoe!H84<>"",(Canoe!G84*SIN(RADIANS(J$4))+Canoe!H84*COS(RADIANS(J$4))*J$3)+J$2,"") ->  | I60: =IF(Canoe!I84<>"",Canoe!I84*COS(RADIANS(J$4))-Canoe!J84*SIN(RADIANS(J$4))+J$1,"") ->  | J60: =IF(Canoe!J84<>"",(Canoe!I84*SIN(RADIANS(J$4))+Canoe!J84*COS(RADIANS(J$4))*J$3)+J$2,"") ->  | L60: =IF(Canoe!L84<>"",Canoe!L84*COS(RADIANS(O$4))-Canoe!M84*SIN(RADIANS(O$4))+O$1,"") ->  | M60: =IF(Canoe!M84<>"",(Canoe!L84*SIN(RADIANS(O$4))+Canoe!M84*COS(RADIANS(O$4))*O$3)+O$2,"") ->  | N60: =IF(Canoe!N84<>"",Canoe!N84*COS(RADIANS(O$4))-Canoe!O84*SIN(RADIANS(O$4))+O$1,"") ->  | O60: =IF(Canoe!O84<>"",(Canoe!N84*SIN(RADIANS(O$4))+Canoe!O84*COS(RADIANS(O$4))*O$3)+O$2,"") ->  | Q60: =IF(Canoe!Q84<>"",Canoe!Q84*COS(RADIANS(T$4))-Canoe!R84*SIN(RADIANS(T$4))+T$1,"") ->  | R60: =IF(Canoe!R84<>"",(Canoe!Q84*SIN(RADIANS(T$4))+Canoe!R84*COS(RADIANS(T$4))*T$3)+T$2,"") ->  | S60: =IF(Canoe!S84<>"",Canoe!S84*COS(RADIANS(T$4))-Canoe!T84*SIN(RADIANS(T$4))+T$1,"") ->  | T60: =IF(Canoe!T84<>"",(Canoe!S84*SIN(RADIANS(T$4))+Canoe!T84*COS(RADIANS(T$4))*T$3)+T$2,"") ->  | V60: =IF(Canoe!V84<>"",Canoe!V84*COS(RADIANS(Y$4))-Canoe!W84*SIN(RADIANS(Y$4))+Y$1,"") ->  | W60: =IF(Canoe!W84<>"",(Canoe!V84*SIN(RADIANS(Y$4))+Canoe!W84*COS(RADIANS(Y$4))*Y$3)+Y$2,"") ->  | X60: =IF(Canoe!X84<>"",Canoe!X84*COS(RADIANS(Y$4))-Canoe!Y84*SIN(RADIANS(Y$4))+Y$1,"") ->  | Y60: =IF(Canoe!Y84<>"",(Canoe!X84*SIN(RADIANS(Y$4))+Canoe!Y84*COS(RADIANS(Y$4))*Y$3)+Y$2,"") -> 
A61: 55 | B61: =IF(Canoe!B85<>"",Canoe!B85*COS(RADIANS(E$4))-Canoe!C85*SIN(RADIANS(E$4))+E$1,"") ->  | C61: =IF(Canoe!C85<>"",(Canoe!B85*SIN(RADIANS(E$4))+Canoe!C85*COS(RADIANS(E$4))*E$3)+E$2,"") ->  | D61: =IF(Canoe!D85<>"",Canoe!D85*COS(RADIANS(E$4))-Canoe!E85*SIN(RADIANS(E$4))+E$1,"") ->  | E61: =IF(Canoe!E85<>"",(Canoe!D85*SIN(RADIANS(E$4))+Canoe!E85*COS(RADIANS(E$4))*E$3)+E$2,"") ->  | G61: =IF(Canoe!G85<>"",Canoe!G85*COS(RADIANS(J$4))-Canoe!H85*SIN(RADIANS(J$4))+J$1,"") ->  | H61: =IF(Canoe!H85<>"",(Canoe!G85*SIN(RADIANS(J$4))+Canoe!H85*COS(RADIANS(J$4))*J$3)+J$2,"") ->  | I61: =IF(Canoe!I85<>"",Canoe!I85*COS(RADIANS(J$4))-Canoe!J85*SIN(RADIANS(J$4))+J$1,"") ->  | J61: =IF(Canoe!J85<>"",(Canoe!I85*SIN(RADIANS(J$4))+Canoe!J85*COS(RADIANS(J$4))*J$3)+J$2,"") ->  | L61: =IF(Canoe!L85<>"",Canoe!L85*COS(RADIANS(O$4))-Canoe!M85*SIN(RADIANS(O$4))+O$1,"") ->  | M61: =IF(Canoe!M85<>"",(Canoe!L85*SIN(RADIANS(O$4))+Canoe!M85*COS(RADIANS(O$4))*O$3)+O$2,"") ->  | N61: =IF(Canoe!N85<>"",Canoe!N85*COS(RADIANS(O$4))-Canoe!O85*SIN(RADIANS(O$4))+O$1,"") ->  | O61: =IF(Canoe!O85<>"",(Canoe!N85*SIN(RADIANS(O$4))+Canoe!O85*COS(RADIANS(O$4))*O$3)+O$2,"") ->  | Q61: =IF(Canoe!Q85<>"",Canoe!Q85*COS(RADIANS(T$4))-Canoe!R85*SIN(RADIANS(T$4))+T$1,"") ->  | R61: =IF(Canoe!R85<>"",(Canoe!Q85*SIN(RADIANS(T$4))+Canoe!R85*COS(RADIANS(T$4))*T$3)+T$2,"") ->  | S61: =IF(Canoe!S85<>"",Canoe!S85*COS(RADIANS(T$4))-Canoe!T85*SIN(RADIANS(T$4))+T$1,"") ->  | T61: =IF(Canoe!T85<>"",(Canoe!S85*SIN(RADIANS(T$4))+Canoe!T85*COS(RADIANS(T$4))*T$3)+T$2,"") ->  | V61: =IF(Canoe!V85<>"",Canoe!V85*COS(RADIANS(Y$4))-Canoe!W85*SIN(RADIANS(Y$4))+Y$1,"") ->  | W61: =IF(Canoe!W85<>"",(Canoe!V85*SIN(RADIANS(Y$4))+Canoe!W85*COS(RADIANS(Y$4))*Y$3)+Y$2,"") ->  | X61: =IF(Canoe!X85<>"",Canoe!X85*COS(RADIANS(Y$4))-Canoe!Y85*SIN(RADIANS(Y$4))+Y$1,"") ->  | Y61: =IF(Canoe!Y85<>"",(Canoe!X85*SIN(RADIANS(Y$4))+Canoe!Y85*COS(RADIANS(Y$4))*Y$3)+Y$2,"") -> 
A62: 56 | B62: =IF(Canoe!B86<>"",Canoe!B86*COS(RADIANS(E$4))-Canoe!C86*SIN(RADIANS(E$4))+E$1,"") ->  | C62: =IF(Canoe!C86<>"",(Canoe!B86*SIN(RADIANS(E$4))+Canoe!C86*COS(RADIANS(E$4))*E$3)+E$2,"") ->  | D62: =IF(Canoe!D86<>"",Canoe!D86*COS(RADIANS(E$4))-Canoe!E86*SIN(RADIANS(E$4))+E$1,"") ->  | E62: =IF(Canoe!E86<>"",(Canoe!D86*SIN(RADIANS(E$4))+Canoe!E86*COS(RADIANS(E$4))*E$3)+E$2,"") ->  | G62: =IF(Canoe!G86<>"",Canoe!G86*COS(RADIANS(J$4))-Canoe!H86*SIN(RADIANS(J$4))+J$1,"") ->  | H62: =IF(Canoe!H86<>"",(Canoe!G86*SIN(RADIANS(J$4))+Canoe!H86*COS(RADIANS(J$4))*J$3)+J$2,"") ->  | I62: =IF(Canoe!I86<>"",Canoe!I86*COS(RADIANS(J$4))-Canoe!J86*SIN(RADIANS(J$4))+J$1,"") ->  | J62: =IF(Canoe!J86<>"",(Canoe!I86*SIN(RADIANS(J$4))+Canoe!J86*COS(RADIANS(J$4))*J$3)+J$2,"") ->  | L62: =IF(Canoe!L86<>"",Canoe!L86*COS(RADIANS(O$4))-Canoe!M86*SIN(RADIANS(O$4))+O$1,"") ->  | M62: =IF(Canoe!M86<>"",(Canoe!L86*SIN(RADIANS(O$4))+Canoe!M86*COS(RADIANS(O$4))*O$3)+O$2,"") ->  | N62: =IF(Canoe!N86<>"",Canoe!N86*COS(RADIANS(O$4))-Canoe!O86*SIN(RADIANS(O$4))+O$1,"") ->  | O62: =IF(Canoe!O86<>"",(Canoe!N86*SIN(RADIANS(O$4))+Canoe!O86*COS(RADIANS(O$4))*O$3)+O$2,"") ->  | Q62: =IF(Canoe!Q86<>"",Canoe!Q86*COS(RADIANS(T$4))-Canoe!R86*SIN(RADIANS(T$4))+T$1,"") ->  | R62: =IF(Canoe!R86<>"",(Canoe!Q86*SIN(RADIANS(T$4))+Canoe!R86*COS(RADIANS(T$4))*T$3)+T$2,"") ->  | S62: =IF(Canoe!S86<>"",Canoe!S86*COS(RADIANS(T$4))-Canoe!T86*SIN(RADIANS(T$4))+T$1,"") ->  | T62: =IF(Canoe!T86<>"",(Canoe!S86*SIN(RADIANS(T$4))+Canoe!T86*COS(RADIANS(T$4))*T$3)+T$2,"") ->  | V62: =IF(Canoe!V86<>"",Canoe!V86*COS(RADIANS(Y$4))-Canoe!W86*SIN(RADIANS(Y$4))+Y$1,"") ->  | W62: =IF(Canoe!W86<>"",(Canoe!V86*SIN(RADIANS(Y$4))+Canoe!W86*COS(RADIANS(Y$4))*Y$3)+Y$2,"") ->  | X62: =IF(Canoe!X86<>"",Canoe!X86*COS(RADIANS(Y$4))-Canoe!Y86*SIN(RADIANS(Y$4))+Y$1,"") ->  | Y62: =IF(Canoe!Y86<>"",(Canoe!X86*SIN(RADIANS(Y$4))+Canoe!Y86*COS(RADIANS(Y$4))*Y$3)+Y$2,"") -> 
A63: 57 | B63: =IF(Canoe!B87<>"",Canoe!B87*COS(RADIANS(E$4))-Canoe!C87*SIN(RADIANS(E$4))+E$1,"") ->  | C63: =IF(Canoe!C87<>"",(Canoe!B87*SIN(RADIANS(E$4))+Canoe!C87*COS(RADIANS(E$4))*E$3)+E$2,"") ->  | D63: =IF(Canoe!D87<>"",Canoe!D87*COS(RADIANS(E$4))-Canoe!E87*SIN(RADIANS(E$4))+E$1,"") ->  | E63: =IF(Canoe!E87<>"",(Canoe!D87*SIN(RADIANS(E$4))+Canoe!E87*COS(RADIANS(E$4))*E$3)+E$2,"") ->  | G63: =IF(Canoe!G87<>"",Canoe!G87*COS(RADIANS(J$4))-Canoe!H87*SIN(RADIANS(J$4))+J$1,"") ->  | H63: =IF(Canoe!H87<>"",(Canoe!G87*SIN(RADIANS(J$4))+Canoe!H87*COS(RADIANS(J$4))*J$3)+J$2,"") ->  | I63: =IF(Canoe!I87<>"",Canoe!I87*COS(RADIANS(J$4))-Canoe!J87*SIN(RADIANS(J$4))+J$1,"") ->  | J63: =IF(Canoe!J87<>"",(Canoe!I87*SIN(RADIANS(J$4))+Canoe!J87*COS(RADIANS(J$4))*J$3)+J$2,"") ->  | L63: =IF(Canoe!L87<>"",Canoe!L87*COS(RADIANS(O$4))-Canoe!M87*SIN(RADIANS(O$4))+O$1,"") ->  | M63: =IF(Canoe!M87<>"",(Canoe!L87*SIN(RADIANS(O$4))+Canoe!M87*COS(RADIANS(O$4))*O$3)+O$2,"") ->  | N63: =IF(Canoe!N87<>"",Canoe!N87*COS(RADIANS(O$4))-Canoe!O87*SIN(RADIANS(O$4))+O$1,"") ->  | O63: =IF(Canoe!O87<>"",(Canoe!N87*SIN(RADIANS(O$4))+Canoe!O87*COS(RADIANS(O$4))*O$3)+O$2,"") ->  | Q63: =IF(Canoe!Q87<>"",Canoe!Q87*COS(RADIANS(T$4))-Canoe!R87*SIN(RADIANS(T$4))+T$1,"") ->  | R63: =IF(Canoe!R87<>"",(Canoe!Q87*SIN(RADIANS(T$4))+Canoe!R87*COS(RADIANS(T$4))*T$3)+T$2,"") ->  | S63: =IF(Canoe!S87<>"",Canoe!S87*COS(RADIANS(T$4))-Canoe!T87*SIN(RADIANS(T$4))+T$1,"") ->  | T63: =IF(Canoe!T87<>"",(Canoe!S87*SIN(RADIANS(T$4))+Canoe!T87*COS(RADIANS(T$4))*T$3)+T$2,"") ->  | V63: =IF(Canoe!V87<>"",Canoe!V87*COS(RADIANS(Y$4))-Canoe!W87*SIN(RADIANS(Y$4))+Y$1,"") ->  | W63: =IF(Canoe!W87<>"",(Canoe!V87*SIN(RADIANS(Y$4))+Canoe!W87*COS(RADIANS(Y$4))*Y$3)+Y$2,"") ->  | X63: =IF(Canoe!X87<>"",Canoe!X87*COS(RADIANS(Y$4))-Canoe!Y87*SIN(RADIANS(Y$4))+Y$1,"") ->  | Y63: =IF(Canoe!Y87<>"",(Canoe!X87*SIN(RADIANS(Y$4))+Canoe!Y87*COS(RADIANS(Y$4))*Y$3)+Y$2,"") -> 

Sheet Unfold Plot

Sheet Offset Table
A1: Offset Tables
A2: Height WL | B2: 35 | C2: 100 | D2: 200 | E2: 300 | F2: 400 | G2: 500 | H2: 600 | I2: 700 | J2: 800 | K2: 900 | L2: 1000 | M2: 1100 | N2: 1200 | O2: 1300 | P2: 1400 | Q2: 1500 | R2: 1600 | S2: 1700 | T2: 1800 | U2: 1900 | V2: 2000 | W2: 2100 | X2: 2200 | Y2: 2300 | Z2: 2400 | AA2: 2500 | AB2: 2600 | AC2: 2700 | AD2: 2800 | AE2: 2900 | AF2: 3000 | AG2: 3100 | AH2: 3200 | AI2: 3300 | AJ2: 3400 | AK2: 3500 | AL2: 3600 | AM2: 3700 | AN2: 3800 | AO2: 3900 | AP2: 3965
A3: 5 | B3: 260 | C3: 256.0606061 | D3: 250 | E3: 250 | F3: 250 | G3: 250 | H3: 250 | I3: 250 | J3: 250 | K3: 250 | L3: 250 | M3: 250 | N3: 250 | O3: 250 | P3: 250 | Q3: 250 | R3: 250 | S3: 250 | T3: 250 | U3: 250 | V3: 250 | W3: 250 | X3: 250 | Y3: 250 | Z3: 250 | AA3: 250 | AB3: 250 | AC3: 250 | AD3: 250 | AE3: 250 | AF3: 250 | AG3: 250 | AH3: 250 | AI3: 250 | AJ3: 250 | AK3: 250 | AL3: 250 | AM3: 250 | AN3: 250 | AO3: 256.0606061 | AP3: 260
A4: 4 | B4: 260 | C4: 256.0606061 | D4: 250 | E4: 244.5987654 | F4: 239.5061728 | G4: 234.7222222 | H4: 230.2469136 | I4: 226.0802469 | J4: 222.2222222 | K4: 218.6728395 | L4: 215.4320988 | M4: 212.5 | N4: 209.8765432 | O4: 207.5617284 | P4: 205.5555556 | Q4: 203.8580247 | R4: 202.4691358 | S4: 201.3888889 | T4: 200.617284 | U4: 200.154321 | V4: 200 | W4: 200.154321 | X4: 200.617284 | Y4: 201.3888889 | Z4: 202.4691358 | AA4: 203.8580247 | AB4: 205.5555556 | AC4: 207.5617284 | AD4: 209.8765432 | AE4: 212.5 | AF4: 215.4320988 | AG4: 218.6728395 | AH4: 222.2222222 | AI4: 226.0802469 | AJ4: 230.2469136 | AK4: 234.7222222 | AL4: 239.5061728 | AM4: 244.5987654 | AN4: 250 | AO4: 256.0606061 | AP4: 260
A5: 3 | B5: 260 | C5: 255.9478335 | D5: 250 | E5: 244.3973652 | F5: 239.1378981 | G5: 234.2195679 | H5: 229.6403435 | I5: 225.398194 | J5: 221.4910886 | K5: 217.9169963 | L5: 214.6738861 | M5: 211.7597272 | N5: 209.1724886 | O5: 206.9101394 | P5: 204.9706487 | Q5: 203.3519855 | R5: 202.0521189 | S5: 201.0690179 | T5: 200.4006518 | U5: 200.0449894 | V5: 200 | W5: 200.0449894 | X5: 200.4006518 | Y5: 201.0690179 | Z5: 202.0521189 | AA5: 203.3519855 | AB5: 204.9706487 | AC5: 206.9101394 | AD5: 209.1724886 | AE5: 211.7597272 | AF5: 214.6738861 | AG5: 217.9169963 | AH5: 221.4910886 | AI5: 225.398194 | AJ5: 229.6403435 | AK5: 234.2195679 | AL5: 239.1378981 | AM5: 244.3973652 | AN5: 250 | AO5: 255.9478335 | AP5: 260
A6: 2 | B6: 260 | C6: 137.8787879 | D6: -50 | E6: -52.70061728 | F6: -55.24691358 | G6: -57.63888889 | H6: -59.87654321 | I6: -61.95987654 | J6: -63.88888889 | K6: -65.66358025 | L6: -67.28395062 | M6: -68.75 | N6: -70.0617284 | O6: -71.2191358 | P6: -72.22222222 | Q6: -73.07098765 | R6: -73.7654321 | S6: -74.30555556 | T6: -74.69135802 | U6: -74.92283951 | V6: -75 | W6: -74.92283951 | X6: -74.69135802 | Y6: -74.30555556 | Z6: -73.7654321 | AA6: -73.07098765 | AB6: -72.22222222 | AC6: -71.2191358 | AD6: -70.0617284 | AE6: -68.75 | AF6: -67.28395062 | AG6: -65.66358025 | AH6: -63.88888889 | AI6: -61.95987654 | AJ6: -59.87654321 | AK6: -57.63888889 | AL6: -55.24691358 | AM6: -52.70061728 | AN6: -50 | AO6: 137.8787879 | AP6: 260
A7: 1 | B7: 260 | C7: 137.8787879 | D7: -50 | E7: -52.70061728 | F7: -55.24691358 | G7: -57.63888889 | H7: -59.87654321 | I7: -61.95987654 | J7: -63.88888889 | K7: -65.66358025 | L7: -67.28395062 | M7: -68.75 | N7: -70.0617284 | O7: -71.2191358 | P7: -72.22222222 | Q7: -73.07098765 | R7: -73.7654321 | S7: -74.30555556 | T7: -74.69135802 | U7: -74.92283951 | V7: -75 | W7: -74.92283951 | X7: -74.69135802 | Y7: -74.30555556 | Z7: -73.7654321 | AA7: -73.07098765 | AB7: -72.22222222 | AC7: -71.2191358 | AD7: -70.0617284 | AE7: -68.75 | AF7: -67.28395062 | AG7: -65.66358025 | AH7: -63.88888889 | AI7: -61.95987654 | AJ7: -59.87654321 | AK7: -57.63888889 | AL7: -55.24691358 | AM7: -52.70061728 | AN7: -50 | AO7: 137.8787879 | AP7: 260
A9: Half Width | AJ9: 3400 | AK9: 3500 | AL9: 3600 | AM9: 3700 | AN9: 3800 | AO9: 3900 | AP9: 3965
A10: 5 | B10: 0 | C10: 0 | D10: 0 | E10: 29.70679012 | F10: 57.71604938 | G10: 84.02777778 | H10: 108.6419753 | I10: 131.558642 | J10: 152.7777778 | K10: 172.2993827 | L10: 190.1234568 | M10: 206.25 | N10: 220.6790123 | O10: 233.4104938 | P10: 244.4444444 | Q10: 253.7808642 | R10: 261.4197531 | S10: 267.3611111 | T10: 271.6049383 | U10: 274.1512346 | V10: 275 | W10: 274.1512346 | X10: 271.6049383 | Y10: 267.3611111 | Z10: 261.4197531 | AA10: 253.7808642 | AB10: 244.4444444 | AC10: 233.4104938 | AD10: 220.6790123 | AE10: 206.25 | AF10: 190.1234568 | AG10: 172.2993827 | AH10: 152.7777778 | AI10: 131.558642 | AJ10: 108.6419753 | AK10: 84.02777778 | AL10: 57.71604938 | AM10: 29.70679012 | AN10: 0 | AO10: 0 | AP10: 0
A11: 4 | B11: 0 | C11: 0 | D11: 0 | E11: 29.70679012 | F11: 57.71604938 | G11: 84.02777778 | H11: 108.6419753 | I11: 131.558642 | J11: 152.7777778 | K11: 172.2993827 | L11: 190.1234568 | M11: 206.25 | N11: 220.6790123 | O11: 233.4104938 | P11: 244.4444444 | Q11: 253.7808642 | R11: 261.4197531 | S11: 267.3611111 | T11: 271.6049383 | U11: 274.1512346 | V11: 275 | W11: 274.1512346 | X11: 271.6049383 | Y11: 267.3611111 | Z11: 261.4197531 | AA11: 253.7808642 | AB11: 244.4444444 | AC11: 233.4104938 | AD11: 220.6790123 | AE11: 206.25 | AF11: 190.1234568 | AG11: 172.2993827 | AH11: 152.7777778 | AI11: 131.558642 | AJ11: 108.6419753 | AK11: 84.02777778 | AL11: 57.71604938 | AM11: 29.70679012 | AN11: 0 | AO11: 0 | AP11: 0
A12: 3 | B12: 0 | C12: 21.0221582 | D12: 52 | E12: 81.32308774 | F12: 108.9897308 | G12: 134.9982386 | H12: 159.3469205 | I12: 182.0340858 | J12: 203.058044 | K12: 222.4171045 | L12: 240.1095765 | M12: 256.1337696 | N12: 270.487993 | O12: 283.1705562 | P12: 294.1797686 | Q12: 303.5139394 | R12: 311.1713782 | S12: 317.1503943 | T12: 321.449297 | U12: 324.0663958 | V12: 325 | W12: 324.0663958 | X12: 321.449297 | Y12: 317.1503943 | Z12: 311.1713782 | AA12: 303.5139394 | AB12: 294.1797686 | AC12: 283.1705562 | AD12: 270.487993 | AE12: 256.1337696 | AF12: 240.1095765 | AG12: 222.4171045 | AH12: 203.058044 | AI12: 182.0340858 | AJ12: 159.3469205 | AK12: 134.9982386 | AL12: 108.9897308 | AM12: 81.32308774 | AN12: 52 | AO12: 21.0221582 | AP12: 0
A13: 2 | B13: 0 | C13: 0 | D13: 0 | E13: 29.70679012 | F13: 57.71604938 | G13: 84.02777778 | H13: 108.6419753 | I13: 131.558642 | J13: 152.7777778 | K13: 172.2993827 | L13: 190.1234568 | M13: 206.25 | N13: 220.6790123 | O13: 233.4104938 | P13: 244.4444444 | Q13: 253.7808642 | R13: 261.4197531 | S13: 267.3611111 | T13: 271.6049383 | U13: 274.1512346 | V13: 275 | W13: 274.1512346 | X13: 271.6049383 | Y13: 267.3611111 | Z13: 261.4197531 | AA13: 253.7808642 | AB13: 244.4444444 | AC13: 233.4104938 | AD13: 220.6790123 | AE13: 206.25 | AF13: 190.1234568 | AG13: 172.2993827 | AH13: 152.7777778 | AI13: 131.558642 | AJ13: 108.6419753 | AK13: 84.02777778 | AL13: 57.71604938 | AM13: 29.70679012 | AN13: 0 | AO13: 0 | AP13: 0
A14: 1 | B14: 0 | C14: 0 | D14: 0 | E14: 0 | F14: 0 | G14: 0 | H14: 0 | I14: 0 | J14: 0 | K14: 0 | L14: 0 | M14: 0 | N14: 0 | O14: 0 | P14: 0 | Q14: 0 | R14: 0 | S14: 0 | T14: 0 | U14: 0 | V14: 0 | W14: 0 | X14: 0 | Y14: 0 | Z14: 0 | AA14: 0 | AB14: 0 | AC14: 0 | AD14: 0 | AE14: 0 | AF14: 0 | AG14: 0 | AH14: 0 | AI14: 0 | AJ14: 0 | AK14: 0 | AL14: 0 | AM14: 0 | AN14: 0 | AO14: 0 | AP14: 0

Sheet Section
A1: Section | B1: 1800
A2: Y | B2: Z
A3: 0 | B3: -74.69135802
A4: 271.6049383 | B4: -74.69135802
A5: 321.449297 | B5: 200.4006518
A6: 271.6049383 | B6: 200.617284
A7: 271.6049383 | B7: 250

Sheet Slice
A1: Slice | B1: 0
A2: X | B2: Y
A3: 173.3867062 | B3: 0
A4: 187.4026024 | B4: 4.599445819
A5: 216.9004349 | B5: 13.77637923
A6: 282.5057806 | B6: 33.5732503
A7: 200 | B7: 8.666782221
A8: 317.9744674 | B8: 43.98826816
A9: 381.478437 | B9: 62.05671294
A10: 300 | B10: 38.86284035
A11: 419.0027167 | B11: 72.43057496
A12: 480.4951458 | B12: 88.86699896
A13: 400 | B13: 67.3386405
A14: 519.982141 | B14: 99.10468294
A15: 579.5589083 | B15: 114.0023461
A16: 500 | B16: 94.09399823
A17: 620.909816 | B17: 124.0121248
A18: 678.6726295 | B18: 137.4606778
A19: 600 | B19: 119.1286402
A20: 721.7829554 | B20: 147.1545826
A21: 777.8390979 | B21: 159.239613
A22: 700 | B22: 142.4422095
A23: 822.5989298 | B23: 168.533887
A24: 877.0609671 | B24: 179.3364791
A25: 800 | B25: 164.0342721
A26: 923.3552854 | B26: 188.152015
A27: 976.3407372 | B27: 197.7483277
A28: 900 | B28: 183.904324
A29: 1024.04976 | B29: 206.0110864
A30: 1075.680738 | B30: 214.4719538
A31: 1000 | B31: 202.0517996
A32: 1124.680301 | B32: 222.113359
A33: 1175.083111 | B33: 229.5039173
A34: 1100 | B34: 218.4760808
A35: 1225.245074 | B35: 236.4612233
A36: 1274.549799 | B36: 242.840567
A37: 1200 | B37: 233.1765068
A38: 1325.742478 | B38: 249.057195
A39: 1374.082529 | B39: 254.4780676
A40: 1300 | B40: 246.1523849
A41: 1426.171155 | B41: 259.9039079
A42: 1473.682802 | B42: 264.4124281
A43: 1400 | B43: 257.4030008
A44: 1526.529996 | B44: 269.0041043
A45: 1573.351886 | B45: 272.6395315
A46: 1500 | B46: 266.927631
A47: 1626.818143 | B47: 276.3606267
A48: 1673.090808 | B48: 279.1551669
A49: 1600 | B49: 274.7255534
A50: 1727.034999 | B50: 281.9764066
A51: 1772.900348 | B51: 283.9550611
A52: 1700 | B52: 280.7960598
A53: 1827.180218 | B53: 285.8544546
A54: 1872.781038 | B54: 287.0349119
A55: 1800 | B55: 285.138467
A56: 1927.253712 | B56: 287.9978497
A57: 1972.733163 | B57: 288.3904205
A58: 1900 | B58: 287.7521287
A59: 2027.266639 | B59: 288.3903232
A60: 2072.745924 | B60: 287.9980345
A61: 2000 | B61: 288.6364463
A62: 2127.218764 | B62: 287.0348183
A63: 2172.819418 | B63: 285.8546454
A64: 2100 | B64: 287.7521287
A65: 2227.099456 | B65: 283.9549715
A66: 2272.964638 | B66: 281.9766033
A67: 2200 | B67: 285.138467
A68: 2326.908997 | B68: 279.1550815
A69: 2373.181493 | B69: 276.3608292
A70: 2300 | B70: 280.7960598
A71: 2426.647922 | B71: 272.6394505
A72: 2473.469641 | B72: 269.0043127
A73: 2400 | B73: 274.7255534
A74: 2526.317009 | B74: 264.4123515
A75: 2573.828483 | B75: 259.9041219
A76: 2500 | B76: 266.927631
A77: 2625.917285 | B77: 254.4779956
A78: 2674.257161 | B78: 249.0574147
A79: 2600 | B79: 257.4030008
A80: 2725.450019 | B80: 242.8404996
A81: 2774.754566 | B81: 236.4614486
A82: 2700 | B82: 246.1523849
A83: 2824.916712 | B83: 229.5038545
A84: 2875.31934 | B84: 222.1135898
A85: 2800 | B85: 233.1765068
A86: 2924.31909 | B86: 214.4718957
A87: 2975.949882 | B87: 206.0113225
A88: 2900 | B88: 218.4760808
A89: 3023.659096 | B89: 197.7482741
A90: 3076.644359 | B90: 188.1522565
A91: 3000 | B91: 202.0517996
A92: 3122.938873 | B92: 179.3364299
A93: 3177.400716 | B93: 168.5341336
A94: 3100 | B94: 183.904324
A95: 3222.160748 | B95: 159.2395682
A96: 3278.216693 | B96: 147.1548343
A97: 3200 | B97: 164.0342721
A98: 3321.327224 | B98: 137.4606372
A99: 3379.089835 | B99: 124.0123815
A100: 3300 | B100: 142.4422095
A101: 3420.440952 | B101: 114.0023095
A102: 3480.017512 | B102: 99.10494452
A103: 3400 | B103: 119.1286402
A104: 3519.504722 | B104: 88.86696621
A105: 3580.996939 | B105: 72.4308413
A106: 3500 | B106: 94.09399823
A107: 3618.521439 | B107: 62.05668383
A108: 3682.025192 | B108: 43.98853916
A109: 3600 | B109: 67.3386405
A110: 3717.494103 | B110: 33.57322463
A111: 3783.099227 | B111: 13.77665476
A112: 3700 | B112: 38.86284035
A113: 3812.597334 | B113: 4.599422643
A114: 3800 | B114: 8.666782221
A115: 3812.597398 | B115: 4.599445819
